account_party,address,code,date,document_number,expense_code_name,expense_code_name_short,id,party_cell,party_cell_code,party_cell_geoobject,purpose,source_bank_account_number,source_bank_account_type,sum,target_legal_personality,target_legal_personality_code,target_type
Опозиційний Блок,"Київ, вулиця Андріївська, 4",70,2018-12-29,TR.12469617.109180.359,Банківські послуги,Інші витрати,135690,Запорізька обласна організація,37526809,Запорізька область,Комісія банку,2600612837,current,120.00,"ПАТ ""ПУМБ""",14282829,юридична особа
Опозиційний Блок,"Харківська область, Харків, майдан Свободи, 5",49,2018-12-28,300,Публікування матеріалів у друкованих ЗМІ,Реклама в друкованих ЗМІ,137370,Харківська обласна організація,41806019,Харківська область,оплата за надання інформаційних ослуг,2600813221,current,2700.00,"РГ ""Слобідський край""",21188137,юридична особа
Опозиційний Блок,"Харківська область, Харків, вулиця Алчевських, 30",70,2018-12-28,RCO2318_1582,Банківські послуги,Інші витрати,137369,Харківська обласна організація,41806019,Харківська область,списання коштів за банківське обслуговування згідно договору 8984,2600813221,current,5.00,"ПАТ ""Мегабанк""",09804119,юридична особа
Опозиційний Блок,"Харківська область, Харків",76,2018-12-28,301,Послуги зв’язку,Послуги зв’язку,137291,Харківська обласна організація,41806019,Харківська область,оплата телекомунікаційних послуг грудень 2018,2600813221,current,300.00,Гуров Роман Валентинович,,фізична особа
Опозиційний Блок,"Дніпропетровська область, Дніпро́, вулиця Курсантська, 24",70,2018-12-28,275958,Банківські послуги,Інші витрати,136809,Одеська обласна організація,39705145,Одеська область,розрахунково-касове обслуговування,26007010349074,current,24.97,"ПАТ ""Банк Восток""",26237202,юридична особа
Опозиційний Блок,Івано-Франківська область,66,2018-12-28,3,Повернення внесків приватних внесків (донорам),Повернення приватних внесків (донорам),135770,Івано-Франківська обласна організація,39711819,Івано-Франківська область,Повернення коштів фінансова допомога згідно договору на картку Чуднов В.М. іпн,2600115305,current,112.00,Чуднов Василь Михайлович,,фізична особа
Опозиційний Блок,"Київ, вулиця Андріївська, 4",70,2018-12-28,340,Банківські послуги,Інші витрати,135689,Запорізька обласна організація,37526809,Запорізька область,Комісія банку,2600612837,current,19.13,"ПАТ ""ПУМБ""",14282829,юридична особа
Опозиційний Блок,"Запорізька область, Запоріжжя, проспект Соборний, 168",61,2018-12-28,343,Військовий збір,Податкові платежі,135688,Запорізька обласна організація,37526809,Запорізька область,"в/с 1,5% з/пл 12/18.",2600612837,current,177.86,УДКСУ у м. Запоріжжі,38025409,юридична особа
Опозиційний Блок,"Запорізька область, Запоріжжя, Радіаторна вулиця, 49",79,2018-12-28,336,"Оренда будинків і приміщень та експлуатаційні витрати (прибирання, страхування орендованих будинків, охорона, сигналізація, ремонт, вивіз сміття, тощо)",Оренда нерухомості,135687,Запорізька обласна організація,37526809,Запорізька область,Оплата за комунальні послуги,2600612837,current,401.23,ТВО Заводського району,37611443,юридична особа
Опозиційний Блок,"Запорізька область, Запоріжжя, вулиця Перемоги, 14",62,2018-12-28,341,Сплата ЄСВ,Податкові платежі,135686,Запорізька обласна організація,37526809,Запорізька область,ЄСВ 22% з/пл 12/18.,2600612837,current,2608.58,Запорізька ОДПІ ГУ ДФС у Запорізькій області,39488184,юридична особа
Опозиційний Блок,"Запорізька область, Запоріжжя, проспект Соборний, 168",63,2018-12-28,342,Податок на доходи,Податкові платежі,135685,Запорізька обласна організація,37526809,Запорізька область,ПДФО 18% з/пл 12/18.,2600612837,current,2134.29,УДКСУ у м. Запоріжжі,38025409,юридична особа
Опозиційний Блок,"Запорізька область, Запоріжжя, вулиця Ситова, 9, 20",79,2018-12-28,337,"Оренда будинків і приміщень та експлуатаційні витрати (прибирання, страхування орендованих будинків, охорона, сигналізація, ремонт, вивіз сміття, тощо)",Оренда нерухомості,135684,Запорізька обласна організація,37526809,Запорізька область,Оплата за оренду приміщення,2600612837,current,4686.00,"ТОВ ""АТЛАНТ ПЛЮС 2018""",42338194,юридична особа
Опозиційний Блок,"Запорізька область, Більмацький район",84,2018-12-28,338,"Заробітна плата, премії","Заробітна плата, лікарняні, вагітності, відрядження, компенсації",135639,Запорізька обласна організація,37526809,Запорізька область,заробітна плата за другу половину грудня 2018 р.,2600612837,current,3575.04,Савчук Ю В,,фізична особа
Опозиційний Блок,"Запорізька область, Запоріжжя",84,2018-12-28,339,"Заробітна плата, премії","Заробітна плата, лікарняні, вагітності, відрядження, компенсації",135638,Запорізька обласна організація,37526809,Запорізька область,заробітна плата за другу половину грудня 2018 р.,2600612837,current,1275.00,Сафонова Н В,,фізична особа
Опозиційний Блок,"Запорізька область, Запоріжжя",84,2018-12-28,339,"Заробітна плата, премії","Заробітна плата, лікарняні, вагітності, відрядження, компенсації",135637,Запорізька обласна організація,37526809,Запорізька область,заробітна плата за другу половину грудня 2018 р.,2600612837,current,1275.00,Максименко В А,,фізична особа
Опозиційний Блок,"Запорізька область, Запоріжжя",84,2018-12-28,339,"Заробітна плата, премії","Заробітна плата, лікарняні, вагітності, відрядження, компенсації",135636,Запорізька обласна організація,37526809,Запорізька область,заробітна плата за другу половину грудня 2018 р.,2600612837,current,1275.00,Залозна О С,,фізична особа
Опозиційний Блок,"м. Запоріжжя, вул. Чуйкова, буд. 20, кв. 158",79,2018-12-28,335,"Оренда будинків і приміщень та експлуатаційні витрати (прибирання, страхування орендованих будинків, охорона, сигналізація, ремонт, вивіз сміття, тощо)",Оренда нерухомості,135635,Запорізька обласна організація,37526809,Запорізька область,Оплата за оренду приміщення,2600612837,current,2500.00,Черкашина Л І,2046524805,фізична особа
Опозиційний Блок,"м. Запоріжжя, вул. Чуйкова, буд. 20, кв. 158",79,2018-12-28,334,"Оренда будинків і приміщень та експлуатаційні витрати (прибирання, страхування орендованих будинків, охорона, сигналізація, ремонт, вивіз сміття, тощо)",Оренда нерухомості,135634,Запорізька обласна організація,37526809,Запорізька область,Оплата за комунальні послуги,2600612837,current,1769.38,Черкашина Л І,2046524805,фізична особа
Опозиційний Блок,"Донецька область, Маріуполь, проспект Миру, 19",49,2018-12-28,198,Публікування матеріалів у друкованих ЗМІ,Реклама в друкованих ЗМІ,134965,Дніпропетровська обласна організація,39750015,Дніпропетровська область,"Оплата за розміщення реклами у газеті зг рах №1634 від 2018-12-27 р, у т.ч. ПДВ 20% = 3 833,33 грн.",2600813320,current,23000.00,"ПрАТ ""Газета ""Приазовський робочий""",02472200,юридична особа
Опозиційний Блок,"Київ, вулиця Андріївська, 4",70,2018-12-28,TR.12591325.69610078,Банківські послуги,Інші витрати,134964,Дніпропетровська обласна організація,39750015,Дніпропетровська область,Договорное списание комиссии за исходящий платеж со счета клиента с-но п. 2.6 тарифов ПУМБ по дог. 260854602 от 2015-06-24 .,2600813320,current,0.85,"ПАТ ""ПУМБ""",14282829,юридична особа
Опозиційний Блок,"Київ, вулиця Героїв Космосу, 4",50,2018-12-28,197,Оплата ефірного часу на радіо,Реклама на радіо,134963,Дніпропетровська обласна організація,39750015,Дніпропетровська область,"Оплата за розміщення інформаційних матеріалів на радіо зг рах №1158 від 2018-12-28 р, у т.ч. ПДВ 20% = 102 051,65 грн.",2600813320,current,612309.88,"ТОВ ""Медіа парнерство баінг""",38990495,юридична особа
Опозиційний Блок,"Київ, вулиця Андріївська, 4",70,2018-12-28,TR.12591325.30531805,Банківські послуги,Інші витрати,134962,Дніпропетровська обласна організація,39750015,Дніпропетровська область,Договорное списание комиссии за исходящий платеж со счета клиента с-но п. 2.6 тарифов ПУМБ по дог. 260854602 от 2015-06-24 .,2600813320,current,0.85,"ПАТ ""ПУМБ""",14282829,юридична особа
Опозиційний Блок,"Київ, вулиця Героїв Космосу, 4",53,2018-12-28,196,Витрати на розміщення зовнішньої реклами,Зовнішня реклама,134961,Дніпропетровська обласна організація,39750015,Дніпропетровська область,"Оплата за розміщення інформаційних матеріалів на зовнішніх носіях зг рах №1157 від 2018-12-28 р, у т.ч. ПДВ 20% = 653 779,69 грн.",2600813320,current,3922678.13,"ТОВ ""Медіа парнерство баінг""",38990495,юридична особа
Опозиційний Блок,"Київ, вулиця Андріївська, 4",70,2018-12-28,TR.12591325.29324190,Банківські послуги,Інші витрати,134960,Дніпропетровська обласна організація,39750015,Дніпропетровська область,Договорное списание комиссии за исходящий платеж со счета клиента с-но п. 2.6 тарифов ПУМБ по дог. 260854602 от 2015-06-24 .,2600813320,current,0.85,"ПАТ ""ПУМБ""",14282829,юридична особа
Опозиційний Блок,"Київ, вулиця Михайла Грушевського, 1Д",70,2018-12-27,CRO1O7A7OY,Банківські послуги,Інші витрати,138188,Чернігівська обласна організація,37418136,Чернігівська область,Комісія за обслуговування рахунку,26003051415812,current,3.00,"ПАТ КБ ""Приватбанк""",14360570,юридична особа
Опозиційний Блок,"Чернігівська область, Чернігів",79,2018-12-27,150,"Оренда будинків і приміщень та експлуатаційні витрати (прибирання, страхування орендованих будинків, охорона, сигналізація, ремонт, вивіз сміття, тощо)",Оренда нерухомості,138187,Чернігівська обласна організація,37418136,Чернігівська область,Орендна плата,26003051415812,current,2500.00,Навчально- методичний центр Федерації профспілкових організацій Чернігівської області,02663414,юридична особа
Опозиційний Блок,"Київ, вулиця Андріївська, 4",70,2018-12-27,TR.27364736.281746311,Банківські послуги,Інші витрати,137904,Херсонська обласна організація,37542218,Херсонська область,договірне списання сум комісії,2600843677,state,1.50,"ПАТ ""ПУМБ""",14282829,юридична особа
Опозиційний Блок,"Херсонська область, Херсон",74,2018-12-27,649,"Придбання канцтоварів, паперу, інших предметів і матеріалів, а також госп товари",Придбання канцтоварів та госп. товарів,137726,Херсонська обласна організація,37542218,Херсонська область,Канцелярськи приладдя,2600843677,state,195.03,Гуськов Дмитро Олександрович,,фізична особа
Опозиційний Блок,"Харківська область, Харків, вулиця Алчевських, 30",70,2018-12-27,RCO2148_1241,Банківські послуги,Інші витрати,137564,Харківська обласна організація,41806019,Харківська область,списання коштів за банківське обслуговування згідно договору 8984,26002113221,state,2.50,"ПАТ ""Мегабанк""",09804119,юридична особа
Опозиційний Блок,"Харківська область, Харків",72,2018-12-27,219,"Придбання, ремонт офісної техніки та програмного забезпечення (Бухгалтерські програми, Ліга.закон, домени)",Придбання офісної техніки та програмного забезпечення,137401,Харківська обласна організація,41806019,Харківська область,"оплата паперу, ламп",26002113221,state,6262.83,Біла Любов Миколаївна,,фізична особа
Опозиційний Блок,"Дніпропетровська область, Дніпро́, вулиця Курсантська, 24",70,2018-12-27,264687,Банківські послуги,Інші витрати,136808,Одеська обласна організація,39705145,Одеська область,розрахунково-касове обслуговування,26007010349074,current,675.03,"ПАТ ""Банк Восток""",26237202,юридична особа
Опозиційний Блок,"Івано-Франківська область, Івано-Франківськ, вулиця Макогона, 31",70,2018-12-27,3983.1164,Банківські послуги,Інші витрати,135771,Івано-Франківська обласна організація,39711819,Івано-Франківська область,Договірне списання комісіі,2600115305,current,120.00,Івано-Франківська обласна організація Опозиційний блок,39711819,юридична особа
Опозиційний Блок,"Київ, вулиця Героїв Космосу, 4",52,2018-12-27,195,Інша реклама (без класифікації),Реклама (без класифікації),134959,Дніпропетровська обласна організація,39750015,Дніпропетровська область,"Оплата за розміщення інформаційних матеріалів зг рах №1143 від 2018-12-26 р, у т.ч. ПДВ 20% = 114 314,71 грн.",2600813320,current,685888.28,"ТОВ ""Медіа парнерство баінг""",38990495,юридична особа
Опозиційний Блок,"Київ, вулиця Андріївська, 4",70,2018-12-27,TR.12591325.91601343,Банківські послуги,Інші витрати,134958,Дніпропетровська обласна організація,39750015,Дніпропетровська область,Договорное списание комиссии за исходящий платеж со счета клиента с-но п. 2.6 тарифов ПУМБ по дог. 260854602 от 2015-06-24 .,2600813320,current,0.85,"ПАТ ""ПУМБ""",14282829,юридична особа
Опозиційний Блок,"Київ, вулиця Героїв Космосу, 4",54,2018-12-27,194,Виготовлення відеозаписів,Реклама (без класифікації),134957,Дніпропетровська обласна організація,39750015,Дніпропетровська область,"Оплата за виробництво рекламних роликів зг рах № 34 від 2018-12-23, у т.ч. ПДВ 20% = 9 316,67 грн.",2600813320,current,55900.00,"ТОВ ""ТЕЛЕ ПРО""",37499304,юридична особа
Опозиційний Блок,"Київ, вулиця Андріївська, 4",70,2018-12-27,TR.12591325.53845461,Банківські послуги,Інші витрати,134956,Дніпропетровська обласна організація,39750015,Дніпропетровська область,Договорное списание комиссии за исходящий платеж со счета клиента с-но п. 2.6 тарифов ПУМБ по дог. 260854602 от 2015-06-24 .,2600813320,current,0.85,"ПАТ ""ПУМБ""",14282829,юридична особа
Опозиційний Блок,"Київ, вулиця Михайла Грушевського, 1Д",70,2018-12-26,CQO1O5576A,Банківські послуги,Інші витрати,138330,Кременчуцька міська організація,39966510,Полтавська область,Комісія за виконання платежів,26008054635547,current,0.36,"ПАТ КБ ""Приватбанк""",14360570,юридична особа
Опозиційний Блок,"Київ, вулиця Михайла Грушевського, 1Д",70,2018-12-26,CQO1O5576A,Банківські послуги,Інші витрати,138329,Кременчуцька міська організація,39966510,Полтавська область,Комісія за виконання платежів,26008054635547,current,0.03,"ПАТ КБ ""Приватбанк""",14360570,юридична особа
Опозиційний Блок,"Полтавська область, Кременчук",66,2018-12-26,114,Повернення внесків приватних внесків (донорам),Повернення приватних внесків (донорам),138328,Кременчуцька міська організація,39966510,Полтавська область,"Повернення добровільного внеску зг.заяви № 01-2 від 26.12.18, на підставі ст.15 ЗУ "" Про політичні партії в Україні""",26008054635547,current,10.91,Касіт Олександр Валерійович,,фізична особа
Опозиційний Блок,"Полтавська область, Кременчук",66,2018-12-26,113,Повернення внесків приватних внесків (донорам),Повернення приватних внесків (донорам),138327,Кременчуцька міська організація,39966510,Полтавська область,"Повернення добровільного внеску зг.заяви № 01-1 від 26.12.18, на підставі ст.15 ЗУ "" Про політичні партії в Україні""",26008054635547,current,120.00,Касіт Олександр Валерійович,,фізична особа
Опозиційний Блок,"Донецька область, Маріуполь, вулиця Гризодубової, 1",79,2018-12-26,83,"Оренда будинків і приміщень та експлуатаційні витрати (прибирання, страхування орендованих будинків, охорона, сигналізація, ремонт, вивіз сміття, тощо)",Оренда нерухомості,138323,Маріупольська міська організація,39905107,Донецька область,за теплову енергію,2600214189,current,15978.35,"КП ""Маріупольтепломережа""",33760279,юридична особа
Опозиційний Блок,"Київ, вулиця Андріївська, 4",70,2018-12-26,TR.12858232.770544321,Банківські послуги,Інші витрати,138322,Маріупольська міська організація,39905107,Донецька область,комісія,2600214189,current,0.85,"ПАТ ""ПУМБ""",14282829,юридична особа
Опозиційний Блок,"Харківська область, Валківський район, Валки, Харківська вулиця, 8",79,2018-12-26,217,"Оренда будинків і приміщень та експлуатаційні витрати (прибирання, страхування орендованих будинків, охорона, сигналізація, ремонт, вивіз сміття, тощо)",Оренда нерухомості,137569,Харківська обласна організація,41806019,Харківська область,оренда приміщення грудень 2018р,26002113221,state,2000.00,"ТОВ ""ВАЛКИПОБУТСЕРВІС""",03057153,юридична особа
Опозиційний Блок,"Харківська область, Харків, вулиця Алчевських, 44",63,2018-12-26,214,Податок на доходи,Податкові платежі,137568,Харківська обласна організація,41806019,Харківська область,"ПДФО 18% ЗП за грудень,відпускні за 2018р, компенсація за н/відпустку 2018р.",26002113221,state,72351.97,УДКСУ у Київському районі м. Харків,37999675,юридична особа
Опозиційний Блок,"Харківська область, Харків, вулиця Алчевських, 44",61,2018-12-26,213,Військовий збір,Податкові платежі,137567,Харківська обласна організація,41806019,Харківська область,"Військовий збір 1,5% ЗП за грудень,відпускні за 2018р, компенсація за н/відпустку 2018р.",26002113221,state,6029.32,УДКСУ у Київському районі м. Харків,37999675,юридична особа
Опозиційний Блок,"Харківська область, Харків, вулиця Чернишевська, 41",62,2018-12-26,215,Сплата ЄСВ,Податкові платежі,137566,Харківська обласна організація,41806019,Харківська область,"ЄСВ 22% ЗП за грудень,відпускні за 2018р, компенсація за н/відпустку 2018р.",26002113221,state,88430.19,Київська ОДПІ м. Харкова ГУ ДФС у Харківській області,39893720,юридична особа
Опозиційний Блок,"Харківська область, Харків, вулиця Чернишевська, 41",62,2018-12-26,216,Сплата ЄСВ,Податкові платежі,137565,Харківська обласна організація,41806019,Харківська область,ЄСВ 22% на виплату по вагітності та пологам 05.11-2018-11-18р.,26002113221,state,565.52,Київська ОДПІ м. Харкова ГУ ДФС у Харківській області,39893720,юридична особа
Опозиційний Блок,"Харківська область, Харків, вулиця Алчевських, 30",70,2018-12-26,RCO1932_996,Банківські послуги,Інші витрати,137563,Харківська обласна організація,41806019,Харківська область,списання коштів за банківське обслуговування згідно договору 8984,26002113221,state,3250.74,"ПАТ ""Мегабанк""",09804119,юридична особа
Опозиційний Блок,"Харківська область, Харків, вулиця Чернишевська, 8",72,2018-12-26,218,"Придбання, ремонт офісної техніки та програмного забезпечення (Бухгалтерські програми, Ліга.закон, домени)",Придбання офісної техніки та програмного забезпечення,137562,Харківська обласна організація,41806019,Харківська область,заправка картриджу,26002113221,state,560.00,"ТОВ ""QUANTA SYSTEМ""",31233092,юридична особа
Опозиційний Блок,"Харківська область, Борівський район, Підлиман",84,2018-12-26,рко 223,"Заробітна плата, премії","Заробітна плата, лікарняні, вагітності, відрядження, компенсації",137474,Харківська обласна організація,41806019,Харківська область,"заробітна плата за грудень,премія, компенсація за невикористану відпустку 2018р.",26002113221,state,14125.08,Савченко Юлія Леонідівна,,фізична особа
Опозиційний Блок,"Харківська область, Валківський район, Валки",84,2018-12-26,рко 222,"Заробітна плата, премії","Заробітна плата, лікарняні, вагітності, відрядження, компенсації",137473,Харківська обласна організація,41806019,Харківська область,"заробітна плата за грудень,премія, компенсація за невикористану відпустку 2018р.",26002113221,state,14275.35,Закарлюка Олена Вікторівна,,фізична особа
Опозиційний Блок,"Донецька область, Добропілля",84,2018-12-26,рко 221,"Заробітна плата, премії","Заробітна плата, лікарняні, вагітності, відрядження, компенсації",137472,Харківська обласна організація,41806019,Харківська область,"заробітна плата за грудень,премія, компенсація за невикористану відпустку 2018р.",26002113221,state,14425.62,Ярощук Дмитро Юрійович,,фізична особа
Опозиційний Блок,"Харківська область, Харків",84,2018-12-26,рко 220,"Заробітна плата, премії","Заробітна плата, лікарняні, вагітності, відрядження, компенсації",137471,Харківська обласна організація,41806019,Харківська область,"заробітна плата за грудень, премія, відпустку 2018р.",26002113221,state,22994.82,Рюхова Світлана Євгенівна,,фізична особа
Опозиційний Блок,"Харківська область, Харків",84,2018-12-26,рко 219,"Заробітна плата, премії","Заробітна плата, лікарняні, вагітності, відрядження, компенсації",137470,Харківська обласна організація,41806019,Харківська область,"заробітна плата за грудень, премія, відпустку 2018р.",26002113221,state,23461.72,Пащенко Карина Миколаївна,,фізична особа
Опозиційний Блок,"Харківська область, Харків",84,2018-12-26,рко 218,"Заробітна плата, премії","Заробітна плата, лікарняні, вагітності, відрядження, компенсації",137469,Харківська обласна організація,41806019,Харківська область,"заробітна плата за грудень, премія, відпустку 2018р.",26002113221,state,23675.08,Білохвостенко Дмитро Олександрович,,фізична особа
Опозиційний Блок,"Харківська область, Великобурлуцький район, Великий Бурлук",84,2018-12-26,рко 217,"Заробітна плата, премії","Заробітна плата, лікарняні, вагітності, відрядження, компенсації",137468,Харківська обласна організація,41806019,Харківська область,"заробітна плата за грудень,премія, компенсація за невикористану відпустку 2018р.",26002113221,state,16254.79,Малик Тетяна Костянтинівна,,фізична особа
Опозиційний Блок,"Харківська область, Дергачівський район, Вільшани",84,2018-12-26,рко 216,"Заробітна плата, премії","Заробітна плата, лікарняні, вагітності, відрядження, компенсації",137467,Харківська обласна організація,41806019,Харківська область,"заробітна плата за грудень,премія, компенсація за невикористану відпустку 2018р.",26002113221,state,16254.79,Галагуря Віталій Миколайович,,фізична особа
Опозиційний Блок,"Харківська область, Валківський район, Валки",83,2018-12-26,рко 215,"Виплати працівникам (не зарплата): лікарняні, вагітності, відрядження, компенсації ","Заробітна плата, лікарняні, вагітності, відрядження, компенсації",137466,Харківська обласна організація,41806019,Харківська область,розрахунок компенсація за невикористану відпустку 2018р.,26002113221,state,2273.60,Войтенко Людмила Петрівна,,фізична особа
Опозиційний Блок,"Харківська область, Люботин",84,2018-12-26,рко 214,"Заробітна плата, премії","Заробітна плата, лікарняні, вагітності, відрядження, компенсації",137465,Харківська обласна організація,41806019,Харківська область,"заробітна плата за грудень,премія, компенсація за невикористану відпустку 2018р.",26002113221,state,16254.79,Глушко Світлана Василівна,,фізична особа
Опозиційний Блок,"Харківська область, Чугуїв",84,2018-12-26,рко 213,"Заробітна плата, премії","Заробітна плата, лікарняні, вагітності, відрядження, компенсації",137464,Харківська обласна організація,41806019,Харківська область,"заробітна плата за грудень, премія, відпустку 2018р.",26002113221,state,25082.67,Слатін Владислав Сергійович,,фізична особа
Опозиційний Блок,"Харківська область, Харків",84,2018-12-26,рко 212,"Заробітна плата, премії","Заробітна плата, лікарняні, вагітності, відрядження, компенсації",137463,Харківська обласна організація,41806019,Харківська область,"заробітна плата за грудень, премія, відпустку 2018р.",26002113221,state,25617.89,Чередниченко Алла Анатоліївна,,фізична особа
Опозиційний Блок,"Харківська область, Харків",84,2018-12-26,рко 211,"Заробітна плата, премії","Заробітна плата, лікарняні, вагітності, відрядження, компенсації",137462,Харківська обласна організація,41806019,Харківська область,"заробітна плата за грудень, премія, відпустку 2018р.",26002113221,state,34777.88,Лобода Ганна Миколаївна,,фізична особа
Опозиційний Блок,"Харківська область, Харків",84,2018-12-26,рко 210,"Заробітна плата, премії","Заробітна плата, лікарняні, вагітності, відрядження, компенсації",137461,Харківська обласна організація,41806019,Харківська область,"заробітна плата за грудень, премія, відпустку 2018р.",26002113221,state,35278.99,Юрченко Вікторія Едуардівна,,фізична особа
Опозиційний Блок,"Харківська область, Харків",84,2018-12-26,рко 209,"Заробітна плата, премії","Заробітна плата, лікарняні, вагітності, відрядження, компенсації",137460,Харківська обласна організація,41806019,Харківська область,"заробітна плата за грудень, премія, відпустку 2018р.",26002113221,state,38821.11,Білохвостенко Світлана Володимирівна,,фізична особа
Опозиційний Блок,"Харківська область, Харків, вулиця Копиленка, 4",58,2018-12-26,299,"Виготовлення друкованих матеріалів (плакатів, листівок, буклетів та інших агітаційних матеріалів)",Друкована агітація,137368,Харківська обласна організація,41806019,Харківська область,оплата за листівки,2600813221,current,6000.00,"ПП ""Медіа-преміум""",34329316,юридична особа
Опозиційний Блок,"Харківська область, Харків, майдан Свободи, 5",49,2018-12-26,298,Публікування матеріалів у друкованих ЗМІ,Реклама в друкованих ЗМІ,137367,Харківська обласна організація,41806019,Харківська область,оплата за надання інформаційних ослуг,2600813221,current,3300.00,"РГ ""Слобідський край""",21188137,юридична особа
Опозиційний Блок,"Київ, бульвар Тараса Шевченка, 18",76,2018-12-26,297,Послуги зв’язку,Послуги зв’язку,137366,Харківська обласна організація,41806019,Харківська область,оплата за телекомунікаційні послуги за листопад 2018,2600813221,current,418.11,"ПАТ ""Укртелеком""",21560766,юридична особа
Опозиційний Блок,"Харківська область, Харків, вулиця Алчевських, 30",70,2018-12-26,RCO1941_923,Банківські послуги,Інші витрати,137365,Харківська обласна організація,41806019,Харківська область,списання коштів за банківське обслуговування згідно договору 8984,2600813221,current,22.08,"ПАТ ""Мегабанк""",09804119,юридична особа
Опозиційний Блок,"Дніпропетровська область, Дніпро́, проспект Дмитра Яворницького, 62",75,2018-12-26,191,Поштові послуги та поширення друкованих матеріалів,Поштові послуги та поширення друкованих матеріалів,134955,Дніпропетровська обласна організація,39750015,Дніпропетровська область,"Оплата за безадресну доставку рекламної продукції зг рах №б/н від 24.12 2018 , у т.ч. ПДВ 20% = 5 100,49 грн.",2600813320,current,30602.95,"Дніпропетровська дирекція ПАТ ""Укрпошта""",25771603,юридична особа
Опозиційний Блок,"Київ, вулиця Андріївська, 4",70,2018-12-26,TR.12591325.61940150,Банківські послуги,Інші витрати,134954,Дніпропетровська обласна організація,39750015,Дніпропетровська область,Договорное списание комиссии за платеж в пользу клиента др. банка с-но п. 2.14 тарифов ПУМБ по дог. 260854602 от 2015-06-24 .,2600813320,current,2.00,"ПАТ ""ПУМБ""",14282829,юридична особа
Опозиційний Блок,"Дніпропетровська область, Дніпро́, вулиця Старокозацька, 48, 212",53,2018-12-26,193,Витрати на розміщення зовнішньої реклами,Зовнішня реклама,134953,Дніпропетровська обласна організація,39750015,Дніпропетровська область,"Оплата послуг за розміщення та обслуговування реклами зг рах № 111 від 2018-12-26 р, у т.ч. ПДВ 20% = 370 291,67 грн.",2600813320,current,2221750.00,ТОВ 'Видавничий будинок 'ПОДІЯ'',33686054,юридична особа
Опозиційний Блок,"Київ, вулиця Андріївська, 4",70,2018-12-26,TR.12591325.62159965,Банківські послуги,Інші витрати,134952,Дніпропетровська обласна організація,39750015,Дніпропетровська область,Договорное списание комиссии за платеж в пользу клиента др. банка с-но п. 2.14 тарифов ПУМБ по дог. 260854602 от 2015-06-24 .,2600813320,current,2.00,"ПАТ ""ПУМБ""",14282829,юридична особа
Опозиційний Блок,"Київ, вулиця Героїв Космосу, 4",50,2018-12-26,192,Оплата ефірного часу на радіо,Реклама на радіо,134951,Дніпропетровська обласна організація,39750015,Дніпропетровська область,"Оплата за розміщення інформаційних матеріалів на радіо зг рах №1141 від 2018-12-25 р, у т.ч. ПДВ 20% = 18 621,60 грн.",2600813320,current,111729.58,"ТОВ ""Медіа парнерство баінг""",38990495,юридична особа
Опозиційний Блок,"Київ, вулиця Андріївська, 4",70,2018-12-26,TR.12591325.51502960,Банківські послуги,Інші витрати,134950,Дніпропетровська обласна організація,39750015,Дніпропетровська область,Договорное списание комиссии за исходящий платеж со счета клиента с-но п. 2.6 тарифов ПУМБ по дог. 260854602 от 2015-06-24 .,2600813320,current,0.85,"ПАТ ""ПУМБ""",14282829,юридична особа
Опозиційний Блок,"Одеська область, Одеса, Фонтанська дорога, 11",70,2018-12-26,ТД/01/29,Банківські послуги,Інші витрати,134736,Центральний офіс,37120464,Україна,Комісія банку,26007002030506,state,2.00,"Київська філія АТ ""Місто банк""",26410346,юридична особа
Опозиційний Блок,"Полтавська область, Полтава, вулиця Європейська, 57",75,2018-12-26,3358,Поштові послуги та поширення друкованих матеріалів,Поштові послуги та поширення друкованих матеріалів,134735,Центральний офіс,37120464,Україна,Організація відправлень,26007002030506,state,860.86,"ТОВ ""Нова пошта""",31316718,юридична особа
Опозиційний Блок,"Одеська область, Одеса, Фонтанська дорога, 11",70,2018-12-26,ТД/01/21,Банківські послуги,Інші витрати,134734,Центральний офіс,37120464,Україна,Комісія банку,26007002030506,state,98.00,"Київська філія АТ ""Місто банк""",26410346,юридична особа
Опозиційний Блок,"Дніпропетровська область, Дніпро́, вулиця Курсантська, 24",70,2018-12-22,224419,Банківські послуги,Інші витрати,136807,Одеська обласна організація,39705145,Одеська область,розрахунково-касове обслуговування,26007010349074,current,1519.13,"ПАТ ""Банк Восток""",26237202,юридична особа
Опозиційний Блок,"Київ, вулиця Михайла Грушевського, 1Д",70,2018-12-22,TZ002BB961,Банківські послуги,Інші витрати,135254,Донецька обласна організація,39751914,Донецька область,комісія за кас.обслуг. банку,26007053610066,current,762.39,"ПАТ КБ ""Приватбанк""",14360570,юридична особа
Опозиційний Блок,"Київ, вулиця Героїв Космосу, 4",51,2018-12-22,190,Оплата ефірного часу на ТБ,Телереклама,134949,Дніпропетровська обласна організація,39750015,Дніпропетровська область,"Оплата за розміщення інформаційних матеріалів на телебаченні зг рах №1129 від 2018-12-17 р, у т.ч. ПДВ 20% = 804 671,92 грн.",2600813320,current,4828031.51,"ТОВ ""Медіа парнерство баінг""",38990495,юридична особа
Опозиційний Блок,"Київ, вулиця Андріївська, 4",70,2018-12-22,TR.12591325.25096009,Банківські послуги,Інші витрати,134948,Дніпропетровська обласна організація,39750015,Дніпропетровська область,Договорное списание комиссии за исходящий платеж со счета клиента с-но п. 2.6 тарифов ПУМБ по дог. 260854602 от 2015-06-24 .,2600813320,current,0.85,"ПАТ ""ПУМБ""",14282829,юридична особа
Опозиційний Блок,"Київ, вулиця Героїв Космосу, 4",51,2018-12-22,189,Оплата ефірного часу на ТБ,Телереклама,134947,Дніпропетровська обласна організація,39750015,Дніпропетровська область,"Оплата за розміщення інформаційних матеріалів на телебаченні зг прах №1128 від 2018-12-17 р, у т.ч. ПДВ 20% = 187 026,88 грн.",2600813320,current,1122161.26,"ТОВ ""Медіа парнерство баінг""",38990495,юридична особа
Опозиційний Блок,"Київ, вулиця Андріївська, 4",70,2018-12-22,TR.12591325.68096214,Банківські послуги,Інші витрати,134946,Дніпропетровська обласна організація,39750015,Дніпропетровська область,Договорное списание комиссии за исходящий платеж со счета клиента с-но п. 2.6 тарифов ПУМБ по дог. 260854602 от 2015-06-24 .,2600813320,current,0.85,"ПАТ ""ПУМБ""",14282829,юридична особа
Опозиційний Блок,"Київ, вулиця Героїв Космосу, 4",51,2018-12-22,188,Оплата ефірного часу на ТБ,Телереклама,134945,Дніпропетровська обласна організація,39750015,Дніпропетровська область,"Оплата за розміщення інформаційних матеріалів на телебаченні зг прах №1127 від 2018-12-17 р, у т.ч. ПДВ 20% = 140 864,84 грн.",2600813320,current,845189.06,"ТОВ ""Медіа парнерство баінг""",38990495,юридична особа
Опозиційний Блок,"Київ, вулиця Андріївська, 4",70,2018-12-22,TR.12591325.13292350,Банківські послуги,Інші витрати,134944,Дніпропетровська обласна організація,39750015,Дніпропетровська область,Договорное списание комиссии за исходящий платеж со счета клиента с-но п. 2.6 тарифов ПУМБ по дог. 260854602 от 2015-06-24 .,2600813320,current,0.85,"ПАТ ""ПУМБ""",14282829,юридична особа
Опозиційний Блок,"Донецька область, Маріуполь, вулиця Італійська, 84",79,2018-12-21,82,"Оренда будинків і приміщень та експлуатаційні витрати (прибирання, страхування орендованих будинків, охорона, сигналізація, ремонт, вивіз сміття, тощо)",Оренда нерухомості,138321,Маріупольська міська організація,39905107,Донецька область,Послуги охорони,2600214189,current,516.74,Маріупольський міжрайонний відділ управління поліції охорони в Донецькій області,40109084,юридична особа
Опозиційний Блок,"Донецька область, Маріуполь, вулиця Італійська, 84",79,2018-12-21,81,"Оренда будинків і приміщень та експлуатаційні витрати (прибирання, страхування орендованих будинків, охорона, сигналізація, ремонт, вивіз сміття, тощо)",Оренда нерухомості,138320,Маріупольська міська організація,39905107,Донецька область,Послуги охорони,2600214189,current,106.66,Маріупольський міжрайонний відділ управління поліції охорони в Донецькій області,40109084,юридична особа
Опозиційний Блок,"Київ, вулиця Андріївська, 4",70,2018-12-21,TR.12858232.474334723,Банківські послуги,Інші витрати,138319,Маріупольська міська організація,39905107,Донецька область,комісія,2600214189,current,0.85,"ПАТ ""ПУМБ""",14282829,юридична особа
Опозиційний Блок,"Київ, вулиця Андріївська, 4",70,2018-12-21,TR.12858232.444330193,Банківські послуги,Інші витрати,138318,Маріупольська міська організація,39905107,Донецька область,комісія,2600214189,current,0.85,"ПАТ ""ПУМБ""",14282829,юридична особа
Опозиційний Блок,"Донецька область, Маріуполь, вулиця Войнич, 2",79,2018-12-21,79,"Оренда будинків і приміщень та експлуатаційні витрати (прибирання, страхування орендованих будинків, охорона, сигналізація, ремонт, вивіз сміття, тощо)",Оренда нерухомості,138317,Маріупольська міська організація,39905107,Донецька область,за активну електроенергію,2600214189,current,2789.20,"ПАТ ""ДТЕК Донецькобленерго""",00131268,юридична особа
Опозиційний Блок,"Київ, вулиця Андріївська, 4",70,2018-12-21,TR.12858232.611341606,Банківські послуги,Інші витрати,138316,Маріупольська міська організація,39905107,Донецька область,комісія,2600214189,current,2.00,"ПАТ ""ПУМБ""",14282829,юридична особа
Опозиційний Блок,"Дніпропетровська область, Дніпро́, вулиця Херсонська, 26",76,2018-12-21,80,Послуги зв’язку,Послуги зв’язку,138315,Маріупольська міська організація,39905107,Донецька область,Телекомунікаційні послуги,2600214189,current,232.45,"ПАТ ""Укртелеком""",21560766,юридична особа
Опозиційний Блок,"Київ, вулиця Андріївська, 4",70,2018-12-21,TR.12858232.366494235,Банківські послуги,Інші витрати,138314,Маріупольська міська організація,39905107,Донецька область,комісія,2600214189,current,0.85,"ПАТ ""ПУМБ""",14282829,юридична особа
Опозиційний Блок,"Херсонська область, Каховка, вулиця Олеся Гончара, 2",79,2018-12-21,646,"Оренда будинків і приміщень та експлуатаційні витрати (прибирання, страхування орендованих будинків, охорона, сигналізація, ремонт, вивіз сміття, тощо)",Оренда нерухомості,137903,Херсонська обласна організація,37542218,Херсонська область,Оренда приміщення,2600843677,state,5000.00,"ТОВ ""Південукрводбуд""",35668126,юридична особа
Опозиційний Блок,"Київ, вулиця Андріївська, 4",70,2018-12-21,TR.27364736.523807573,Банківські послуги,Інші витрати,137902,Херсонська обласна організація,37542218,Херсонська область,договірне списання сум комісії,2600843677,state,1.50,"ПАТ ""ПУМБ""",14282829,юридична особа
Опозиційний Блок,"Київ, вулиця Андріївська, 4",70,2018-12-21,TR.27364736.43389514,Банківські послуги,Інші витрати,137901,Херсонська обласна організація,37542218,Херсонська область,договірне списання сум комісії,2600843677,state,1.50,"ПАТ ""ПУМБ""",14282829,юридична особа
Опозиційний Блок,"Київ, вулиця Андріївська, 4",70,2018-12-21,TR.27364736.970907242,Банківські послуги,Інші витрати,137900,Херсонська обласна організація,37542218,Херсонська область,договірне списання сум комісії,2600843677,state,1.50,"ПАТ ""ПУМБ""",14282829,юридична особа
Опозиційний Блок,"Київ, вулиця Андріївська, 4",70,2018-12-21,TR.27364736.198080441,Банківські послуги,Інші витрати,137899,Херсонська обласна організація,37542218,Херсонська область,договірне списання сум комісії,2600843677,state,1.50,"ПАТ ""ПУМБ""",14282829,юридична особа
Опозиційний Блок,"Київ, вулиця Андріївська, 4",70,2018-12-21,TR.27364736.124126178,Банківські послуги,Інші витрати,137898,Херсонська обласна організація,37542218,Херсонська область,договірне списання сум комісії,2600843677,state,1.50,"ПАТ ""ПУМБ""",14282829,юридична особа
Опозиційний Блок,"Київ, вулиця Андріївська, 4",70,2018-12-21,TR.27364736.397844526,Банківські послуги,Інші витрати,137897,Херсонська обласна організація,37542218,Херсонська область,договірне списання сум комісії,2600843677,state,1.50,"ПАТ ""ПУМБ""",14282829,юридична особа
Опозиційний Блок,"Київ, вулиця Андріївська, 4",70,2018-12-21,TR.27364736.531117435,Банківські послуги,Інші витрати,137896,Херсонська обласна організація,37542218,Херсонська область,договірне списання сум комісії,2600843677,state,1.50,"ПАТ ""ПУМБ""",14282829,юридична особа
Опозиційний Блок,"Київ, вулиця Андріївська, 4",70,2018-12-21,TR.27364736.41289958,Банківські послуги,Інші витрати,137895,Херсонська обласна організація,37542218,Херсонська область,договірне списання сум комісії,2600843677,state,1.50,"ПАТ ""ПУМБ""",14282829,юридична особа
Опозиційний Блок,"Херсонська область, Херсон, провулок Козацький, 10",61,2018-12-21,619,Військовий збір,Податкові платежі,137894,Херсонська обласна організація,37542218,Херсонська область,"в/с 1,5% зарплата 2018-12-21",2600843677,state,3183.99,УДКСУ у м. Херсон,37959779,юридична особа
Опозиційний Блок,"Київ, вулиця Андріївська, 4",70,2018-12-21,TR.27364736.452081010,Банківські послуги,Інші витрати,137893,Херсонська обласна організація,37542218,Херсонська область,договірне списання сум комісії,2600843677,state,1.50,"ПАТ ""ПУМБ""",14282829,юридична особа
Опозиційний Блок,"Київ, вулиця Андріївська, 4",70,2018-12-21,TR.27364736.458975209,Банківські послуги,Інші витрати,137892,Херсонська обласна організація,37542218,Херсонська область,договірне списання сум комісії,2600843677,state,1.50,"ПАТ ""ПУМБ""",14282829,юридична особа
Опозиційний Блок,"Херсонська область, Херсон, провулок Козацький, 10",63,2018-12-21,618,Податок на доходи,Податкові платежі,137891,Херсонська обласна організація,37542218,Херсонська область,ПДФО 18% зарплата 2018-12-21,2600843677,state,38207.92,УДКСУ у м. Херсон,37959779,юридична особа
Опозиційний Блок,"Херсонська область, Херсон, вулиця Перекопська, 20",79,2018-12-21,647,"Оренда будинків і приміщень та експлуатаційні витрати (прибирання, страхування орендованих будинків, охорона, сигналізація, ремонт, вивіз сміття, тощо)",Оренда нерухомості,137890,Херсонська обласна організація,37542218,Херсонська область,оренда офісного приміщення,2600843677,state,1791.60,"ПАТ ""Херсонводпроект""",01038476,юридична особа
Опозиційний Блок,"Київ, вулиця Андріївська, 4",70,2018-12-21,TR.27364736.707641904,Банківські послуги,Інші витрати,137889,Херсонська обласна організація,37542218,Херсонська область,договірне списання сум комісії,2600843677,state,1.50,"ПАТ ""ПУМБ""",14282829,юридична особа
Опозиційний Блок,"Київ, вулиця Андріївська, 4",70,2018-12-21,TR.27364736.720649909,Банківські послуги,Інші витрати,137888,Херсонська обласна організація,37542218,Херсонська область,договірне списання сум комісії,2600843677,state,1.50,"ПАТ ""ПУМБ""",14282829,юридична особа
Опозиційний Блок,"Київ, вулиця Андріївська, 4",70,2018-12-21,TR.27364736.998800800,Банківські послуги,Інші витрати,137887,Херсонська обласна організація,37542218,Херсонська область,договірне списання сум комісії,2600843677,state,1.50,"ПАТ ""ПУМБ""",14282829,юридична особа
Опозиційний Блок,"Київ, вулиця Андріївська, 4",70,2018-12-21,TR.27364736.236837021,Банківські послуги,Інші витрати,137886,Херсонська обласна організація,37542218,Херсонська область,договірне списання сум комісії,2600843677,state,1.50,"ПАТ ""ПУМБ""",14282829,юридична особа
Опозиційний Блок,"Київ, вулиця Андріївська, 4",70,2018-12-21,TR.27364736.146038552,Банківські послуги,Інші витрати,137885,Херсонська обласна організація,37542218,Херсонська область,договірне списання сум комісії,2600843677,state,1.50,"ПАТ ""ПУМБ""",14282829,юридична особа
Опозиційний Блок,"Київ, вулиця Андріївська, 4",70,2018-12-21,TR.27364736.135883583,Банківські послуги,Інші витрати,137884,Херсонська обласна організація,37542218,Херсонська область,договірне списання сум комісії,2600843677,state,1.50,"ПАТ ""ПУМБ""",14282829,юридична особа
Опозиційний Блок,"Київ, вулиця Андріївська, 4",70,2018-12-21,TR.27364736.369615574,Банківські послуги,Інші витрати,137883,Херсонська обласна організація,37542218,Херсонська область,договірне списання сум комісії,2600843677,state,1.50,"ПАТ ""ПУМБ""",14282829,юридична особа
Опозиційний Блок,"Київ, вулиця Андріївська, 4",70,2018-12-21,TR.27364736.439423536,Банківські послуги,Інші витрати,137882,Херсонська обласна організація,37542218,Херсонська область,договірне списання сум комісії,2600843677,state,1.50,"ПАТ ""ПУМБ""",14282829,юридична особа
Опозиційний Блок,"Київ, вулиця Андріївська, 4",70,2018-12-21,TR.27364736.403182407,Банківські послуги,Інші витрати,137881,Херсонська обласна організація,37542218,Херсонська область,договірне списання сум комісії,2600843677,state,1.50,"ПАТ ""ПУМБ""",14282829,юридична особа
Опозиційний Блок,"Київ, вулиця Андріївська, 4",70,2018-12-21,TR.27364736.947600341,Банківські послуги,Інші витрати,137880,Херсонська обласна організація,37542218,Херсонська область,договірне списання сум комісії,2600843677,state,1.50,"ПАТ ""ПУМБ""",14282829,юридична особа
Опозиційний Блок,"Київ, вулиця Андріївська, 4",70,2018-12-21,TR.27364736.40736104,Банківські послуги,Інші витрати,137879,Херсонська обласна організація,37542218,Херсонська область,договірне списання сум комісії,2600843677,state,1.50,"ПАТ ""ПУМБ""",14282829,юридична особа
Опозиційний Блок,"Херсонська область, Херсон, вулиця Іллюши Кулика, 143А",62,2018-12-21,620,Сплата ЄСВ,Податкові платежі,137878,Херсонська обласна організація,37542218,Херсонська область,ЄСВ 22% зарплата 2018-12-21,2600843677,state,45570.09,Херсонська ОДПІ ГУ ДФС у Херсонській області,39473382,юридична особа
Опозиційний Блок,"Херсонська область, Херсон, вулиця Лютеранська, 24",73,2018-12-21,614,Придбання меблів,Придбання меблів,137877,Херсонська обласна організація,37542218,Херсонська область,Офісні меблі,2600843677,state,3320.00,"ПП ""ЛТ-офіс""",31917623,юридична особа
Опозиційний Блок,"Херсонська область, Високопільський район, Високопілля",84,2018-12-21,637,"Заробітна плата, премії","Заробітна плата, лікарняні, вагітності, відрядження, компенсації",137725,Херсонська обласна організація,37542218,Херсонська область,заробітна плата та премія за грудень 2018р,2600843677,state,6440.00,Етюк Андрій Анатолійович,,фізична особа
Опозиційний Блок,"Херсонська область, Бериславський район, Берислав",84,2018-12-21,622,"Заробітна плата, премії","Заробітна плата, лікарняні, вагітності, відрядження, компенсації",137724,Херсонська обласна організація,37542218,Херсонська область,заробітна плата та премія за грудень 2018р,2600843677,state,6440.00,Лаврушина Ольга Степанівна,,фізична особа
Опозиційний Блок,"Херсонська область, Скадовський район, Скадовськ",84,2018-12-21,641,"Заробітна плата, премії","Заробітна плата, лікарняні, вагітності, відрядження, компенсації",137723,Херсонська обласна організація,37542218,Херсонська область,заробітна плата та премія за грудень 2018р,2600843677,state,5957.00,Лавриненко Азгануш Геворгівна,,фізична особа
Опозиційний Блок,"Херсонська область, Херсон",84,2018-12-21,643,"Заробітна плата, премії","Заробітна плата, лікарняні, вагітності, відрядження, компенсації",137722,Херсонська обласна організація,37542218,Херсонська область,заробітна плата та премія за грудень 2018р,2600843677,state,5635.00,Середа Анна Олександрівна,,фізична особа
Опозиційний Блок,"Херсонська область, Херсон",84,2018-12-21,636,"Заробітна плата, премії","Заробітна плата, лікарняні, вагітності, відрядження, компенсації",137721,Херсонська обласна організація,37542218,Херсонська область,заробітна плата та премія за грудень 2018р,2600843677,state,6440.00,Мангушев Валентин Євгенович,,фізична особа
Опозиційний Блок,"Херсонська область, Херсон",84,2018-12-21,631,"Заробітна плата, премії","Заробітна плата, лікарняні, вагітності, відрядження, компенсації",137720,Херсонська обласна організація,37542218,Херсонська область,заробітна плата та премія за грудень 2018р,2600843677,state,6440.00,Віткова Олена Михайлівна,,фізична особа
Опозиційний Блок,"Херсонська область, Херсон",84,2018-12-21,440,"Заробітна плата, премії","Заробітна плата, лікарняні, вагітності, відрядження, компенсації",137719,Херсонська обласна організація,37542218,Херсонська область,заробітна плата та премія за грудень 2018р,2600843677,state,11672.50,Коноплицька Марина Олексіївна,,фізична особа
Опозиційний Блок,"Херсонська область, Іванівський район",84,2018-12-21,623,"Заробітна плата, премії","Заробітна плата, лікарняні, вагітності, відрядження, компенсації",137718,Херсонська обласна організація,37542218,Херсонська область,заробітна плата та премія за грудень 2018р,2600843677,state,6440.00,Попурій Іван Іванович,,фізична особа
Опозиційний Блок,"Херсонська область, Каховка",84,2018-12-21,645,"Заробітна плата, премії","Заробітна плата, лікарняні, вагітності, відрядження, компенсації",137717,Херсонська обласна організація,37542218,Херсонська область,заробітна плата та премія за грудень 2018р,2600843677,state,6440.00,Савельєва Ольга Степанівна,,фізична особа
Опозиційний Блок,"Херсонська область, Генічеський район, Генічеськ",84,2018-12-21,640,"Заробітна плата, премії","Заробітна плата, лікарняні, вагітності, відрядження, компенсації",137716,Херсонська обласна організація,37542218,Херсонська область,заробітна плата та премія за грудень 2018р,2600843677,state,6440.00,Погорілець Станіслав Сергійович,,фізична особа
Опозиційний Блок,"Херсонська область, Голопристанський район, Гола Пристань",84,2018-12-21,632,"Заробітна плата, премії","Заробітна плата, лікарняні, вагітності, відрядження, компенсації",137715,Херсонська обласна організація,37542218,Херсонська область,заробітна плата та премія за грудень 2018р,2600843677,state,6684.49,Черняєва Ольга Василівна,,фізична особа
Опозиційний Блок,"Херсонська область, Бериславський район, Берислав",84,2018-12-21,628,"Заробітна плата, премії","Заробітна плата, лікарняні, вагітності, відрядження, компенсації",137714,Херсонська обласна організація,37542218,Херсонська область,заробітна плата та премія за грудень 2018р,2600843677,state,6440.00,Курбачов Дмитро Володимирович,,фізична особа
Опозиційний Блок,"Херсонська область, Білозерський район",84,2018-12-21,624,"Заробітна плата, премії","Заробітна плата, лікарняні, вагітності, відрядження, компенсації",137713,Херсонська обласна організація,37542218,Херсонська область,заробітна плата та премія за грудень 2018р,2600843677,state,6440.00,Пожернюк Ігор Ярославович,,фізична особа
Опозиційний Блок,"Херсонська область, Херсон",84,2018-12-21,642,"Заробітна плата, премії","Заробітна плата, лікарняні, вагітності, відрядження, компенсації",137712,Херсонська обласна організація,37542218,Херсонська область,заробітна плата та премія за грудень 2018р,2600843677,state,8050.00,Згодько Андрій Дмитрович,,фізична особа
Опозиційний Блок,"Херсонська область, Олешківський район, Олешки",84,2018-12-21,635,"Заробітна плата, премії","Заробітна плата, лікарняні, вагітності, відрядження, компенсації",137711,Херсонська обласна організація,37542218,Херсонська область,заробітна плата та премія за грудень 2018р,2600843677,state,6440.00,Оборіна Любов Леонтіївна,,фізична особа
Опозиційний Блок,"Херсонська область, Каховка",84,2018-12-21,644,"Заробітна плата, премії","Заробітна плата, лікарняні, вагітності, відрядження, компенсації",137710,Херсонська обласна організація,37542218,Херсонська область,заробітна плата та премія за грудень 2018р,2600843677,state,6440.00,Молчанова Олена Віталіївна,,фізична особа
Опозиційний Блок,"Херсонська область, Великолепетиський район",84,2018-12-21,639,"Заробітна плата, премії","Заробітна плата, лікарняні, вагітності, відрядження, компенсації",137709,Херсонська обласна організація,37542218,Херсонська область,заробітна плата та премія за грудень 2018р,2600843677,state,6440.00,Якименко Валентина Григорівна,,фізична особа
Опозиційний Блок,"Херсонська область, Херсон",84,2018-12-21,638,"Заробітна плата, премії","Заробітна плата, лікарняні, вагітності, відрядження, компенсації",137708,Херсонська обласна організація,37542218,Херсонська область,заробітна плата та премія за грудень 2018р,2600843677,state,6440.00,Лучко Віталій Геннадійович,,фізична особа
Опозиційний Блок,"Херсонська область, Новотроїцький район, Новотроїцьке",84,2018-12-21,634,"Заробітна плата, премії","Заробітна плата, лікарняні, вагітності, відрядження, компенсації",137707,Херсонська обласна організація,37542218,Херсонська область,заробітна плата та премія за грудень 2018р,2600843677,state,6440.00,Ковальчук Михайло Васильович,,фізична особа
Опозиційний Блок,"Херсонська область, Голопристанський район, Гола Пристань",84,2018-12-21,629,"Заробітна плата, премії","Заробітна плата, лікарняні, вагітності, відрядження, компенсації",137706,Херсонська обласна організація,37542218,Херсонська область,заробітна плата та премія за грудень 2018р,2600843677,state,6440.00,Черняєв Андрій Володимирович,,фізична особа
Опозиційний Блок,"Херсонська область, Нова Каховка",84,2018-12-21,625,"Заробітна плата, премії","Заробітна плата, лікарняні, вагітності, відрядження, компенсації",137705,Херсонська обласна організація,37542218,Херсонська область,заробітна плата та премія за грудень 2018р,2600843677,state,6440.00,Романова Катерина Віталіївна,,фізична особа
Опозиційний Блок,"Херсонська область, Білозерський район",84,2018-12-21,621,"Заробітна плата, премії","Заробітна плата, лікарняні, вагітності, відрядження, компенсації",137704,Херсонська обласна організація,37542218,Херсонська область,заробітна плата та премія за грудень 2018р,2600843677,state,8905.32,Ільмієв Дмитро Вадимович,,фізична особа
Опозиційний Блок,"Херсонська область, Херсон",58,2018-12-21,615,"Виготовлення друкованих матеріалів (плакатів, листівок, буклетів та інших агітаційних матеріалів)",Друкована агітація,137703,Херсонська обласна організація,37542218,Херсонська область,друкована продукція,2600843677,state,268600.00,Гуськов Дмитро Олександрович,,фізична особа
Опозиційний Блок,"Херсонська область, Херсон",72,2018-12-21,613,"Придбання, ремонт офісної техніки та програмного забезпечення (Бухгалтерські програми, Ліга.закон, домени)",Придбання офісної техніки та програмного забезпечення,137702,Херсонська обласна організація,37542218,Херсонська область,компʼютерні приладдя,2600843677,state,16675.00,Гуськов Дмитро Олександрович,,фізична особа
Опозиційний Блок,"Херсонська область, Великоолександрівський район",84,2018-12-21,633,"Заробітна плата, премії","Заробітна плата, лікарняні, вагітності, відрядження, компенсації",137701,Херсонська обласна організація,37542218,Херсонська область,заробітна плата та премія за грудень 2018р,2600843677,state,6440.00,Косова Наталія Ігорівна,,фізична особа
Опозиційний Блок,"Херсонська область, Нижньосірогозький район",84,2018-12-21,630,"Заробітна плата, премії","Заробітна плата, лікарняні, вагітності, відрядження, компенсації",137700,Херсонська обласна організація,37542218,Херсонська область,заробітна плата та премія за грудень 2018р,2600843677,state,6440.00,Висоцька Віра Михайлівна,,фізична особа
Опозиційний Блок,"Херсонська область, Херсон",84,2018-12-21,626,"Заробітна плата, премії","Заробітна плата, лікарняні, вагітності, відрядження, компенсації",137699,Херсонська обласна організація,37542218,Херсонська область,заробітна плата та премія за грудень 2018р,2600843677,state,8050.00,Сьомін Олександр Володимирович,,фізична особа
Опозиційний Блок,"Харківська область, Харків, вулиця Алчевських, 30",70,2018-12-21,RCO1932_1056,Банківські послуги,Інші витрати,137561,Харківська обласна організація,41806019,Харківська область,списання коштів за банківське обслуговування згідно договору 8984,26002113221,state,6.12,"ПАТ ""Мегабанк""",09804119,юридична особа
Опозиційний Блок,"Харківська область, Борівський район, Борова",79,2018-12-21,212,"Оренда будинків і приміщень та експлуатаційні витрати (прибирання, страхування орендованих будинків, охорона, сигналізація, ремонт, вивіз сміття, тощо)",Оренда нерухомості,137400,Харківська обласна організація,41806019,Харківська область,оренда приміщення грудень 2018р,26002113221,state,2410.94,Божко Віталій Вікторович,,фізична особа
Опозиційний Блок,"Одеська область, Одеса, вулиця Академіка Вільямса, 59 е",79,2018-12-21,249,"Оренда будинків і приміщень та експлуатаційні витрати (прибирання, страхування орендованих будинків, охорона, сигналізація, ремонт, вивіз сміття, тощо)",Оренда нерухомості,136948,Одеська обласна організація,39705145,Одеська область,Оренда нежилого приміщення у грудні місяці 2018 року згідно договору від 2017-09-15. Акт № 12 від 2018-12-31. Без ПДВ,26008020349074,state,58000.00,"ТОВ ""ЛІДЕР ШИП МЕНЕДЖМЕНТ""",39596883,юридична особа
Опозиційний Блок,"Одеська область, Одеса, Французький бульвар, 7",62,2018-12-21,248,Сплата ЄСВ,Податкові платежі,136947,Одеська обласна організація,39705145,Одеська область,"Сплата єдиного внеску 8,41%, 22% нарахованого на зар.плату",26008020349074,state,82895.31,ДПІ у Приморському районі м. Одеси ГУ ДФС в Одеській області,39565511,юридична особа
Опозиційний Блок,"Одеська область, Одеса, вулиця Черняховського, 6",63,2018-12-21,247,Податок на доходи,Податкові платежі,136946,Одеська обласна організація,39705145,Одеська область,"Податок з доходів фізичних осіб, утриманий із зар.плати 18%.",26008020349074,state,70088.48,УДКСУ у м. Одесі,38016923,юридична особа
Опозиційний Блок,"Одеська область, Одеса, вулиця Черняховського, 6",61,2018-12-21,246,Військовий збір,Податкові платежі,136945,Одеська обласна організація,39705145,Одеська область,"Сплата військового збору, утриманого із зар. плати, 1,5%.",26008020349074,state,5840.71,УДКСУ у м. Одесі,38016923,юридична особа
Опозиційний Блок,"Одеська область, Одеса",84,2018-12-21,245,"Заробітна плата, премії","Заробітна плата, лікарняні, вагітності, відрядження, компенсації",136925,Одеська обласна організація,39705145,Одеська область,Заробітна плата,26008020349074,state,6525.88,Приходько Ілона Ігорівна,,фізична особа
Опозиційний Блок,"Одеська область, Одеса",84,2018-12-21,245,"Заробітна плата, премії","Заробітна плата, лікарняні, вагітності, відрядження, компенсації",136924,Одеська обласна організація,39705145,Одеська область,Заробітна плата,26008020349074,state,6525.88,Олійник Олександра Володимирівна,,фізична особа
Опозиційний Блок,"Одеська область, Одеса",84,2018-12-21,245,"Заробітна плата, премії","Заробітна плата, лікарняні, вагітності, відрядження, компенсації",136923,Одеська обласна організація,39705145,Одеська область,Заробітна плата,26008020349074,state,15939.00,Дрьомов Микола Іванович,,фізична особа
Опозиційний Блок,"Одеська область, Арцизький район",84,2018-12-21,245,"Заробітна плата, премії","Заробітна плата, лікарняні, вагітності, відрядження, компенсації",136922,Одеська обласна організація,39705145,Одеська область,Заробітна плата,26008020349074,state,7749.51,Добрякова Ольга Григорівна,,фізична особа
Опозиційний Блок,"Одеська область, Одеса",84,2018-12-21,245,"Заробітна плата, премії","Заробітна плата, лікарняні, вагітності, відрядження, компенсації",136921,Одеська обласна організація,39705145,Одеська область,Заробітна плата,26008020349074,state,4964.13,Поросюк Оксана Петрівна,,фізична особа
Опозиційний Блок,"Одеська область, Подільський район",84,2018-12-21,245,"Заробітна плата, премії","Заробітна плата, лікарняні, вагітності, відрядження, компенсації",136920,Одеська обласна організація,39705145,Одеська область,Заробітна плата,26008020349074,state,8283.36,Буяновський Максим Олександрович,,фізична особа
Опозиційний Блок,"Одеська область, Одеса",84,2018-12-21,245,"Заробітна плата, премії","Заробітна плата, лікарняні, вагітності, відрядження, компенсації",136919,Одеська обласна організація,39705145,Одеська область,Заробітна плата,26008020349074,state,8189.01,Верченко Сергій Валерійович,,фізична особа
Опозиційний Блок,"Одеська область, Одеса",84,2018-12-21,245,"Заробітна плата, премії","Заробітна плата, лікарняні, вагітності, відрядження, компенсації",136918,Одеська обласна організація,39705145,Одеська область,Заробітна плата,26008020349074,state,11914.00,Гулак Галина Сергіївна,,фізична особа
Опозиційний Блок,"Одеська область, Одеса",84,2018-12-21,245,"Заробітна плата, премії","Заробітна плата, лікарняні, вагітності, відрядження, компенсації",136917,Одеська обласна організація,39705145,Одеська область,Заробітна плата,26008020349074,state,10196.71,Малюта Людмила Анатоліївна,,фізична особа
Опозиційний Блок,"Одеська область, Одеса",84,2018-12-21,245,"Заробітна плата, премії","Заробітна плата, лікарняні, вагітності, відрядження, компенсації",136916,Одеська обласна організація,39705145,Одеська область,Заробітна плата,26008020349074,state,17848.57,Рибалка Лада Вʼячеславівна,,фізична особа
Опозиційний Блок,"Одеська область, Болградський район",84,2018-12-21,245,"Заробітна плата, премії","Заробітна плата, лікарняні, вагітності, відрядження, компенсації",136915,Одеська обласна організація,39705145,Одеська область,Заробітна плата,26008020349074,state,8268.99,Брага Поліна Іванівна,,фізична особа
Опозиційний Блок,"Одеська область, Кодимський район",84,2018-12-21,245,"Заробітна плата, премії","Заробітна плата, лікарняні, вагітності, відрядження, компенсації",136914,Одеська обласна організація,39705145,Одеська область,Заробітна плата,26008020349074,state,8283.36,Підлісна Любов Віталіївна,,фізична особа
Опозиційний Блок,"Одеська область, Ізмаїльський район",84,2018-12-21,245,"Заробітна плата, премії","Заробітна плата, лікарняні, вагітності, відрядження, компенсації",136913,Одеська обласна організація,39705145,Одеська область,Заробітна плата,26008020349074,state,8283.36,Ківалова Ольга Іванівна,,фізична особа
Опозиційний Блок,"Одеська область, Одеса",84,2018-12-21,245,"Заробітна плата, премії","Заробітна плата, лікарняні, вагітності, відрядження, компенсації",136912,Одеська обласна організація,39705145,Одеська область,Заробітна плата,26008020349074,state,10899.17,Чистякова Тетяна Анатоліївна,,фізична особа
Опозиційний Блок,"Одеська область, Одеса",84,2018-12-21,245,"Заробітна плата, премії","Заробітна плата, лікарняні, вагітності, відрядження, компенсації",136911,Одеська обласна організація,39705145,Одеська область,Заробітна плата,26008020349074,state,10899.17,Нагаєць Олександр Олексійович,,фізична особа
Опозиційний Блок,"Одеська область, Одеса",84,2018-12-21,245,"Заробітна плата, премії","Заробітна плата, лікарняні, вагітності, відрядження, компенсації",136910,Одеська обласна організація,39705145,Одеська область,Заробітна плата,26008020349074,state,8283.36,Маркова Карина Петрівна,,фізична особа
Опозиційний Блок,"Одеська область, Одеса",84,2018-12-21,245,"Заробітна плата, премії","Заробітна плата, лікарняні, вагітності, відрядження, компенсації",136909,Одеська обласна організація,39705145,Одеська область,Заробітна плата,26008020349074,state,10899.17,Клунко Володимир Михайлович,,фізична особа
Опозиційний Блок,"Одеська область, Одеса",84,2018-12-21,245,"Заробітна плата, премії","Заробітна плата, лікарняні, вагітності, відрядження, компенсації",136908,Одеська обласна організація,39705145,Одеська область,Заробітна плата,26008020349074,state,16398.59,Щукіна Вікторія Ігорівна,,фізична особа
Опозиційний Блок,"Одеська область, Біляївський район",84,2018-12-21,245,"Заробітна плата, премії","Заробітна плата, лікарняні, вагітності, відрядження, компенсації",136907,Одеська обласна організація,39705145,Одеська область,Заробітна плата,26008020349074,state,18220.96,Непомняща Юлія Вікторівна,,фізична особа
Опозиційний Блок,"Одеська область, Одеса",84,2018-12-21,245,"Заробітна плата, премії","Заробітна плата, лікарняні, вагітності, відрядження, компенсації",136906,Одеська обласна організація,39705145,Одеська область,Заробітна плата,26008020349074,state,19618.47,Челак Григорій Петрович,,фізична особа
Опозиційний Блок,"Одеська область, Овідіопольський район",84,2018-12-21,245,"Заробітна плата, премії","Заробітна плата, лікарняні, вагітності, відрядження, компенсації",136905,Одеська обласна організація,39705145,Одеська область,Заробітна плата,26008020349074,state,19069.23,Дергунова Ірина Василівна,,фізична особа
Опозиційний Блок,"Одеська область, Одеса",84,2018-12-21,245,"Заробітна плата, премії","Заробітна плата, лікарняні, вагітності, відрядження, компенсації",136904,Одеська обласна організація,39705145,Одеська область,Заробітна плата,26008020349074,state,24440.25,Дімова Оксана Валентинівна,,фізична особа
Опозиційний Блок,"Одеська область, Лиманський район",84,2018-12-21,245,"Заробітна плата, премії","Заробітна плата, лікарняні, вагітності, відрядження, компенсації",136903,Одеська обласна організація,39705145,Одеська область,Заробітна плата,26008020349074,state,26112.43,Бабанський Василь Маркович,,фізична особа
Опозиційний Блок,"Одеська область, Одеса",84,2018-12-21,245,"Заробітна плата, премії","Заробітна плата, лікарняні, вагітності, відрядження, компенсації",136902,Одеська обласна організація,39705145,Одеська область,Заробітна плата,26008020349074,state,25638.73,Шкарівський Вадим Миколайович,,фізична особа
Опозиційний Блок,"Миколаївська область, Миколаїв, вулиця Декабристів, 41",79,2018-12-21,392,"Оренда будинків і приміщень та експлуатаційні витрати (прибирання, страхування орендованих будинків, охорона, сигналізація, ремонт, вивіз сміття, тощо)",Оренда нерухомості,136798,Миколаївська обласна організація,39751851,Миколаївська область,Орендна плата за грудень,2600313370,current,5004.60,"ТОВ ""БізнесХолл""",34033604,юридична особа
Опозиційний Блок,"Київ, вулиця Волоська, 6/14",67,2018-12-21,395,"Повернення коштів, що надійшли з державного бюджету","Повернення коштів, що надійшли з державного бюджету",136797,Миколаївська обласна організація,39751851,Миколаївська область,Повернення не використаних коштів на фінансування статутної діяльності,2600313370,current,138.00,Центральний офіс Опозиційний блок,37120464,юридична особа
Опозиційний Блок,"Київ, вулиця Андріївська, 4",70,2018-12-21,TR.12603060.983466485,Банківські послуги,Інші витрати,136796,Миколаївська обласна організація,39751851,Миколаївська область,Договірне списання комісії,2600313370,current,2.00,"ПАТ ""ПУМБ""",14282829,юридична особа
Опозиційний Блок,"Київ, вулиця Бастіонна, 6",67,2018-12-21,395,"Повернення коштів, що надійшли з державного бюджету","Повернення коштів, що надійшли з державного бюджету",136463,Миколаївська обласна організація,39751851,Миколаївська область,2.2. Відомості про повернення коштів з рахунку для отримання коштів з Державного бюджету України на фінансування статутної діяльності,2600313370,current,138.00,ГУ ДКСУ,20055032,державний бюджет
Опозиційний Блок,"Запорізька область, Запоріжжя, вулиця Перемоги, 14",62,2018-12-21,328,Сплата ЄСВ,Податкові платежі,135768,Запорізька обласна організація,37526809,Запорізька область,ЄСВ 22% з/пл 12/18.,2600143377,state,21500.92,Запорізька ОДПІ ГУ ДФС у Запорізькій області,39488184,юридична особа
Опозиційний Блок,"Запорізька область, Запоріжжя, проспект Соборний, 168",61,2018-12-21,330,Військовий збір,Податкові платежі,135767,Запорізька обласна організація,37526809,Запорізька область,"в/с 1,5% з/пл 12/18.",2600143377,state,1569.75,УДКСУ у м. Запоріжжі,38025409,юридична особа
Опозиційний Блок,"Запорізька область, Запоріжжя, вулиця Сєдова, 16",58,2018-12-21,322,"Виготовлення друкованих матеріалів (плакатів, листівок, буклетів та інших агітаційних матеріалів)",Друкована агітація,135766,Запорізька обласна організація,37526809,Запорізька область,Оплата за друк газети,2600143377,state,63030.96,"ТОВ ВД ""Кераміст""",31122120,юридична особа
Опозиційний Блок,"Запорізька область, Запоріжжя, проспект Соборний, 168",63,2018-12-21,329,Податок на доходи,Податкові платежі,135765,Запорізька обласна організація,37526809,Запорізька область,ПДФО 18% з/пл 12/18.,2600143377,state,18837.00,УДКСУ у м. Запоріжжі,38025409,юридична особа
Опозиційний Блок,"Запорізька область, Запоріжжя, проспект Соборний, 133",75,2018-12-21,324,Поштові послуги та поширення друкованих матеріалів,Поштові послуги та поширення друкованих матеріалів,135764,Запорізька обласна організація,37526809,Запорізька область,Оплата за розповсюдження газети,2600143377,state,107912.00,"Запорізька дирекція ПАТ ""Укрпошта""",20509800,юридична особа
Опозиційний Блок,"Київ, вулиця Андріївська, 4",70,2018-12-21,326,Банківські послуги,Інші витрати,135763,Запорізька обласна організація,37526809,Запорізька область,Комісія банку,2600143377,state,421.22,"ПАТ ""ПУМБ""",14282829,юридична особа
Опозиційний Блок,"Запорізька область, Запоріжжя, вулиця Сєдова, 16",58,2018-12-21,323,"Виготовлення друкованих матеріалів (плакатів, листівок, буклетів та інших агітаційних матеріалів)",Друкована агітація,135762,Запорізька обласна організація,37526809,Запорізька область,Оплата за друк газети,2600143377,state,20400.00,"ТОВ ВД ""Кераміст""",31122120,юридична особа
Опозиційний Блок,"Запорізька область, Запоріжжя, вулиця Сєдова, 16",58,2018-12-21,321,"Виготовлення друкованих матеріалів (плакатів, листівок, буклетів та інших агітаційних матеріалів)",Друкована агітація,135761,Запорізька обласна організація,37526809,Запорізька область,Оплата за друк газети,2600143377,state,63030.96,"ТОВ ВД ""Кераміст""",31122120,юридична особа
Опозиційний Блок,"Запорізька область, Запоріжжя",52,2018-12-21,325,Інша реклама (без класифікації),Реклама (без класифікації),135733,Запорізька обласна організація,37526809,Запорізька область,Оплата за просування матеріалів,2600143377,state,10000.00,Бєліков О Ю,,фізична особа
Опозиційний Блок,"Запорізька область, Запоріжжя",84,2018-12-21,327,"Заробітна плата, премії","Заробітна плата, лікарняні, вагітності, відрядження, компенсації",135732,Запорізька обласна організація,37526809,Запорізька область,Заробітна плата за грудень 2018 р.,2600143377,state,12075.00,Казка А А,,фізична особа
Опозиційний Блок,"Запорізька область, Запоріжжя",84,2018-12-21,327,"Заробітна плата, премії","Заробітна плата, лікарняні, вагітності, відрядження, компенсації",135731,Запорізька обласна організація,37526809,Запорізька область,Заробітна плата за грудень 2018 р.,2600143377,state,10022.25,Юрченко А Л,,фізична особа
Опозиційний Блок,"Запорізька область, Запоріжжя",84,2018-12-21,327,"Заробітна плата, премії","Заробітна плата, лікарняні, вагітності, відрядження, компенсації",135730,Запорізька обласна організація,37526809,Запорізька область,Заробітна плата за грудень 2018 р.,2600143377,state,10022.25,Баль Г І,,фізична особа
Опозиційний Блок,"Запорізька область, Запоріжжя",84,2018-12-21,327,"Заробітна плата, премії","Заробітна плата, лікарняні, вагітності, відрядження, компенсації",135729,Запорізька обласна організація,37526809,Запорізька область,Заробітна плата за грудень 2018 р.,2600143377,state,10062.50,Татевосян О Я,,фізична особа
Опозиційний Блок,"Запорізька область, Запоріжжя",84,2018-12-21,327,"Заробітна плата, премії","Заробітна плата, лікарняні, вагітності, відрядження, компенсації",135728,Запорізька обласна організація,37526809,Запорізька область,Заробітна плата за грудень 2018 р.,2600143377,state,10022.25,Гарус О В,,фізична особа
Опозиційний Блок,"Запорізька область, Запоріжжя",84,2018-12-21,327,"Заробітна плата, премії","Заробітна плата, лікарняні, вагітності, відрядження, компенсації",135727,Запорізька обласна організація,37526809,Запорізька область,Заробітна плата за грудень 2018 р.,2600143377,state,9016.00,Захарова Н В,,фізична особа
Опозиційний Блок,"Запорізька область, Запоріжжя",84,2018-12-21,327,"Заробітна плата, премії","Заробітна плата, лікарняні, вагітності, відрядження, компенсації",135726,Запорізька обласна організація,37526809,Запорізька область,Заробітна плата за грудень 2018 р.,2600143377,state,14007.00,Матвєєва О І,,фізична особа
Опозиційний Блок,"Запорізька область, Токмацький район, Молочанськ",84,2018-12-21,327,"Заробітна плата, премії","Заробітна плата, лікарняні, вагітності, відрядження, компенсації",135725,Запорізька обласна організація,37526809,Запорізька область,Заробітна плата за грудень 2018 р.,2600143377,state,9016.00,Ляшенко С В,,фізична особа
Опозиційний Блок,"Донецька область, Краматорськ, бульвар Машинобудівників, 22",62,2018-12-21,337,Сплата ЄСВ,Податкові платежі,135413,Донецька обласна організація,39751914,Донецька область,ЄСВ 22%,26008053619066,state,79919.28,ДПІ у м. Краматорськ ГУ ДФС у Донецькій області,39900454,юридична особа
Опозиційний Блок,"Донецька область, Краматорськ, бульвар Машинобудівників, 22",61,2018-12-21,338,Військовий збір,Податкові платежі,135412,Донецька обласна організація,39751914,Донецька область,"військ.збір 1,5%",26008053619066,state,5682.37,УДКСУ у м. Краматорську Донецької області,37944338,юридична особа
Опозиційний Блок,"Донецька область, Краматорськ, бульвар Машинобудівників, 22",63,2018-12-21,339,Податок на доходи,Податкові платежі,135411,Донецька обласна організація,39751914,Донецька область,ПДФО 18%,26008053619066,state,68188.49,УДКСУ у м. Краматорську Донецької області,37944338,юридична особа
Опозиційний Блок,"Донецька область, Лиман",84,2018-12-21,340,"Заробітна плата, премії","Заробітна плата, лікарняні, вагітності, відрядження, компенсації",135384,Донецька обласна організація,39751914,Донецька область,Заробітна плата,26008053619066,state,8050.00,Чибіс Віталій Геннадійович,,фізична особа
Опозиційний Блок,"Донецька область, Мар'їнський район, Курахове",84,2018-12-21,340,"Заробітна плата, премії","Заробітна плата, лікарняні, вагітності, відрядження, компенсації",135383,Донецька обласна організація,39751914,Донецька область,Заробітна плата,26008053619066,state,8862.76,Бояринова Віталіна Едуардівна,,фізична особа
Опозиційний Блок,"Донецька область, Вугледар",84,2018-12-21,340,"Заробітна плата, премії","Заробітна плата, лікарняні, вагітності, відрядження, компенсації",135382,Донецька обласна організація,39751914,Донецька область,Заробітна плата,26008053619066,state,10005.70,Кондратова Олена Володимирівна,,фізична особа
Опозиційний Блок,"Донецька область, Олександрівський район, Олександрівка",84,2018-12-21,340,"Заробітна плата, премії","Заробітна плата, лікарняні, вагітності, відрядження, компенсації",135381,Донецька обласна організація,39751914,Донецька область,Заробітна плата,26008053619066,state,7848.75,Бабешко Олексій Анатолійович,,фізична особа
Опозиційний Блок,"Донецька область, Добропілля",84,2018-12-21,340,"Заробітна плата, премії","Заробітна плата, лікарняні, вагітності, відрядження, компенсації",135380,Донецька обласна організація,39751914,Донецька область,Заробітна плата,26008053619066,state,7094.06,Токаренко Валентина Леонідівна,,фізична особа
Опозиційний Блок,"Донецька область, Нікольський район, Нікольське",84,2018-12-21,340,"Заробітна плата, премії","Заробітна плата, лікарняні, вагітності, відрядження, компенсації",135379,Донецька обласна організація,39751914,Донецька область,Заробітна плата,26008053619066,state,10005.70,Слізько Олена Олександрівна,,фізична особа
Опозиційний Блок,"Донецька область, Соледар",84,2018-12-21,340,"Заробітна плата, премії","Заробітна плата, лікарняні, вагітності, відрядження, компенсації",135378,Донецька обласна організація,39751914,Донецька область,Заробітна плата,26008053619066,state,8459.36,Єсіпенко Дмитро Костянтинович,,фізична особа
Опозиційний Блок,"Донецька область, Мирноград",84,2018-12-21,340,"Заробітна плата, премії","Заробітна плата, лікарняні, вагітності, відрядження, компенсації",135377,Донецька обласна організація,39751914,Донецька область,Заробітна плата,26008053619066,state,9605.10,Біловол Олександр Вікторович,,фізична особа
Опозиційний Блок,"Донецька область, Великоновосілківський район",84,2018-12-21,340,"Заробітна плата, премії","Заробітна плата, лікарняні, вагітності, відрядження, компенсації",135376,Донецька обласна організація,39751914,Донецька область,Заробітна плата,26008053619066,state,9056.25,Зрожевська Тамара Іванівна,,фізична особа
Опозиційний Блок,"Донецька область, Покровський район, Родинське",84,2018-12-21,340,"Заробітна плата, премії","Заробітна плата, лікарняні, вагітності, відрядження, компенсації",135375,Донецька обласна організація,39751914,Донецька область,Заробітна плата,26008053619066,state,36439.69,Стебель Олексій Леонідович,,фізична особа
Опозиційний Блок,"Донецька область, Мар'їнський район, Курахове",84,2018-12-21,340,"Заробітна плата, премії","Заробітна плата, лікарняні, вагітності, відрядження, компенсації",135374,Донецька обласна організація,39751914,Донецька область,Заробітна плата,26008053619066,state,9156.87,Дрожаліна Валерія Олександрівна,,фізична особа
Опозиційний Блок,"Донецька область, Торецьк",84,2018-12-21,340,"Заробітна плата, премії","Заробітна плата, лікарняні, вагітності, відрядження, компенсації",135373,Донецька обласна організація,39751914,Донецька область,Заробітна плата,26008053619066,state,10666.28,Алещенко Сергій Павлович,,фізична особа
Опозиційний Блок,"Донецька область, Маріуполь",84,2018-12-21,340,"Заробітна плата, премії","Заробітна плата, лікарняні, вагітності, відрядження, компенсації",135372,Донецька обласна організація,39751914,Донецька область,Заробітна плата,26008053619066,state,14490.00,Василенко Матвій Анатолійович,,фізична особа
Опозиційний Блок,"Донецька область, Волноваський район, Волноваха",84,2018-12-21,340,"Заробітна плата, премії","Заробітна плата, лікарняні, вагітності, відрядження, компенсації",135371,Донецька обласна організація,39751914,Донецька область,Заробітна плата,26008053619066,state,9056.25,Ящук Олександр Володимирович,,фізична особа
Опозиційний Блок,"Донецька область, Селидове",84,2018-12-21,340,"Заробітна плата, премії","Заробітна плата, лікарняні, вагітності, відрядження, компенсації",135370,Донецька обласна організація,39751914,Донецька область,Заробітна плата,26008053619066,state,9056.25,Колосова Анна Олегівна,,фізична особа
Опозиційний Блок,"Донецька область, Бахмут",84,2018-12-21,340,"Заробітна плата, премії","Заробітна плата, лікарняні, вагітності, відрядження, компенсації",135369,Донецька обласна організація,39751914,Донецька область,Заробітна плата,26008053619066,state,9056.25,Рижов Павло Олександрович,,фізична особа
Опозиційний Блок,"Донецька область, Костянтинівка",84,2018-12-21,340,"Заробітна плата, премії","Заробітна плата, лікарняні, вагітності, відрядження, компенсації",135368,Донецька обласна організація,39751914,Донецька область,Заробітна плата,26008053619066,state,6842.50,Шут Сергій Вікторович,,фізична особа
Опозиційний Блок,"Донецька область, Маріуполь",84,2018-12-21,340,"Заробітна плата, премії","Заробітна плата, лікарняні, вагітності, відрядження, компенсації",135367,Донецька обласна організація,39751914,Донецька область,Заробітна плата,26008053619066,state,7446.25,Клименко Анжела Борисівна,,фізична особа
Опозиційний Блок,"Донецька область, Волноваський район",84,2018-12-21,340,"Заробітна плата, премії","Заробітна плата, лікарняні, вагітності, відрядження, компенсації",135366,Донецька обласна організація,39751914,Донецька область,Заробітна плата,26008053619066,state,9056.25,Український Руслан Валентинович,,фізична особа
Опозиційний Блок,"Донецька область, Маріуполь",84,2018-12-21,340,"Заробітна плата, премії","Заробітна плата, лікарняні, вагітності, відрядження, компенсації",135365,Донецька обласна організація,39751914,Донецька область,Заробітна плата,26008053619066,state,32800.19,Виборнова Наталя Михайлівна,,фізична особа
Опозиційний Блок,"Донецька область, Маріуполь",84,2018-12-21,340,"Заробітна плата, премії","Заробітна плата, лікарняні, вагітності, відрядження, компенсації",135364,Донецька обласна організація,39751914,Донецька область,Заробітна плата,26008053619066,state,18503.40,Самолюк Ірина Володимирівна,,фізична особа
Опозиційний Блок,"Донецька область, Маріуполь",84,2018-12-21,340,"Заробітна плата, премії","Заробітна плата, лікарняні, вагітності, відрядження, компенсації",135363,Донецька обласна організація,39751914,Донецька область,Заробітна плата,26008053619066,state,34227.19,Нагорна Ірина Вікторівна,,фізична особа
Опозиційний Блок,"Донецька область, Слов'янський район, Слов'янськ",84,2018-12-21,340,"Заробітна плата, премії","Заробітна плата, лікарняні, вагітності, відрядження, компенсації",135362,Донецька обласна організація,39751914,Донецька область,Заробітна плата,26008053619066,state,6641.25,Гацько Ірина Леонідівна,,фізична особа
Опозиційний Блок,"Донецька область, Слов'янський район, Слов'янськ",84,2018-12-21,340,"Заробітна плата, премії","Заробітна плата, лікарняні, вагітності, відрядження, компенсації",135361,Донецька обласна організація,39751914,Донецька область,Заробітна плата,26008053619066,state,6641.25,Ростов Микола Михайлович,,фізична особа
Опозиційний Блок,"Донецька область, Покровськ",84,2018-12-21,340,"Заробітна плата, премії","Заробітна плата, лікарняні, вагітності, відрядження, компенсації",135360,Донецька обласна організація,39751914,Донецька область,Заробітна плата,26008053619066,state,5886.56,Сазонова Любов Григорівна,,фізична особа
Опозиційний Блок,"Київ, вулиця Михайла Грушевського, 1Д",70,2018-12-21,CLO1NV3PAY,Банківські послуги,Інші витрати,135253,Донецька обласна організація,39751914,Донецька область,комісія за кас.обслуг. банку,26007053610066,current,3.00,"ПАТ КБ ""Приватбанк""",14360570,юридична особа
Опозиційний Блок,"Київ, вулиця Михайла Грушевського, 1Д",70,2018-12-21,CLO1NV3P8Y,Банківські послуги,Інші витрати,135252,Донецька обласна організація,39751914,Донецька область,комісія за кас.обслуг. банку,26007053610066,current,3.00,"ПАТ КБ ""Приватбанк""",14360570,юридична особа
Опозиційний Блок,"Київ, вулиця Михайла Грушевського, 1Д",70,2018-12-21,CLO1NV3OWY,Банківські послуги,Інші витрати,135251,Донецька обласна організація,39751914,Донецька область,комісія за кас.обслуг. банку,26007053610066,current,3.00,"ПАТ КБ ""Приватбанк""",14360570,юридична особа
Опозиційний Блок,"Київ, вулиця Михайла Грушевського, 1Д",70,2018-12-21,CCO1MJFBDY,Банківські послуги,Інші витрати,135250,Донецька обласна організація,39751914,Донецька область,комісія за кас.обслуг. банку,26007053610066,current,3.00,"ПАТ КБ ""Приватбанк""",14360570,юридична особа
Опозиційний Блок,"Дніпропетровська область, Дніпро́, вулиця Високовольтна, 24",62,2018-12-21,178,Сплата ЄСВ,Податкові платежі,135205,Дніпропетровська обласна організація,39750015,Дніпропетровська область,"*"";""101"";""39260741"";""нарахування ЄСВ 22,00% на зарплату за грудень 2018 року , без ПДВ",2600043190,state,164832.23,ДПІ у Соборному районі м. Дніпро ГУ ДФС у Дніпропетровській області,39545734,юридична особа
Опозиційний Блок,"Дніпропетровська область, Дніпро́, площа Шевченка, 7",63,2018-12-21,180,Податок на доходи,Податкові платежі,135204,Дніпропетровська обласна організація,39750015,Дніпропетровська область,"НДФЛ 18% за грудень 2018 року , без ПДВ",2600043190,state,134862.73,УДКСУ у Соборному районі м. Дніпра,37989269,юридична особа
Опозиційний Блок,"Дніпропетровська область, Дніпро́, площа Шевченка, 7",61,2018-12-21,179,Військовий збір,Податкові платежі,135203,Дніпропетровська обласна організація,39750015,Дніпропетровська область,"Військовий збір за грудень 2018 року , без ПДВ",2600043190,state,11238.52,УДКСУ у Соборному районі м. Дніпра,37989269,юридична особа
Опозиційний Блок,"Київ, вулиця Андріївська, 4",70,2018-12-21,182,Банківські послуги,Інші витрати,135202,Дніпропетровська обласна організація,39750015,Дніпропетровська область,"Комісія за зарахування банком коштів на КР співробітн. зг. заявки № 26 від 2018-12-21 р, дог.№ 260899816 від 2015-07-07 р. (3015,68 грн) , без ПДВ",2600043190,state,3015.68,Дніпропетровська обласна організація Опозиційний блок,39750015,юридична особа
Опозиційний Блок,"Київ, вулиця Андріївська, 4",70,2018-12-21,TR.26904334.83853174,Банківські послуги,Інші витрати,135201,Дніпропетровська обласна організація,39750015,Дніпропетровська область,Договорное списание комиссии за платеж в пользу клиента др. банка с-но п. 2.14 тарифов ПУМБ по дог. 270154467 от 2018-02-13 .,2600043190,state,2.00,"ПАТ ""ПУМБ""",14282829,юридична особа
Опозиційний Блок,"Київ, вулиця Андріївська, 4",70,2018-12-21,TR.26904334.80663861,Банківські послуги,Інші витрати,135200,Дніпропетровська обласна організація,39750015,Дніпропетровська область,Договорное списание комиссии за платеж в пользу клиента др. банка с-но п. 2.14 тарифов ПУМБ по дог. 270154467 от 2018-02-13 .,2600043190,state,2.00,"ПАТ ""ПУМБ""",14282829,юридична особа
Опозиційний Блок,"Київ, вулиця Андріївська, 4",70,2018-12-21,TR.26904334.11283037,Банківські послуги,Інші витрати,135199,Дніпропетровська обласна організація,39750015,Дніпропетровська область,Договорное списание комиссии за платеж в пользу клиента др. банка с-но п. 2.14 тарифов ПУМБ по дог. 270154467 от 2018-02-13 .,2600043190,state,2.00,"ПАТ ""ПУМБ""",14282829,юридична особа
Опозиційний Блок,"Дніпропетровська область, Дніпро́",84,2018-12-21,181,"Заробітна плата, премії","Заробітна плата, лікарняні, вагітності, відрядження, компенсації",135161,Дніпропетровська обласна організація,39750015,Дніпропетровська область,"Перерах. заробітної плати за грудень 2018 року (603 136,31 грн) згідно дог. № 260899816 від 2015-07-07 року та реєстру № 26 від 2018-12-21 р , без ПДВ",2600043190,state,18456.23,Ширіханова Елеонора Артурівна,,фізична особа
Опозиційний Блок,"Дніпропетровська область, Дніпро́",84,2018-12-21,181,"Заробітна плата, премії","Заробітна плата, лікарняні, вагітності, відрядження, компенсації",135160,Дніпропетровська обласна організація,39750015,Дніпропетровська область,"Перерах. заробітної плати за грудень 2018 року (603 136,31 грн) згідно дог. № 260899816 від 2015-07-07 року та реєстру № 26 від 2018-12-21 р , без ПДВ",2600043190,state,10737.69,Ціглер Валентина Іванівна,,фізична особа
Опозиційний Блок,"Дніпропетровська область, Дніпро́",84,2018-12-21,181,"Заробітна плата, премії","Заробітна плата, лікарняні, вагітності, відрядження, компенсації",135159,Дніпропетровська обласна організація,39750015,Дніпропетровська область,"Перерах. заробітної плати за грудень 2018 року (603 136,31 грн) згідно дог. № 260899816 від 2015-07-07 року та реєстру № 26 від 2018-12-21 р , без ПДВ",2600043190,state,13182.94,Хижняк Максим Олександрович,,фізична особа
Опозиційний Блок,"Дніпропетровська область, Дніпро́",84,2018-12-21,181,"Заробітна плата, премії","Заробітна плата, лікарняні, вагітності, відрядження, компенсації",135158,Дніпропетровська обласна організація,39750015,Дніпропетровська область,"Перерах. заробітної плати за грудень 2018 року (603 136,31 грн) згідно дог. № 260899816 від 2015-07-07 року та реєстру № 26 від 2018-12-21 р , без ПДВ",2600043190,state,21220.38,Халлиєва Вікторія Миколаївна,,фізична особа
Опозиційний Блок,"Дніпропетровська область, Дніпро́",84,2018-12-21,181,"Заробітна плата, премії","Заробітна плата, лікарняні, вагітності, відрядження, компенсації",135157,Дніпропетровська обласна організація,39750015,Дніпропетровська область,"Перерах. заробітної плати за грудень 2018 року (603 136,31 грн) згідно дог. № 260899816 від 2015-07-07 року та реєстру № 26 від 2018-12-21 р , без ПДВ",2600043190,state,13182.94,Сушина Олена Сергіївна,,фізична особа
Опозиційний Блок,"Дніпропетровська область, Дніпро́",84,2018-12-21,181,"Заробітна плата, премії","Заробітна плата, лікарняні, вагітності, відрядження, компенсації",135156,Дніпропетровська обласна організація,39750015,Дніпропетровська область,"Перерах. заробітної плати за грудень 2018 року (603 136,31 грн) згідно дог. № 260899816 від 2015-07-07 року та реєстру № 26 від 2018-12-21 р , без ПДВ",2600043190,state,25345.30,Старовойтова Тетяна Вікторівна,,фізична особа
Опозиційний Блок,"Дніпропетровська область, Дніпро́",84,2018-12-21,181,"Заробітна плата, премії","Заробітна плата, лікарняні, вагітності, відрядження, компенсації",135155,Дніпропетровська обласна організація,39750015,Дніпропетровська область,"Перерах. заробітної плати за грудень 2018 року (603 136,31 грн) згідно дог. № 260899816 від 2015-07-07 року та реєстру № 26 від 2018-12-21 р , без ПДВ",2600043190,state,23714.16,Сокол Катерина Едуардівна,,фізична особа
Опозиційний Блок,"Дніпропетровська область, Дніпро́",84,2018-12-21,181,"Заробітна плата, премії","Заробітна плата, лікарняні, вагітності, відрядження, компенсації",135154,Дніпропетровська обласна організація,39750015,Дніпропетровська область,"Перерах. заробітної плати за грудень 2018 року (603 136,31 грн) згідно дог. № 260899816 від 2015-07-07 року та реєстру № 26 від 2018-12-21 р , без ПДВ",2600043190,state,10737.69,Смірнова Аліна Юріївна,,фізична особа
Опозиційний Блок,"Дніпропетровська область, Дніпро́",84,2018-12-21,181,"Заробітна плата, премії","Заробітна плата, лікарняні, вагітності, відрядження, компенсації",135153,Дніпропетровська обласна організація,39750015,Дніпропетровська область,"Перерах. заробітної плати за грудень 2018 року (603 136,31 грн) згідно дог. № 260899816 від 2015-07-07 року та реєстру № 26 від 2018-12-21 р , без ПДВ",2600043190,state,21220.38,Славянська Таїсія Георгіївна,,фізична особа
Опозиційний Блок,"Дніпропетровська область, Кривий Ріг",84,2018-12-21,181,"Заробітна плата, премії","Заробітна плата, лікарняні, вагітності, відрядження, компенсації",135152,Дніпропетровська обласна організація,39750015,Дніпропетровська область,"Перерах. заробітної плати за грудень 2018 року (603 136,31 грн) згідно дог. № 260899816 від 2015-07-07 року та реєстру № 26 від 2018-12-21 р , без ПДВ",2600043190,state,11864.61,Сидоренко Ігор Вікторович,,фізична особа
Опозиційний Блок,"Дніпропетровська область, Кривий Ріг",84,2018-12-21,181,"Заробітна плата, премії","Заробітна плата, лікарняні, вагітності, відрядження, компенсації",135151,Дніпропетровська обласна організація,39750015,Дніпропетровська область,"Перерах. заробітної плати за грудень 2018 року (603 136,31 грн) згідно дог. № 260899816 від 2015-07-07 року та реєстру № 26 від 2018-12-21 р , без ПДВ",2600043190,state,15819.59,Сердюк Петро Володимирович,,фізична особа
Опозиційний Блок,"Дніпропетровська область, Дніпро́",84,2018-12-21,181,"Заробітна плата, премії","Заробітна плата, лікарняні, вагітності, відрядження, компенсації",135150,Дніпропетровська обласна організація,39750015,Дніпропетровська область,"Перерах. заробітної плати за грудень 2018 року (603 136,31 грн) згідно дог. № 260899816 від 2015-07-07 року та реєстру № 26 від 2018-12-21 р , без ПДВ",2600043190,state,10737.69,Сергєєва Тетяна Леонідівна,,фізична особа
Опозиційний Блок,"Дніпропетровська область, Дніпро́",84,2018-12-21,181,"Заробітна плата, премії","Заробітна плата, лікарняні, вагітності, відрядження, компенсації",135149,Дніпропетровська обласна організація,39750015,Дніпропетровська область,"Перерах. заробітної плати за грудень 2018 року (603 136,31 грн) згідно дог. № 260899816 від 2015-07-07 року та реєстру № 26 від 2018-12-21 р , без ПДВ",2600043190,state,19651.01,Семенова Наталія Петрівна,,фізична особа
Опозиційний Блок,"Дніпропетровська область, Новомосковськ",84,2018-12-21,181,"Заробітна плата, премії","Заробітна плата, лікарняні, вагітності, відрядження, компенсації",135148,Дніпропетровська обласна організація,39750015,Дніпропетровська область,"Перерах. заробітної плати за грудень 2018 року (603 136,31 грн) згідно дог. № 260899816 від 2015-07-07 року та реєстру № 26 від 2018-12-21 р , без ПДВ",2600043190,state,8079.89,Сачава Юлія Миколаївна,,фізична особа
Опозиційний Блок,Київ,84,2018-12-21,181,"Заробітна плата, премії","Заробітна плата, лікарняні, вагітності, відрядження, компенсації",135147,Дніпропетровська обласна організація,39750015,Дніпропетровська область,"Перерах. заробітної плати за грудень 2018 року (603 136,31 грн) згідно дог. № 260899816 від 2015-07-07 року та реєстру № 26 від 2018-12-21 р , без ПДВ",2600043190,state,21092.73,Савчук Володимир Петрович,,фізична особа
Опозиційний Блок,"Дніпропетровська область, Дніпро́",84,2018-12-21,181,"Заробітна плата, премії","Заробітна плата, лікарняні, вагітності, відрядження, компенсації",135146,Дніпропетровська обласна організація,39750015,Дніпропетровська область,"Перерах. заробітної плати за грудень 2018 року (603 136,31 грн) згідно дог. № 260899816 від 2015-07-07 року та реєстру № 26 від 2018-12-21 р , без ПДВ",2600043190,state,10737.69,Сабініна Оксана Миколаївна,,фізична особа
Опозиційний Блок,"Дніпропетровська область, Дніпро́",84,2018-12-21,181,"Заробітна плата, премії","Заробітна плата, лікарняні, вагітності, відрядження, компенсації",135145,Дніпропетровська обласна організація,39750015,Дніпропетровська область,"Перерах. заробітної плати за грудень 2018 року (603 136,31 грн) згідно дог. № 260899816 від 2015-07-07 року та реєстру № 26 від 2018-12-21 р , без ПДВ",2600043190,state,21262.83,Ростковський Едуард Валерійович,,фізична особа
Опозиційний Блок,"Дніпропетровська область, Дніпро́",84,2018-12-21,181,"Заробітна плата, премії","Заробітна плата, лікарняні, вагітності, відрядження, компенсації",135144,Дніпропетровська обласна організація,39750015,Дніпропетровська область,"Перерах. заробітної плати за грудень 2018 року (603 136,31 грн) згідно дог. № 260899816 від 2015-07-07 року та реєстру № 26 від 2018-12-21 р , без ПДВ",2600043190,state,10737.69,Покровкова Олена Володимирівна,,фізична особа
Опозиційний Блок,"Дніпропетровська область, Покров",84,2018-12-21,181,"Заробітна плата, премії","Заробітна плата, лікарняні, вагітності, відрядження, компенсації",135143,Дніпропетровська обласна організація,39750015,Дніпропетровська область,"Перерах. заробітної плати за грудень 2018 року (603 136,31 грн) згідно дог. № 260899816 від 2015-07-07 року та реєстру № 26 від 2018-12-21 р , без ПДВ",2600043190,state,7970.98,Петровських Галина Іллівна,,фізична особа
Опозиційний Блок,"Дніпропетровська область, Кривий Ріг",84,2018-12-21,181,"Заробітна плата, премії","Заробітна плата, лікарняні, вагітності, відрядження, компенсації",135142,Дніпропетровська обласна організація,39750015,Дніпропетровська область,"Перерах. заробітної плати за грудень 2018 року (603 136,31 грн) згідно дог. № 260899816 від 2015-07-07 року та реєстру № 26 від 2018-12-21 р , без ПДВ",2600043190,state,15819.59,Петровнін Володимир Борисович,,фізична особа
Опозиційний Блок,"Дніпропетровська область, Дніпро́",84,2018-12-21,181,"Заробітна плата, премії","Заробітна плата, лікарняні, вагітності, відрядження, компенсації",135141,Дніпропетровська обласна організація,39750015,Дніпропетровська область,"Перерах. заробітної плати за грудень 2018 року (603 136,31 грн) згідно дог. № 260899816 від 2015-07-07 року та реєстру № 26 від 2018-12-21 р , без ПДВ",2600043190,state,21220.38,Начарʼян Наталія Олександрівна,,фізична особа
Опозиційний Блок,"Дніпропетровська область, Дніпро́",84,2018-12-21,181,"Заробітна плата, премії","Заробітна плата, лікарняні, вагітності, відрядження, компенсації",135140,Дніпропетровська обласна організація,39750015,Дніпропетровська область,"Перерах. заробітної плати за грудень 2018 року (603 136,31 грн) згідно дог. № 260899816 від 2015-07-07 року та реєстру № 26 від 2018-12-21 р , без ПДВ",2600043190,state,21092.73,Моня Андрій Іванович,,фізична особа
Опозиційний Блок,"Дніпропетровська область, Дніпро́",84,2018-12-21,181,"Заробітна плата, премії","Заробітна плата, лікарняні, вагітності, відрядження, компенсації",135139,Дніпропетровська обласна організація,39750015,Дніпропетровська область,"Перерах. заробітної плати за грудень 2018 року (603 136,31 грн) згідно дог. № 260899816 від 2015-07-07 року та реєстру № 26 від 2018-12-21 р , без ПДВ",2600043190,state,19223.98,Мозгова Катерина Федорівна,,фізична особа
Опозиційний Блок,"Дніпропетровська область, Дніпро́",84,2018-12-21,181,"Заробітна плата, премії","Заробітна плата, лікарняні, вагітності, відрядження, компенсації",135138,Дніпропетровська обласна організація,39750015,Дніпропетровська область,"Перерах. заробітної плати за грудень 2018 року (603 136,31 грн) згідно дог. № 260899816 від 2015-07-07 року та реєстру № 26 від 2018-12-21 р , без ПДВ",2600043190,state,26366.03,Мілютін Сергій Сергійович,,фізична особа
Опозиційний Блок,"Дніпропетровська область, Кривий Ріг",84,2018-12-21,181,"Заробітна плата, премії","Заробітна плата, лікарняні, вагітності, відрядження, компенсації",135137,Дніпропетровська обласна організація,39750015,Дніпропетровська область,"Перерах. заробітної плати за грудень 2018 року (603 136,31 грн) згідно дог. № 260899816 від 2015-07-07 року та реєстру № 26 від 2018-12-21 р , без ПДВ",2600043190,state,21220.38,Миронов Олександр Олександрович,,фізична особа
Опозиційний Блок,"Дніпропетровська область, Солонянський район",84,2018-12-21,181,"Заробітна плата, премії","Заробітна плата, лікарняні, вагітності, відрядження, компенсації",135136,Дніпропетровська обласна організація,39750015,Дніпропетровська область,"Перерах. заробітної плати за грудень 2018 року (603 136,31 грн) згідно дог. № 260899816 від 2015-07-07 року та реєстру № 26 від 2018-12-21 р , без ПДВ",2600043190,state,15947.08,Лиштван Олександр Миколайович,,фізична особа
Опозиційний Блок,"Дніпропетровська область, Павлоград",84,2018-12-21,181,"Заробітна плата, премії","Заробітна плата, лікарняні, вагітності, відрядження, компенсації",135135,Дніпропетровська обласна організація,39750015,Дніпропетровська область,"Перерах. заробітної плати за грудень 2018 року (603 136,31 грн) згідно дог. № 260899816 від 2015-07-07 року та реєстру № 26 від 2018-12-21 р , без ПДВ",2600043190,state,15819.59,Крапівнюк Любов Олександрівна,,фізична особа
Опозиційний Блок,"Дніпропетровська область, Дніпро́",84,2018-12-21,181,"Заробітна плата, премії","Заробітна плата, лікарняні, вагітності, відрядження, компенсації",135134,Дніпропетровська обласна організація,39750015,Дніпропетровська область,"Перерах. заробітної плати за грудень 2018 року (603 136,31 грн) згідно дог. № 260899816 від 2015-07-07 року та реєстру № 26 від 2018-12-21 р , без ПДВ",2600043190,state,10737.69,Кондрашова Тетяна Михайлівна,,фізична особа
Опозиційний Блок,"Дніпропетровська область, Кам’янське",84,2018-12-21,181,"Заробітна плата, премії","Заробітна плата, лікарняні, вагітності, відрядження, компенсації",135133,Дніпропетровська обласна організація,39750015,Дніпропетровська область,"Перерах. заробітної плати за грудень 2018 року (603 136,31 грн) згідно дог. № 260899816 від 2015-07-07 року та реєстру № 26 від 2018-12-21 р , без ПДВ",2600043190,state,10481.10,Ковалевський Олександр Анатолійович,,фізична особа
Опозиційний Блок,"Дніпропетровська область, Дніпро́",84,2018-12-21,181,"Заробітна плата, премії","Заробітна плата, лікарняні, вагітності, відрядження, компенсації",135132,Дніпропетровська обласна організація,39750015,Дніпропетровська область,"Перерах. заробітної плати за грудень 2018 року (603 136,31 грн) згідно дог. № 260899816 від 2015-07-07 року та реєстру № 26 від 2018-12-21 р , без ПДВ",2600043190,state,10737.69,Іванова Юлія Сергіївна,,фізична особа
Опозиційний Блок,"Дніпропетровська область, Дніпро́",84,2018-12-21,181,"Заробітна плата, премії","Заробітна плата, лікарняні, вагітності, відрядження, компенсації",135131,Дніпропетровська обласна організація,39750015,Дніпропетровська область,"Перерах. заробітної плати за грудень 2018 року (603 136,31 грн) згідно дог. № 260899816 від 2015-07-07 року та реєстру № 26 від 2018-12-21 р , без ПДВ",2600043190,state,21092.73,Іванова Юлія Євгенівна,,фізична особа
Опозиційний Блок,"Дніпропетровська область, Дніпро́",84,2018-12-21,181,"Заробітна плата, премії","Заробітна плата, лікарняні, вагітності, відрядження, компенсації",135130,Дніпропетровська обласна організація,39750015,Дніпропетровська область,"Перерах. заробітної плати за грудень 2018 року (603 136,31 грн) згідно дог. № 260899816 від 2015-07-07 року та реєстру № 26 від 2018-12-21 р , без ПДВ",2600043190,state,10737.69,Іванова Ганна Василівна,,фізична особа
Опозиційний Блок,"Дніпропетровська область, Кам’янське",84,2018-12-21,181,"Заробітна плата, премії","Заробітна плата, лікарняні, вагітності, відрядження, компенсації",135129,Дніпропетровська обласна організація,39750015,Дніпропетровська область,"Перерах. заробітної плати за грудень 2018 року (603 136,31 грн) згідно дог. № 260899816 від 2015-07-07 року та реєстру № 26 від 2018-12-21 р , без ПДВ",2600043190,state,10737.69,Дідух Артем Юрійович,,фізична особа
Опозиційний Блок,"Дніпропетровська область, Дніпро́",84,2018-12-21,181,"Заробітна плата, премії","Заробітна плата, лікарняні, вагітності, відрядження, компенсації",135128,Дніпропетровська обласна організація,39750015,Дніпропетровська область,"Перерах. заробітної плати за грудень 2018 року (603 136,31 грн) згідно дог. № 260899816 від 2015-07-07 року та реєстру № 26 від 2018-12-21 р , без ПДВ",2600043190,state,10737.69,Данилевичюте Ілона,,фізична особа
Опозиційний Блок,"Дніпропетровська область, Дніпро́",84,2018-12-21,181,"Заробітна плата, премії","Заробітна плата, лікарняні, вагітності, відрядження, компенсації",135127,Дніпропетровська обласна організація,39750015,Дніпропетровська область,"Перерах. заробітної плати за грудень 2018 року (603 136,31 грн) згідно дог. № 260899816 від 2015-07-07 року та реєстру № 26 від 2018-12-21 р , без ПДВ",2600043190,state,11978.40,Гончаренко Наталія Вікторівна,,фізична особа
Опозиційний Блок,"Дніпропетровська область, Дніпро́",84,2018-12-21,181,"Заробітна плата, премії","Заробітна плата, лікарняні, вагітності, відрядження, компенсації",135126,Дніпропетровська обласна організація,39750015,Дніпропетровська область,"Перерах. заробітної плати за грудень 2018 року (603 136,31 грн) згідно дог. № 260899816 від 2015-07-07 року та реєстру № 26 від 2018-12-21 р , без ПДВ",2600043190,state,10737.69,Глухова Ніна Олексіївна,,фізична особа
Опозиційний Блок,"Дніпропетровська область, Дніпро́",84,2018-12-21,181,"Заробітна плата, премії","Заробітна плата, лікарняні, вагітності, відрядження, компенсації",135125,Дніпропетровська обласна організація,39750015,Дніпропетровська область,"Перерах. заробітної плати за грудень 2018 року (603 136,31 грн) згідно дог. № 260899816 від 2015-07-07 року та реєстру № 26 від 2018-12-21 р , без ПДВ",2600043190,state,10737.69,Герасименко Тетяна Миколаївна,,фізична особа
Опозиційний Блок,"Дніпропетровська область, Дніпро́",84,2018-12-21,181,"Заробітна плата, премії","Заробітна плата, лікарняні, вагітності, відрядження, компенсації",135124,Дніпропетровська обласна організація,39750015,Дніпропетровська область,"Перерах. заробітної плати за грудень 2018 року (603 136,31 грн) згідно дог. № 260899816 від 2015-07-07 року та реєстру № 26 від 2018-12-21 р , без ПДВ",2600043190,state,10737.69,Буклей Ірина Олександрівна,,фізична особа
Опозиційний Блок,"Дніпропетровська область, Дніпро́",84,2018-12-21,181,"Заробітна плата, премії","Заробітна плата, лікарняні, вагітності, відрядження, компенсації",135123,Дніпропетровська обласна організація,39750015,Дніпропетровська область,"Перерах. заробітної плати за грудень 2018 року (603 136,31 грн) згідно дог. № 260899816 від 2015-07-07 року та реєстру № 26 від 2018-12-21 р , без ПДВ",2600043190,state,21220.38,Антонюк Ірина Геннадіївна,,фізична особа
Опозиційний Блок,"Одеська область, Одеса, Фонтанська дорога, 11",70,2018-12-21,ТД/01/14,Банківські послуги,Інші витрати,134732,Центральний офіс,37120464,Україна,Комісія банку,26007002030506,state,2.00,"Київська філія АТ ""Місто банк""",26410346,юридична особа
Опозиційний Блок,"Київ, вулиця Перемоги, 9А",72,2018-12-21,3355,"Придбання, ремонт офісної техніки та програмного забезпечення (Бухгалтерські програми, Ліга.закон, домени)",Придбання офісної техніки та програмного забезпечення,134731,Центральний офіс,37120464,Україна,Поставка компʼютерної техніки,26007002030506,state,45999.30,"ТОВ ""ЕВЕРЕСТ ЛІМІТЕД""",38980356,юридична особа
Опозиційний Блок,"Київ, вулиця Турівська, 12",62,2018-12-21,3352,Сплата ЄСВ,Податкові платежі,134730,Центральний офіс,37120464,Україна,ЄСВ 22% з фонду оплати праці,26007002030506,state,335990.02,ДПІ у Подільському районі ГУ ДФС у м. Києві,39467012,юридична особа
Опозиційний Блок,"Київ, вулиця Межигірська, 25",63,2018-12-21,3349,Податок на доходи,Податкові платежі,134729,Центральний офіс,37120464,Україна,ПДФО 18% з заробітної плати,26007002030506,state,324785.37,УДКСУ у Подільському районі м. Києва,37975298,юридична особа
Опозиційний Блок,"Київська обл., Бородянський район",84,2018-12-21,3344,"Заробітна плата, премії","Заробітна плата, лікарняні, вагітності, відрядження, компенсації",134412,Центральний офіс,37120464,Україна,Оплата праці,26007002030506,state,46754.71,Тущенко Ольга Валентинівна,,фізична особа
Опозиційний Блок,"Донецька область, Донецьк",84,2018-12-21,3343,"Заробітна плата, премії","Заробітна плата, лікарняні, вагітності, відрядження, компенсації",134411,Центральний офіс,37120464,Україна,Оплата праці,26007002030506,state,55738.70,Титаренко Ірина Леонідівна,,фізична особа
Опозиційний Блок,Київ,84,2018-12-21,3354,"Заробітна плата, премії","Заробітна плата, лікарняні, вагітності, відрядження, компенсації",134410,Центральний офіс,37120464,Україна,Оплата праці,26007002030506,state,38607.80,Левченко Дарʼя Володимирівна,,фізична особа
Опозиційний Блок,"Полтавська область, Полтава",84,2018-12-21,3347,"Заробітна плата, премії","Заробітна плата, лікарняні, вагітності, відрядження, компенсації",134409,Центральний офіс,37120464,Україна,Оплата праці,26007002030506,state,50464.25,Щука Олег Юрійович,,фізична особа
Опозиційний Блок,"Донецька область, Донецьк",84,2018-12-21,3346,"Заробітна плата, премії","Заробітна плата, лікарняні, вагітності, відрядження, компенсації",134408,Центральний офіс,37120464,Україна,Оплата праці,26007002030506,state,17174.95,Шульга Дмитро Вікторович,,фізична особа
Опозиційний Блок,Чернігівська область,84,2018-12-21,3345,"Заробітна плата, премії","Заробітна плата, лікарняні, вагітності, відрядження, компенсації",134407,Центральний офіс,37120464,Україна,Оплата праці,26007002030506,state,18932.05,Шаповал Олег Олександрович,,фізична особа
Опозиційний Блок,"Київська обл., Бровари",84,2018-12-21,3342,"Заробітна плата, премії","Заробітна плата, лікарняні, вагітності, відрядження, компенсації",134406,Центральний офіс,37120464,Україна,Оплата праці,26007002030506,state,19991.79,Терещенко Юлія Віталіївна,,фізична особа
Опозиційний Блок,"Чернігівська область, Прилуки",84,2018-12-21,3339,"Заробітна плата, премії","Заробітна плата, лікарняні, вагітності, відрядження, компенсації",134405,Центральний офіс,37120464,Україна,Оплата праці,26007002030506,state,18942.50,Милюков Сергій Дмитрович,,фізична особа
Опозиційний Блок,Київ,84,2018-12-21,3337,"Заробітна плата, премії","Заробітна плата, лікарняні, вагітності, відрядження, компенсації",134404,Центральний офіс,37120464,Україна,Оплата праці,26007002030506,state,45249.44,Манджавідзе Леонід Юрійович,,фізична особа
Опозиційний Блок,Київ,84,2018-12-21,3336,"Заробітна плата, премії","Заробітна плата, лікарняні, вагітності, відрядження, компенсації",134403,Центральний офіс,37120464,Україна,Оплата праці,26007002030506,state,39572.50,Манджавідзе Дарʼя Леонідівна,,фізична особа
Опозиційний Блок,Київ,84,2018-12-21,3335,"Заробітна плата, премії","Заробітна плата, лікарняні, вагітності, відрядження, компенсації",134402,Центральний офіс,37120464,Україна,Оплата праці,26007002030506,state,28361.30,Макушинський Максим Іванович,,фізична особа
Опозиційний Блок,Київ,84,2018-12-21,3332,"Заробітна плата, премії","Заробітна плата, лікарняні, вагітності, відрядження, компенсації",134401,Центральний офіс,37120464,Україна,Оплата праці,26007002030506,state,24268.04,Курчинська Ольга Миколаївна,,фізична особа
Опозиційний Блок,Київ,84,2018-12-21,3330,"Заробітна плата, премії","Заробітна плата, лікарняні, вагітності, відрядження, компенсації",134400,Центральний офіс,37120464,Україна,Оплата праці,26007002030506,state,48037.35,Крайнова Лариса Павлівна,,фізична особа
Опозиційний Блок,"Київська обл., Обухівський район, Обухів",84,2018-12-21,3329,"Заробітна плата, премії","Заробітна плата, лікарняні, вагітності, відрядження, компенсації",134399,Центральний офіс,37120464,Україна,Оплата праці,26007002030506,state,42564.54,Коротич Ігор Борисович,,фізична особа
Опозиційний Блок,"Полтавська область, Полтава",84,2018-12-21,3328,"Заробітна плата, премії","Заробітна плата, лікарняні, вагітності, відрядження, компенсації",134398,Центральний офіс,37120464,Україна,Оплата праці,26007002030506,state,43416.87,Коробов Олег Ігорович,,фізична особа
Опозиційний Блок,"Донецька область, Донецьк",84,2018-12-21,3327,"Заробітна плата, премії","Заробітна плата, лікарняні, вагітності, відрядження, компенсації",134397,Центральний офіс,37120464,Україна,Оплата праці,26007002030506,state,42750.80,Коновалова Тетяна Володимирівна,,фізична особа
Опозиційний Блок,Київ,84,2018-12-21,3326,"Заробітна плата, премії","Заробітна плата, лікарняні, вагітності, відрядження, компенсації",134396,Центральний офіс,37120464,Україна,Оплата праці,26007002030506,state,19515.74,Кондауров Олег Миколайович,,фізична особа
Опозиційний Блок,"Київська обл., Ірпінь",84,2018-12-21,3324,"Заробітна плата, премії","Заробітна плата, лікарняні, вагітності, відрядження, компенсації",134395,Центральний офіс,37120464,Україна,Оплата праці,26007002030506,state,17089.47,Ковалевська Юлія Сергіївна,,фізична особа
Опозиційний Блок,Київ,84,2018-12-21,3323,"Заробітна плата, премії","Заробітна плата, лікарняні, вагітності, відрядження, компенсації",134394,Центральний офіс,37120464,Україна,Оплата праці,26007002030506,state,46487.20,Клочко Яна Геннадіївна,,фізична особа
Опозиційний Блок,Київ,84,2018-12-21,3321,"Заробітна плата, премії","Заробітна плата, лікарняні, вагітності, відрядження, компенсації",134393,Центральний офіс,37120464,Україна,Оплата праці,26007002030506,state,15604.54,Касянюк Ірина Анатоліївна,,фізична особа
Опозиційний Блок,"Донецька область, Донецьк",84,2018-12-21,3319,"Заробітна плата, премії","Заробітна плата, лікарняні, вагітності, відрядження, компенсації",134392,Центральний офіс,37120464,Україна,Оплата праці,26007002030506,state,47070.70,Іващенко Микола Миколайович,,фізична особа
Опозиційний Блок,"Полтавська область, Лубенський район, Олександрівка",84,2018-12-21,3318,"Заробітна плата, премії","Заробітна плата, лікарняні, вагітності, відрядження, компенсації",134391,Центральний офіс,37120464,Україна,Оплата праці,26007002030506,state,18942.50,Здоренко Віктор Анатолійович,,фізична особа
Опозиційний Блок,"Київська обл., Переяслав",84,2018-12-21,3317,"Заробітна плата, премії","Заробітна плата, лікарняні, вагітності, відрядження, компенсації",134390,Центральний офіс,37120464,Україна,Оплата праці,26007002030506,state,46259.54,Задорожний Богдан Едуардович,,фізична особа
Опозиційний Блок,Київ,84,2018-12-21,3316,"Заробітна плата, премії","Заробітна плата, лікарняні, вагітності, відрядження, компенсації",134389,Центральний офіс,37120464,Україна,Оплата праці,26007002030506,state,42750.80,Дьяченко Володимир Борисович,,фізична особа
Опозиційний Блок,Київ,84,2018-12-21,3315,"Заробітна плата, премії","Заробітна плата, лікарняні, вагітності, відрядження, компенсації",134388,Центральний офіс,37120464,Україна,Оплата праці,26007002030506,state,54329.11,Дідух Лілія Віталіївна,,фізична особа
Опозиційний Блок,Київ,84,2018-12-21,3314,"Заробітна плата, премії","Заробітна плата, лікарняні, вагітності, відрядження, компенсації",134387,Центральний офіс,37120464,Україна,Оплата праці,26007002030506,state,51794.51,Джердж Віталій Федорович,,фізична особа
Опозиційний Блок,"Донецька область, Донецьк",84,2018-12-21,3313,"Заробітна плата, премії","Заробітна плата, лікарняні, вагітності, відрядження, компенсації",134386,Центральний офіс,37120464,Україна,Оплата праці,26007002030506,state,37286.72,Демидко Євген Володимирович,,фізична особа
Опозиційний Блок,Київ,84,2018-12-21,3312,"Заробітна плата, премії","Заробітна плата, лікарняні, вагітності, відрядження, компенсації",134385,Центральний офіс,37120464,Україна,Оплата праці,26007002030506,state,66719.37,Грицаєнко Вікторія Петрівна,,фізична особа
Опозиційний Блок,"Київська обл., Вишгородський район, Вишгород",84,2018-12-21,3311,"Заробітна плата, премії","Заробітна плата, лікарняні, вагітності, відрядження, компенсації",134384,Центральний офіс,37120464,Україна,Оплата праці,26007002030506,state,21452.53,Грецька Лариса Миколаївна,,фізична особа
Опозиційний Блок,Київ,84,2018-12-21,3310,"Заробітна плата, премії","Заробітна плата, лікарняні, вагітності, відрядження, компенсації",134383,Центральний офіс,37120464,Україна,Оплата праці,26007002030506,state,51745.87,Горлушко Валентина Василівна,,фізична особа
Опозиційний Блок,Київ,84,2018-12-21,3309,"Заробітна плата, премії","Заробітна плата, лікарняні, вагітності, відрядження, компенсації",134382,Центральний офіс,37120464,Україна,Оплата праці,26007002030506,state,57588.91,Гарбар Світлана Василівна,,фізична особа
Опозиційний Блок,Київ,84,2018-12-21,3308,"Заробітна плата, премії","Заробітна плата, лікарняні, вагітності, відрядження, компенсації",134381,Центральний офіс,37120464,Україна,Оплата праці,26007002030506,state,15604.54,Воскресенська Сніжана Леонідівна,,фізична особа
Опозиційний Блок,Київ,84,2018-12-21,3307,"Заробітна плата, премії","Заробітна плата, лікарняні, вагітності, відрядження, компенсації",134380,Центральний офіс,37120464,Україна,Оплата праці,26007002030506,state,63083.49,Волошин Олег Анатолійович,,фізична особа
Опозиційний Блок,Київ,84,2018-12-21,3306,"Заробітна плата, премії","Заробітна плата, лікарняні, вагітності, відрядження, компенсації",134379,Центральний офіс,37120464,Україна,Оплата праці,26007002030506,state,31321.38,Вишневська Валентина Юліївна,,фізична особа
Опозиційний Блок,Чернігівська область,84,2018-12-21,3305,"Заробітна плата, премії","Заробітна плата, лікарняні, вагітності, відрядження, компенсації",134378,Центральний офіс,37120464,Україна,Оплата праці,26007002030506,state,19891.79,Васюра Володимир Анатолійович,,фізична особа
Опозиційний Блок,Київ,84,2018-12-21,3304,"Заробітна плата, премії","Заробітна плата, лікарняні, вагітності, відрядження, компенсації",134377,Центральний офіс,37120464,Україна,Оплата праці,26007002030506,state,13249.00,Больбот Інна Володимирівна,,фізична особа
Опозиційний Блок,"Донецька область, Донецьк",84,2018-12-21,3303,"Заробітна плата, премії","Заробітна плата, лікарняні, вагітності, відрядження, компенсації",134376,Центральний офіс,37120464,Україна,Оплата праці,26007002030506,state,30798.00,Бойчук Ольга Сергіївна,,фізична особа
Опозиційний Блок,"Донецька область, Донецьк",84,2018-12-21,3302,"Заробітна плата, премії","Заробітна плата, лікарняні, вагітності, відрядження, компенсації",134375,Центральний офіс,37120464,Україна,Оплата праці,26007002030506,state,31502.32,Акулова Ірина Володимирівна,,фізична особа
Опозиційний Блок,Київ,79,2018-12-21,3292,"Оренда будинків і приміщень та експлуатаційні витрати (прибирання, страхування орендованих будинків, охорона, сигналізація, ремонт, вивіз сміття, тощо)",Оренда нерухомості,134374,Центральний офіс,37120464,Україна,Оренда приміщення,26007002030506,state,514430.04,Яковенко Світлана Анатоліївна,,фізична особа
Опозиційний Блок,"Київ, вулиця Перемоги, 9А",72,2018-12-21,3356,"Придбання, ремонт офісної техніки та програмного забезпечення (Бухгалтерські програми, Ліга.закон, домени)",Придбання офісної техніки та програмного забезпечення,134074,Центральний офіс,37120464,Україна,Поставка компʼютерної техніки,26008001030506,current,28677.66,"ТОВ ""ЕВЕРЕСТ ЛІМІТЕД""",38980356,юридична особа
Опозиційний Блок,"Запорізька область, Запоріжжя, проспект Соборний, 168",64,2018-12-20,148034417,Повернення платежів партії,Повернення,138409,Запорізька обласна організація,37526809,Запорізька область,Оплата за комунальні послуги (повернення коштів),2600612837,current,401.23,ГУ ДКСУ у Запорізькій області,37941997,юридична особа
Опозиційний Блок,"Київ, вулиця Ревуцького, 46",76,2018-12-20,77,Послуги зв’язку,Послуги зв’язку,138313,Маріупольська міська організація,39905107,Донецька область,послуги інтернет,2600214189,current,350.00,"ТОВ ""ТВП Формат""",40196287,юридична особа
Опозиційний Блок,"Київ, вулиця Андріївська, 4",70,2018-12-20,TR.12858232.394288417,Банківські послуги,Інші витрати,138312,Маріупольська міська організація,39905107,Донецька область,комісія,2600214189,current,0.85,"ПАТ ""ПУМБ""",14282829,юридична особа
Опозиційний Блок,"Донецька область, Маріуполь, вулиця Соборна, 7",79,2018-12-20,78,"Оренда будинків і приміщень та експлуатаційні витрати (прибирання, страхування орендованих будинків, охорона, сигналізація, ремонт, вивіз сміття, тощо)",Оренда нерухомості,138311,Маріупольська міська організація,39905107,Донецька область,за холодну воду,2600214189,current,91.87,"КП ""мвувкг""",03361508,юридична особа
Опозиційний Блок,"Київ, вулиця Андріївська, 4",70,2018-12-20,TR.12858232.309323007,Банківські послуги,Інші витрати,138310,Маріупольська міська організація,39905107,Донецька область,комісія,2600214189,current,2.00,"ПАТ ""ПУМБ""",14282829,юридична особа
Опозиційний Блок,"Запорізька область, Запоріжжя, Радіаторна вулиця, 49",79,2018-12-20,331,"Оренда будинків і приміщень та експлуатаційні витрати (прибирання, страхування орендованих будинків, охорона, сигналізація, ремонт, вивіз сміття, тощо)",Оренда нерухомості,135683,Запорізька обласна організація,37526809,Запорізька область,Оплата за оренду приміщення,2600612837,current,3241.14,ТВО Заводського району,37611443,юридична особа
Опозиційний Блок,"Запорізька область, Запоріжжя, Радіаторна вулиця, 49",79,2018-12-20,332,"Оренда будинків і приміщень та експлуатаційні витрати (прибирання, страхування орендованих будинків, охорона, сигналізація, ремонт, вивіз сміття, тощо)",Оренда нерухомості,135682,Запорізька обласна організація,37526809,Запорізька область,Оплата за комунальні послуги,2600612837,current,401.23,ТВО Заводського району,37611443,юридична особа
Опозиційний Блок,"Запорізька область, Запоріжжя, Радіаторна вулиця, 49",79,2018-12-20,333,"Оренда будинків і приміщень та експлуатаційні витрати (прибирання, страхування орендованих будинків, охорона, сигналізація, ремонт, вивіз сміття, тощо)",Оренда нерухомості,135681,Запорізька обласна організація,37526809,Запорізька область,Оплата за комунальні послуги,2600612837,current,401.23,ТВО Заводського району,37611443,юридична особа
Опозиційний Блок,"Дніпропетровська область, Дніпро́, вулиця Катерини Мессарош, 64",58,2018-12-20,186,"Виготовлення друкованих матеріалів (плакатів, листівок, буклетів та інших агітаційних матеріалів)",Друкована агітація,134943,Дніпропетровська обласна організація,39750015,Дніпропетровська область,"Олата за плакати А-3 зг рах № 1722 від 2018-12-19 р, у т.ч. ПДВ 20% = 683,34 грн.",2600813320,current,4100.04,"ТОВ ВКФ ""ВІЗІОН""",30832330,юридична особа
Опозиційний Блок,"Київ, вулиця Андріївська, 4",70,2018-12-20,TR.12591325.21007969,Банківські послуги,Інші витрати,134942,Дніпропетровська обласна організація,39750015,Дніпропетровська область,Договорное списание комиссии за платеж в пользу клиента др. банка с-но п. 2.14 тарифов ПУМБ по дог. 260854602 от 2015-06-24 .,2600813320,current,2.00,"ПАТ ""ПУМБ""",14282829,юридична особа
Опозиційний Блок,"Дніпропетровська область, Дніпро́, вулиця Катерини Мессарош, 64",58,2018-12-20,185,"Виготовлення друкованих матеріалів (плакатів, листівок, буклетів та інших агітаційних матеріалів)",Друкована агітація,134941,Дніпропетровська обласна організація,39750015,Дніпропетровська область,"Олата за плакати А-3 зг рах № 1721 від 2018-12-19 р, у т.ч. ПДВ 20% = 4 100,04 грн.",2600813320,current,24600.24,"ТОВ ВКФ ""ВІЗІОН""",30832330,юридична особа
Опозиційний Блок,"Київ, вулиця Андріївська, 4",70,2018-12-20,TR.12591325.56377802,Банківські послуги,Інші витрати,134940,Дніпропетровська обласна організація,39750015,Дніпропетровська область,Договорное списание комиссии за платеж в пользу клиента др. банка с-но п. 2.14 тарифов ПУМБ по дог. 260854602 от 2015-06-24 .,2600813320,current,2.00,"ПАТ ""ПУМБ""",14282829,юридична особа
Опозиційний Блок,"Дніпропетровська область, Дніпро́, вулиця Катерини Мессарош, 64",58,2018-12-20,184,"Виготовлення друкованих матеріалів (плакатів, листівок, буклетів та інших агітаційних матеріалів)",Друкована агітація,134939,Дніпропетровська обласна організація,39750015,Дніпропетровська область,"Олата за плакати А-3 зг рах № 1720 від 2018-12-19 р, у т.ч. ПДВ 20% = 4 100,04 грн.",2600813320,current,24600.24,"ТОВ ВКФ ""ВІЗІОН""",30832330,юридична особа
Опозиційний Блок,"Київ, вулиця Андріївська, 4",70,2018-12-20,TR.12591325.54347909,Банківські послуги,Інші витрати,134938,Дніпропетровська обласна організація,39750015,Дніпропетровська область,Договорное списание комиссии за платеж в пользу клиента др. банка с-но п. 2.14 тарифов ПУМБ по дог. 260854602 от 2015-06-24 .,2600813320,current,2.00,"ПАТ ""ПУМБ""",14282829,юридична особа
Опозиційний Блок,"Запорізька область, Запоріжжя, вулиця Сєдова, 16",58,2018-12-20,183,"Виготовлення друкованих матеріалів (плакатів, листівок, буклетів та інших агітаційних матеріалів)",Друкована агітація,134937,Дніпропетровська обласна організація,39750015,Дніпропетровська область,"Олата за друк календарів настінних зг рах № К-00007051 від 2018-12-19 р, у т.ч. ПДВ 20% = 3 285,00 грн.",2600813320,current,19710.00,"ТОВ ВД ""Кераміст""",31122120,юридична особа
Опозиційний Блок,"Київ, вулиця Андріївська, 4",70,2018-12-20,TR.12591325.73001448,Банківські послуги,Інші витрати,134936,Дніпропетровська обласна організація,39750015,Дніпропетровська область,Договорное списание комиссии за платеж в пользу клиента др. банка с-но п. 2.14 тарифов ПУМБ по дог. 260854602 от 2015-06-24 .,2600813320,current,2.00,"ПАТ ""ПУМБ""",14282829,юридична особа
Опозиційний Блок,"Київ, вулиця Героїв Космосу, 4",54,2018-12-20,187,Виготовлення відеозаписів,Реклама (без класифікації),134935,Дніпропетровська обласна організація,39750015,Дніпропетровська область,"Оплата за виробництво рекламного ролику зг рах № 33 від 2018-12-20, у т.ч. ПДВ 20% = 83 333,33 грн.",2600813320,current,500000.00,"ТОВ ""ТЕЛЕ ПРО""",37499304,юридична особа
Опозиційний Блок,"Київ, вулиця Андріївська, 4",70,2018-12-20,TR.12591325.74562818,Банківські послуги,Інші витрати,134934,Дніпропетровська обласна організація,39750015,Дніпропетровська область,Договорное списание комиссии за исходящий платеж со счета клиента с-но п. 2.6 тарифов ПУМБ по дог. 260854602 от 2015-06-24 .,2600813320,current,0.85,"ПАТ ""ПУМБ""",14282829,юридична особа
Опозиційний Блок,"Одеська область, Одеса, Фонтанська дорога, 11",70,2018-12-20,ТД/01/14,Банківські послуги,Інші витрати,134722,Центральний офіс,37120464,Україна,Комісія банку,26007002030506,state,26.00,"Київська філія АТ ""Місто банк""",26410346,юридична особа
Опозиційний Блок,"Полтавська область, Полтава, вулиця Європейська, 57",75,2018-12-20,3357,Поштові послуги та поширення друкованих матеріалів,Поштові послуги та поширення друкованих матеріалів,134073,Центральний офіс,37120464,Україна,Організація відправлень,26008001030506,current,868.48,"ТОВ ""Нова пошта""",31316718,юридична особа
Опозиційний Блок,"Сумська область, Шостка, вулиця Садовий бульвар, 14",79,2018-12-19,70,"Оренда будинків і приміщень та експлуатаційні витрати (прибирання, страхування орендованих будинків, охорона, сигналізація, ремонт, вивіз сміття, тощо)",Оренда нерухомості,137138,Сумська обласна організація,39673391,Сумська область,Оренда нежитлового приміщення,26001300953074,current,305.75,Шосткинське УДКСУ Сумської області,37512251,юридична особа
Опозиційний Блок,"Сумська область, Шостка, вулиця Гагаріна, 1",79,2018-12-19,71,"Оренда будинків і приміщень та експлуатаційні витрати (прибирання, страхування орендованих будинків, охорона, сигналізація, ремонт, вивіз сміття, тощо)",Оренда нерухомості,137137,Сумська обласна організація,39673391,Сумська область,Послуги по посчанню теплоенергії,26001300953074,current,1799.75,"ТОВ ""Шосткинське підприємство ""Харківенергоремонт""",34113412,юридична особа
Опозиційний Блок,"Сумська область, Шостка, вулиця Садовий бульвар, 14",79,2018-12-19,69,"Оренда будинків і приміщень та експлуатаційні витрати (прибирання, страхування орендованих будинків, охорона, сигналізація, ремонт, вивіз сміття, тощо)",Оренда нерухомості,137136,Сумська обласна організація,39673391,Сумська область,Відшкодування витрат -за водопостачання та водовідведення,26001300953074,current,9.89,Виконавчий комітет Шосткинської міської ради,04057994,юридична особа
Опозиційний Блок,"Сумська область, Шостка, вулиця Садовий бульвар, 14",79,2018-12-19,68,"Оренда будинків і приміщень та експлуатаційні витрати (прибирання, страхування орендованих будинків, охорона, сигналізація, ремонт, вивіз сміття, тощо)",Оренда нерухомості,137135,Сумська обласна організація,39673391,Сумська область,Відшкодування витрат за електроенергію,26001300953074,current,1064.18,Виконавчий комітет Шосткинської міської ради,04057994,юридична особа
Опозиційний Блок,"Київ, вулиця Андріївська, 4",70,2018-12-19,TR.12603060.18464841,Банківські послуги,Інші витрати,136795,Миколаївська обласна організація,39751851,Миколаївська область,Договірне списання комісії,2600313370,current,2.00,"ПАТ ""ПУМБ""",14282829,юридична особа
Опозиційний Блок,"Одеська область, Одеса, Фонтанська дорога, 11",70,2018-12-19,ТД/01/26,Банківські послуги,Інші витрати,135855,Київська обласна організація,39756467,Київська область,Комісія за проведення розрах. докум. за 2018-12-18 зг. тариф ів банку.Без ПДВ.,26006001030575,current,12.00,"Київська філія АТ ""Місто банк""",26410346,юридична особа
Опозиційний Блок,"Київ, вулиця Турівська, 12",62,2018-12-19,3351,Сплата ЄСВ,Податкові платежі,134721,Центральний офіс,37120464,Україна,"ЄСВ 8,41% з фонду оплати праці",26007002030506,state,8280.77,ДПІ у Подільському районі ГУ ДФС у м. Києві,39467012,юридична особа
Опозиційний Блок,"Київ, вулиця Межигірська, 25",61,2018-12-19,3350,Військовий збір,Податкові платежі,134720,Центральний офіс,37120464,Україна,"Військовий збір 1,5% з заробітної плати",26007002030506,state,27065.49,УДКСУ у Подільському районі м. Києва,37975298,юридична особа
Опозиційний Блок,"Київська обл., Києво-Святошинський район, Мила, вулиця Комарова, 23Б",79,2018-12-19,3353,"Оренда будинків і приміщень та експлуатаційні витрати (прибирання, страхування орендованих будинків, охорона, сигналізація, ремонт, вивіз сміття, тощо)",Оренда нерухомості,134719,Центральний офіс,37120464,Україна,Поставка води,26007002030506,state,5381.40,"ТОВ ""ЧИСТА ВОДА""",30059069,юридична особа
Опозиційний Блок,"Київ, вулиця Богдана Хмельницького, 52",81,2018-12-19,3294,Аудит,"Гонорари, в тому числі за надані консультаційні послуги",134718,Центральний офіс,37120464,Україна,Зовнішній незалежний аудит,26007002030506,state,114000.00,"ТОВ ""Аудиторська фірма “ПКФ Аудит-фінанси”",34619277,юридична особа
Опозиційний Блок,"Одеська область, Одеса, Фонтанська дорога, 11",70,2018-12-19,ТД/01/17,Банківські послуги,Інші витрати,134717,Центральний офіс,37120464,Україна,Комісія банку,26007002030506,state,2.00,"Київська філія АТ ""Місто банк""",26410346,юридична особа
Опозиційний Блок,"Рівненська область, Рівне",84,2018-12-19,3320,"Заробітна плата, премії","Заробітна плата, лікарняні, вагітності, відрядження, компенсації",134373,Центральний офіс,37120464,Україна,Оплата праці,26007002030506,state,11707.92,Івойлова Алла Антонівна,,фізична особа
Опозиційний Блок,"Запорізька область, Запоріжжя",84,2018-12-19,3348,"Заробітна плата, премії","Заробітна плата, лікарняні, вагітності, відрядження, компенсації",134372,Центральний офіс,37120464,Україна,Оплата праці,26007002030506,state,5936.90,Ярута Карина Геннадіївна,,фізична особа
Опозиційний Блок,Київ,84,2018-12-19,3341,"Заробітна плата, премії","Заробітна плата, лікарняні, вагітності, відрядження, компенсації",134371,Центральний офіс,37120464,Україна,Оплата праці,26007002030506,state,9538.41,Нагорянський Євген Анатолійович,,фізична особа
Опозиційний Блок,Київ,84,2018-12-19,3340,"Заробітна плата, премії","Заробітна плата, лікарняні, вагітності, відрядження, компенсації",134370,Центральний офіс,37120464,Україна,Оплата праці,26007002030506,state,9621.22,Мотрич Надія Володимирівна,,фізична особа
Опозиційний Блок,Київ,84,2018-12-19,3338,"Заробітна плата, премії","Заробітна плата, лікарняні, вагітності, відрядження, компенсації",134369,Центральний офіс,37120464,Україна,Оплата праці,26007002030506,state,3170.98,Милиневська-Грищенко Ірина Леонідівна,,фізична особа
Опозиційний Блок,"Дніпропетровська область, Кривий Ріг",84,2018-12-19,3333,"Заробітна плата, премії","Заробітна плата, лікарняні, вагітності, відрядження, компенсації",134368,Центральний офіс,37120464,Україна,Оплата праці,26007002030506,state,7588.50,Лактіонов Костянтин Олександрович,,фізична особа
Опозиційний Блок,Київ,84,2018-12-19,3331,"Заробітна плата, премії","Заробітна плата, лікарняні, вагітності, відрядження, компенсації",134367,Центральний офіс,37120464,Україна,Оплата праці,26007002030506,state,8608.52,Купченко Валентина Анатоліївна,,фізична особа
Опозиційний Блок,"Черкаська область, Шполянський район, Шпола",84,2018-12-19,3325,"Заробітна плата, премії","Заробітна плата, лікарняні, вагітності, відрядження, компенсації",134366,Центральний офіс,37120464,Україна,Оплата праці,26007002030506,state,3032.71,Ковальовська Людмила Миколаївна,,фізична особа
Опозиційний Блок,Київ,84,2018-12-19,3322,"Заробітна плата, премії","Заробітна плата, лікарняні, вагітності, відрядження, компенсації",134365,Центральний офіс,37120464,Україна,Оплата праці,26007002030506,state,12391.50,Касянюк Олександр Ростиславович,,фізична особа
Опозиційний Блок,"Київ, вулиця Волоська, 6/14",67,2018-12-18,78,"Повернення коштів, що надійшли з державного бюджету","Повернення коштів, що надійшли з державного бюджету",137286,Тернопільська обласна організація,42106745,Тернопільська область,Повернення невикористаних коштів,26000055121834,state,100.00,Центральний офіс Опозиційний блок,37120464,юридична особа
Опозиційний Блок,"Київ, вулиця Бастіонна, 6",67,2018-12-18,78,"Повернення коштів, що надійшли з державного бюджету","Повернення коштів, що надійшли з державного бюджету",137223,Тернопільська обласна організація,42106745,Тернопільська область,2.2. Відомості про повернення коштів з рахунку для отримання коштів з Державного бюджету України на фінансування статутної діяльності,26000055121834,state,100.00,ГУ ДКСУ,20055032,державний бюджет
Опозиційний Блок,"Одеська область, Одеса, Фонтанська дорога, 11",70,2018-12-18,ТД/01/43,Банківські послуги,Інші витрати,135960,Київська обласна організація,39756467,Київська область,Комісія за проведення розрах. докум. за 2018-12-17 зг. тариф ів банку.Без ПДВ.,26005002030575,state,2.00,"Київська філія АТ ""Місто банк""",26410346,юридична особа
Опозиційний Блок,"Київ, вулиця Генерала Алмазова, 18",79,2018-12-18,558,"Оренда будинків і приміщень та експлуатаційні витрати (прибирання, страхування орендованих будинків, охорона, сигналізація, ремонт, вивіз сміття, тощо)",Оренда нерухомості,135854,Київська обласна організація,39756467,Київська область,"Компенсація комунальних послуг за листопад 2018 р., зг. акту по дог. №16-18 від 2018-03-30 у т.ч. ПДВ 20% - 542.48 грн.",26006001030575,current,3254.89,"АТ ""ІНСТИТУТ ПАПЕРУ""",31812534,юридична особа
Опозиційний Блок,"Київська обл., Біла Церква",79,2018-12-18,536,"Оренда будинків і приміщень та експлуатаційні витрати (прибирання, страхування орендованих будинків, охорона, сигналізація, ремонт, вивіз сміття, тощо)",Оренда нерухомості,135853,Київська обласна організація,39756467,Київська область,"За оренду приміщення у листопаді-грудні 2018 р., зг. акту по дог. №1/04 від 2018-04-01 у т.ч. ПДВ 20% - 1666.67 грн.",26006001030575,current,10000.00,"ТОВ ""ВЕЛИКИЙ ТРИКУТНИК""",32123958,юридична особа
Опозиційний Блок,"Київська обл., Білоцерківський район",79,2018-12-18,544,"Оренда будинків і приміщень та експлуатаційні витрати (прибирання, страхування орендованих будинків, охорона, сигналізація, ремонт, вивіз сміття, тощо)",Оренда нерухомості,135844,Київська обласна організація,39756467,Київська область,"За оренду приміщення у листопаді-грудні 2018 р., зг. акту по дог. №3 від 2018-04-01 Без ПДВ.",26006001030575,current,2000.00,Довгополова Наталія Григорівна,,фізична особа
Опозиційний Блок,"Київська обл., Кагарлицький район, Кагарлик",79,2018-12-18,542,"Оренда будинків і приміщень та експлуатаційні витрати (прибирання, страхування орендованих будинків, охорона, сигналізація, ремонт, вивіз сміття, тощо)",Оренда нерухомості,135843,Київська обласна організація,39756467,Київська область,"За оренду приміщення у листопаді-грудні 2018 р., зг. акту по дог. №7 від 2018-04-01 Без ПДВ.",26006001030575,current,9200.00,Ткач Роман Петрович,,фізична особа
Опозиційний Блок,"Київська обл., Тетіївський район",79,2018-12-18,541,"Оренда будинків і приміщень та експлуатаційні витрати (прибирання, страхування орендованих будинків, охорона, сигналізація, ремонт, вивіз сміття, тощо)",Оренда нерухомості,135842,Київська обласна організація,39756467,Київська область,"За оренду приміщення у листопаді-грудні 2018 р., зг. акту по дог. №5/18 від 2018-04-02 Без ПДВ.",26006001030575,current,8000.00,Строянівський Володимир Святославович,,фізична особа
Опозиційний Блок,"Київська обл., смт Макарів, вул. Проектна, буд. 1, кв. 84",79,2018-12-18,540,"Оренда будинків і приміщень та експлуатаційні витрати (прибирання, страхування орендованих будинків, охорона, сигналізація, ремонт, вивіз сміття, тощо)",Оренда нерухомості,135841,Київська обласна організація,39756467,Київська область,"За оренду приміщення у листопаді-грудні 2018 р., зг. акту по дог. №1 від 2018-03-30 Без ПДВ.",26006001030575,current,7800.00,Євтушенко Олександр Валерійович,2857214137,фізична особа
Опозиційний Блок,"Київ, вулиця Волоська, 6, 14",67,2018-12-18,246,"Повернення коштів, що надійшли з державного бюджету","Повернення коштів, що надійшли з державного бюджету",135840,Івано-Франківська обласна організація,39711819,Івано-Франківська область,"Повернення невикористаних коштів, отриманих на фінансування статутної діяльності.Без ПДВ",26007066129001,current,195.14,Центральний офіс Опозиційний блок,37120464,юридична особа
Опозиційний Блок,"Київ, вулиця Бастіонна, 6",67,2018-12-18,246,"Повернення коштів, що надійшли з державного бюджету","Повернення коштів, що надійшли з державного бюджету",135769,Івано-Франківська обласна організація,39711819,Івано-Франківська область,2.2. Відомості про повернення коштів з рахунку для отримання коштів з Державного бюджету України на фінансування статутної діяльності,26007066129001,current,195.14,ГУ ДКСУ,20055032,державний бюджет
Опозиційний Блок,"Одеська область, Одеса, Фонтанська дорога, 11",70,2018-12-18,ТД/01/19,Банківські послуги,Інші витрати,134714,Центральний офіс,37120464,Україна,Комісія банку,26007002030506,state,12.00,"Київська філія АТ ""Місто банк""",26410346,юридична особа
Опозиційний Блок,Київ,75,2018-12-18,3301,Поштові послуги та поширення друкованих матеріалів,Поштові послуги та поширення друкованих матеріалів,134364,Центральний офіс,37120464,Україна,Відшкодування поштових витрат згідно авансового звіту,26007002030506,state,453.20,Горлушко Валентина Василівна,,фізична особа
Опозиційний Блок,Київ,67,2018-12-17,108,"Повернення коштів, що надійшли з державного бюджету","Повернення коштів, що надійшли з державного бюджету",138149,Черкаська обласна організація,39880926,Черкаська область,Повернення невикористаних коштів,26002301144523,current,94.64,Центральний офіс Опозиційний блок,37120464,юридична особа
Опозиційний Блок,"Київ, вулиця Бастіонна, 6",67,2018-12-17,108,"Повернення коштів, що надійшли з державного бюджету","Повернення коштів, що надійшли з державного бюджету",138017,Черкаська обласна організація,39880926,Черкаська область,2.2. Відомості про повернення коштів з рахунку для отримання коштів з Державного бюджету України на фінансування статутної діяльності,26002301144523,current,94.64,ГУ ДКСУ,20055032,державний бюджет
Опозиційний Блок,"Хмельницька область, Хмельницький, вулиця Північна, 95",79,2018-12-17,162,"Оренда будинків і приміщень та експлуатаційні витрати (прибирання, страхування орендованих будинків, охорона, сигналізація, ремонт, вивіз сміття, тощо)",Оренда нерухомості,138016,Хмельницька обласна організація,39698166,Хмельницька область,"Орендна плата за грудень 2018 зг. рах. N 4158 вiд 03.12.18 У сумi 759.00 грн., ПДВ - 20 % 151.80 грн.",26009052304624,state,910.80,"ТОВ ""Автологістик""",36952835,юридична особа
Опозиційний Блок,"Київ, вулиця Михайла Грушевського, 1Д",70,2018-12-17,CHO1N052NY,Банківські послуги,Інші витрати,138015,Хмельницька обласна організація,39698166,Хмельницька область,Комiсiя за виконання платежiв в нацiональнiй валютi,26009052304624,state,3.00,"ПАТ КБ ""Приватбанк""",14360570,юридична особа
Опозиційний Блок,"Київ, вулиця Волоська, 6/14",67,2018-12-17,67,"Повернення коштів, що надійшли з державного бюджету","Повернення коштів, що надійшли з державного бюджету",137222,Сумська обласна організація,39673391,Сумська область,Повернення невикористаних коштів,26001300953074,current,59.33,Центральний офіс Опозиційний блок,37120464,юридична особа
Опозиційний Блок,"Київ, вулиця Бастіонна, 6",67,2018-12-17,67,"Повернення коштів, що надійшли з державного бюджету","Повернення коштів, що надійшли з державного бюджету",137120,Сумська обласна організація,39673391,Сумська область,2.2. Відомості про повернення коштів з рахунку для отримання коштів з Державного бюджету України на фінансування статутної діяльності,26001300953074,current,59.33,ГУ ДКСУ,20055032,державний бюджет
Опозиційний Блок,"Київ, вулиця Єреванська, 1",70,2018-12-17,TR.6268120.997427777,Банківські послуги,Інші витрати,137119,Рівненська обласна організація,39661171,Рівненська область,плата за розрахункове обслуговування,26009924434216,state,0.80,"АБ ""Укргазбанк""",23697280,юридична особа
Опозиційний Блок,"Київ, вулиця Волоська, 6/14",67,2018-12-17,205,"Повернення коштів, що надійшли з державного бюджету","Повернення коштів, що надійшли з державного бюджету",137118,Рівненська обласна організація,39661171,Рівненська область,повернення невикористаних коштів отриманих на фінансування статутної діяльності,26009924434216,state,39.20,Центральний офіс Опозиційний блок,37120464,юридична особа
Опозиційний Блок,"Київ, вулиця Бастіонна, 6",67,2018-12-17,205,"Повернення коштів, що надійшли з державного бюджету","Повернення коштів, що надійшли з державного бюджету",137048,Рівненська обласна організація,39661171,Рівненська область,2.2. Відомості про повернення коштів з рахунку для отримання коштів з Державного бюджету України на фінансування статутної діяльності,26009924434216,state,39.20,ГУ ДКСУ,20055032,державний бюджет
Опозиційний Блок,"Київ, вулиця Михайла Грушевського, 1Д",70,2018-12-17,324,Банківські послуги,Інші витрати,137047,Полтавська обласна організація,39763762,Полтавська область,Комісія РКО від зарплати за грудень 2018 р.,26001054642429,state,281.44,"ПАТ КБ ""Приватбанк""",14360570,юридична особа
Опозиційний Блок,"Полтавська область, Полтава, вулиця Шевченка, 1",61,2018-12-17,323,Військовий збір,Податкові платежі,137046,Полтавська обласна організація,39763762,Полтавська область,Воєнний збір від зарплати за грудень 2018р.,26001054642429,state,2097.67,УДКСУ у м. Полтаві,38019510,юридична особа
Опозиційний Блок,"Полтавська область, Полтава, вулиця Шевченка, 1",63,2018-12-17,321,Податок на доходи,Податкові платежі,137045,Полтавська обласна організація,39763762,Полтавська область,ПДФО від зарплати за грудень 2018 р.,26001054642429,state,25171.95,УДКСУ у м. Полтаві,38019510,юридична особа
Опозиційний Блок,"Полтавська область, Полтава, вулиця Європейська, 155",62,2018-12-17,322,Сплата ЄСВ,Податкові платежі,137044,Полтавська обласна організація,39763762,Полтавська область,ЄСВ від зарплати за грудень 2018р.,26001054642429,state,30765.72,ДПІ у м. Полтава ГУ ДФС у Полтавській області,39680655,юридична особа
Опозиційний Блок,"Полтавська область, Полтава",84,2018-12-17,320,"Заробітна плата, премії","Заробітна плата, лікарняні, вагітності, відрядження, компенсації",137018,Полтавська обласна організація,39763762,Полтавська область,Заробітна плата за грудень 2018 р.,26001054642429,state,10763.50,Гречка Алла Олегівна,,фізична особа
Опозиційний Блок,"Полтавська область, Полтава",84,2018-12-17,320,"Заробітна плата, премії","Заробітна плата, лікарняні, вагітності, відрядження, компенсації",137017,Полтавська обласна організація,39763762,Полтавська область,Заробітна плата за грудень 2018 р.,26001054642429,state,8086.22,Чистяков Станіслав Юрійович,,фізична особа
Опозиційний Блок,"Полтавська область, Полтава",84,2018-12-17,320,"Заробітна плата, премії","Заробітна плата, лікарняні, вагітності, відрядження, компенсації",137016,Полтавська обласна організація,39763762,Полтавська область,Заробітна плата за грудень 2018 р.,26001054642429,state,15068.95,Поліщук Ірина Сергіївна,,фізична особа
Опозиційний Блок,"Полтавська область, Полтава",84,2018-12-17,320,"Заробітна плата, премії","Заробітна плата, лікарняні, вагітності, відрядження, компенсації",137015,Полтавська обласна організація,39763762,Полтавська область,Заробітна плата за грудень 2018 р.,26001054642429,state,12916.23,Ставицька Наталія Вікторівна,,фізична особа
Опозиційний Блок,"Полтавська область, Полтава",84,2018-12-17,320,"Заробітна плата, премії","Заробітна плата, лікарняні, вагітності, відрядження, компенсації",137014,Полтавська обласна організація,39763762,Полтавська область,Заробітна плата за грудень 2018 р.,26001054642429,state,13992.51,Білокінь Сергій Васильович,,фізична особа
Опозиційний Блок,"Полтавська область, Полтава",84,2018-12-17,320,"Заробітна плата, премії","Заробітна плата, лікарняні, вагітності, відрядження, компенсації",137013,Полтавська обласна організація,39763762,Полтавська область,Заробітна плата за грудень 2018 р.,26001054642429,state,15950.35,Гриценко Аліна Леонідівна,,фізична особа
Опозиційний Блок,"Полтавська область, Кременчуцький район",84,2018-12-17,320,"Заробітна плата, премії","Заробітна плата, лікарняні, вагітності, відрядження, компенсації",137012,Полтавська обласна організація,39763762,Полтавська область,Заробітна плата за грудень 2018 р.,26001054642429,state,13723.48,Бородаєвська Марина Валеріївна,,фізична особа
Опозиційний Блок,"Полтавська область, Кременчук",84,2018-12-17,320,"Заробітна плата, премії","Заробітна плата, лікарняні, вагітності, відрядження, компенсації",137011,Полтавська обласна організація,39763762,Полтавська область,Заробітна плата за грудень 2018 р.,26001054642429,state,12332.92,Березянський Олександр Вадимович,,фізична особа
Опозиційний Блок,"Полтавська область, Кременчук",84,2018-12-17,320,"Заробітна плата, премії","Заробітна плата, лікарняні, вагітності, відрядження, компенсації",137010,Полтавська обласна організація,39763762,Полтавська область,Заробітна плата за грудень 2018 р.,26001054642429,state,9740.38,Сазонов Олег Юрійович,,фізична особа
Опозиційний Блок,"Київ, вулиця Михайла Грушевського, 1Д",70,2018-12-17,CHO1N1H4HY,Банківські послуги,Інші витрати,136969,Полтавська обласна організація,39763762,Полтавська область,"Комісія за виконання платежів в національній валюті, згідно з відкритою офертою банку № PLPDWWVP20 від 2015-09-24 та тарифів банку, без ПДВ",26007054626513,current,3.00,"ПАТ КБ ""Приватбанк""",14360570,юридична особа
Опозиційний Блок,"Київ, вулиця Михайла Грушевського, 1Д",70,2018-12-17,CHO1N1GWKY,Банківські послуги,Інші витрати,136968,Полтавська обласна організація,39763762,Полтавська область,"Комісія за виконання платежів в національній валюті, згідно з відкритою офертою банку № PLPDWWVP20 від 2015-09-24 та тарифів банку, без ПДВ",26007054626513,current,3.00,"ПАТ КБ ""Приватбанк""",14360570,юридична особа
Опозиційний Блок,"Київ, вулиця Михайла Грушевського, 1Д",70,2018-12-17,CHO1N1GMOY,Банківські послуги,Інші витрати,136967,Полтавська обласна організація,39763762,Полтавська область,"Комісія за виконання платежів в національній валюті, згідно з відкритою офертою банку № PLPDWWVP20 від 2015-09-24 та тарифів банку, без ПДВ",26007054626513,current,3.00,"ПАТ КБ ""Приватбанк""",14360570,юридична особа
Опозиційний Блок,"Київ, вулиця Борисоглібська, 5А",70,2018-12-17,0436762/18,Банківські послуги,Інші витрати,136462,Київська міська організація,37311846,Київ,Комісія за розрахункове обслуговування,26008010263,current,10.00,"АБ ""Кліринговий дім""",21665382,юридична особа
Опозиційний Блок,"Одеська область, Одеса, Фонтанська дорога, 11",70,2018-12-17,ТД/01/60,Банківські послуги,Інші витрати,135959,Київська обласна організація,39756467,Київська область,Комісія за проведення розрах. докум. за 2018-12-14 зг. тариф ів банку.Без ПДВ.,26005002030575,state,40.00,"Київська філія АТ ""Місто банк""",26410346,юридична особа
Опозиційний Блок,"Київ, вулиця Генерала Алмазова, 18",79,2018-12-17,543,"Оренда будинків і приміщень та експлуатаційні витрати (прибирання, страхування орендованих будинків, охорона, сигналізація, ремонт, вивіз сміття, тощо)",Оренда нерухомості,135958,Київська обласна організація,39756467,Київська область,"Компенсація комунальних послуг за листопад 2018 р., зг. акту по дог. №16-18 від 2018-03-30 у т.ч. ПДВ 20% - 490.96 грн.",26005002030575,state,2945.75,"АТ ""ІНСТИТУТ ПАПЕРУ""",31812534,юридична особа
Опозиційний Блок,"Запорізька область, Запоріжжя, вулиця Перша ливарна, 40",79,2018-12-17,244,"Оренда будинків і приміщень та експлуатаційні витрати (прибирання, страхування орендованих будинків, охорона, сигналізація, ремонт, вивіз сміття, тощо)",Оренда нерухомості,135839,Івано-Франківська обласна організація,39711819,Івано-Франківська область,Оплата за комунальні послуги згідно акту №ОУ-626 від 2018-12-17р. Без ПДВ.,26007066129001,current,2092.10,"ТОВ ""ІВАНО-ФРАНКІВСЬКАГРОПРОЕКТ""",38855050,юридична особа
Опозиційний Блок,"Запорізька область, Запоріжжя, вулиця Перша ливарна, 40",79,2018-12-17,242,"Оренда будинків і приміщень та експлуатаційні витрати (прибирання, страхування орендованих будинків, охорона, сигналізація, ремонт, вивіз сміття, тощо)",Оренда нерухомості,135838,Івано-Франківська обласна організація,39711819,Івано-Франківська область,Оплата за комунальні послуги згідно акту №ОУ-577 від 2018-11-30р. Без ПДВ.,26007066129001,current,1391.57,"ТОВ ""ІВАНО-ФРАНКІВСЬКАГРОПРОЕКТ""",38855050,юридична особа
Опозиційний Блок,"Запорізька область, Запоріжжя, вулиця Перша ливарна, 40",79,2018-12-17,243,"Оренда будинків і приміщень та експлуатаційні витрати (прибирання, страхування орендованих будинків, охорона, сигналізація, ремонт, вивіз сміття, тощо)",Оренда нерухомості,135837,Івано-Франківська обласна організація,39711819,Івано-Франківська область,Оплата за оренду приміщення згідно акту №ОУ-552 від 2018-11-30р. Без ПДВ.,26007066129001,current,2200.00,"ТОВ ""ІВАНО-ФРАНКІВСЬКАГРОПРОЕКТ""",38855050,юридична особа
Опозиційний Блок,"Запорізька область, Запоріжжя, вулиця Перша ливарна, 40",79,2018-12-17,245,"Оренда будинків і приміщень та експлуатаційні витрати (прибирання, страхування орендованих будинків, охорона, сигналізація, ремонт, вивіз сміття, тощо)",Оренда нерухомості,135836,Івано-Франківська обласна організація,39711819,Івано-Франківська область,Оплата за оренду приміщення згідно акту №ОУ-601 від 2018-12-17р. Без ПДВ.,26007066129001,current,2200.00,"ТОВ ""ІВАНО-ФРАНКІВСЬКАГРОПРОЕКТ""",38855050,юридична особа
Опозиційний Блок,"Івано-Франківська область, Івано-Франківськ, вулиця Михайла Грушевського, 13, 6",76,2018-12-17,240,Послуги зв’язку,Послуги зв’язку,135835,Івано-Франківська обласна організація,39711819,Івано-Франківська область,"Оплата за послуги інтернету згідно акту №6952 від 2018-11-30р. в т.ч ПДВ -45,83.",26007066129001,current,275.00,"ДП ""НЕТГРУП-СЕРВІС""",34084125,юридична особа
Опозиційний Блок,"Івано-Франківська область, Івано-Франківськ, вулиця Михайла Грушевського, 13, 6",76,2018-12-17,241,Послуги зв’язку,Послуги зв’язку,135834,Івано-Франківська обласна організація,39711819,Івано-Франківська область,"Оплата за послуги інтернету згідно акту №7369 від 2018-12-17р. в т.ч ПДВ -45,83.",26007066129001,current,275.00,"ДП ""НЕТГРУП-СЕРВІС""",34084125,юридична особа
Опозиційний Блок,"Київ, вулиця Стеценка, 6",70,2018-12-17,236,Банківські послуги,Інші витрати,135833,Івано-Франківська обласна організація,39711819,Івано-Франківська область,"Комісія банку за зарахування коштів СКР працівників Політична партія ""Опозиційний блок "" заробітна плата та аванси згідно відомості №38 від 2018-12-17",26007066129001,current,195.83,"ПУАТ ""КБ ""АКОРДБАНК""",35960913,юридична особа
Опозиційний Блок,"Івано-Франківська область, Івано-Франківськ, вулиця Незалежності, 20",62,2018-12-17,239,Сплата ЄСВ,Податкові платежі,135832,Івано-Франківська обласна організація,39711819,Івано-Франківська область,"*:39711819:71010000;ЄСВ з зарплати та премії,компенсації відпускних за грудень 2018р.",26007066129001,current,10703.74,ДПІ в м. Івано-Франківську ГУ ДФС в Івано-Франківській області,39508514,юридична особа
Опозиційний Блок,"Івано-Франківська область, Івано-Франківськ, вулиця Михайла Грушевського, 32",63,2018-12-17,237,Податок на доходи,Податкові платежі,135831,Івано-Франківська обласна організація,39711819,Івано-Франківська область,"*:39711819:11010100;ПДФОз зарплати та премії,компенсації відпускних за грудень 2018р.",26007066129001,current,8757.61,УДКСУ у м. Івано-Франківську,37952250,юридична особа
Опозиційний Блок,"Івано-Франківська область, Івано-Франківськ, вулиця Михайла Грушевського, 32",61,2018-12-17,238,Військовий збір,Податкові платежі,135830,Івано-Франківська обласна організація,39711819,Івано-Франківська область,"*:39711819:11011000;ВЗ з зарплати та премії,компенсації відпускних за грудень 2018р",26007066129001,current,729.80,УДКСУ у м. Івано-Франківську,37952250,юридична особа
Опозиційний Блок,"Івано-Франківська область, Івано-Франківськ",84,2018-12-17,235,"Заробітна плата, премії","Заробітна плата, лікарняні, вагітності, відрядження, компенсації",135791,Івано-Франківська обласна організація,39711819,Івано-Франківська область,"Заробiтна плата та премія, компенсація відпустки за грудень 2018",26007066129001,current,10143.00,Перепечко Наталія Миколаївна,,фізична особа
Опозиційний Блок,"Івано-Франківська область, Івано-Франківськ",84,2018-12-17,235,"Заробітна плата, премії","Заробітна плата, лікарняні, вагітності, відрядження, компенсації",135790,Івано-Франківська обласна організація,39711819,Івано-Франківська область,"Заробiтна плата та премія, компенсація відпустки за грудень 2018",26007066129001,current,10143.00,Мандзюк Роман Миколайович,,фізична особа
Опозиційний Блок,"Івано-Франківська область, Івано-Франківськ",84,2018-12-17,235,"Заробітна плата, премії","Заробітна плата, лікарняні, вагітності, відрядження, компенсації",135789,Івано-Франківська обласна організація,39711819,Івано-Франківська область,"Заробiтна плата та премія, компенсація відпустки за грудень 2018",26007066129001,current,8736.97,Качмар Іванна Іванівна,,фізична особа
Опозиційний Блок,Івано-Франківська область,84,2018-12-17,235,"Заробітна плата, премії","Заробітна плата, лікарняні, вагітності, відрядження, компенсації",135788,Івано-Франківська обласна організація,39711819,Івано-Франківська область,"Заробiтна плата та премія, компенсація відпустки за грудень 2018",26007066129001,current,10143.00,Корнелюк Ірина Дмитрівна,,фізична особа
Опозиційний Блок,"Закарпатська область, Ужгород, вулиця Гойди, 10",70,2018-12-17,233885,Банківські послуги,Інші витрати,135607,Закарпатська обласна організація,38222036,Закарпатська область,Комісія за розрахунково-касове обслуговування,26003016000800,current,46.40,"ПАТ ""Комінвестбанк""",19355562,юридична особа
Опозиційний Блок,"Київ, вулиця Михайла Грушевського, 1Д",70,2018-12-17,114,Банківські послуги,Інші витрати,135535,Житомирська обласна організація,39929086,Житомирська область,Комісія банку за виконання платежів,26000055812263,state,3.00,"ПАТ КБ ""Приватбанк""",14360570,юридична особа
Опозиційний Блок,"Вінницька область, Вінниця, вулиця Пирогова, 29",70,2018-12-17,215,Банківські послуги,Інші витрати,134853,Вінницька обласна організація,37618150,Вінницька область,"Комiсiя за виконання платежiв в нацiональнiй валютi, згiдно з вiдкритою офертою банку N б/н вiд 2017-07-19 та тарифiв банку, без ПДВ.",26000055333424,state,24.52,Центральний офіс Опозиційний блок,37120464,юридична особа
Опозиційний Блок,"Київ, вулиця Михайла Грушевського, 1Д",70,2018-12-17,CHO1N631IY,Банківські послуги,Інші витрати,134852,Вінницька обласна організація,37618150,Вінницька область,"Комiсiя за виконання платежiв в нацiональнiй валютi, згiдно з вiдкритою офертою банку N б/н вiд 2017-07-19 та тарифiв банку, без ПДВ.",26000055333424,state,3.00,"ПАТ КБ ""Приватбанк""",14360570,юридична особа
Опозиційний Блок,"Київ, вулиця Бастіонна, 6",67,2018-12-17,215,"Повернення коштів, що надійшли з державного бюджету","Повернення коштів, що надійшли з державного бюджету",134737,Вінницька обласна організація,37618150,Вінницька область,2.2. Відомості про повернення коштів з рахунку для отримання коштів з Державного бюджету України на фінансування статутної діяльності,26000055333424,state,24.52,ГУ ДКСУ,20055032,державний бюджет
Опозиційний Блок,"Київ, вулиця Сім'ї Сосніних, 7",79,2018-12-17,3300,"Оренда будинків і приміщень та експлуатаційні витрати (прибирання, страхування орендованих будинків, охорона, сигналізація, ремонт, вивіз сміття, тощо)",Оренда нерухомості,134709,Центральний офіс,37120464,Україна,Оренда складу,26007002030506,state,748.80,"ТОВ ""ДСВ ЛОГІСТИКА""",38857571,юридична особа
Опозиційний Блок,"Полтавська область, Полтава, вулиця Європейська, 57",75,2018-12-17,3299,Поштові послуги та поширення друкованих матеріалів,Поштові послуги та поширення друкованих матеріалів,134708,Центральний офіс,37120464,Україна,Організація відправлень,26007002030506,state,3675.90,"ТОВ ""Нова пошта""",31316718,юридична особа
Опозиційний Блок,"Київська обл., Києво-Святошинський район, Мила, вулиця Комарова, 23Б",79,2018-12-17,3298,"Оренда будинків і приміщень та експлуатаційні витрати (прибирання, страхування орендованих будинків, охорона, сигналізація, ремонт, вивіз сміття, тощо)",Оренда нерухомості,134707,Центральний офіс,37120464,Україна,Поставка води,26007002030506,state,3492.00,"ТОВ ""ЧИСТА ВОДА""",30059069,юридична особа
Опозиційний Блок,"Київ, вулиця Сім'ї Сосніних, 7",79,2018-12-17,3297,"Оренда будинків і приміщень та експлуатаційні витрати (прибирання, страхування орендованих будинків, охорона, сигналізація, ремонт, вивіз сміття, тощо)",Оренда нерухомості,134706,Центральний офіс,37120464,Україна,Оренда складу,26007002030506,state,1128.00,"ТОВ ""ДСВ ЛОГІСТИКА""",38857571,юридична особа
Опозиційний Блок,"Київ, вулиця Сім'ї Кульженків, 35",80,2018-12-17,3296,"Транспортні послуги (квитки, пасажирські перевезення і т.д.)","Транспортні послуги (квитки, пасажирські перевезення і т.д.)",134705,Центральний офіс,37120464,Україна,Транспортні послуги,26007002030506,state,2886.00,"ТОВ ""Транскар сервіс""",38323061,юридична особа
Опозиційний Блок,"Київ, вулиця Андрія Аболмасова, 5",79,2018-12-17,3295,"Оренда будинків і приміщень та експлуатаційні витрати (прибирання, страхування орендованих будинків, охорона, сигналізація, ремонт, вивіз сміття, тощо)",Оренда нерухомості,134704,Центральний офіс,37120464,Україна,Охорона обʼєкта,26007002030506,state,1000.00,"ТОВ ""ЦЕНТРАЛЬНА ПОЗАВІДОМЧА СЛУЖБА ОХОРОНИ ПЛЮС""",39586215,юридична особа
Опозиційний Блок,"Одеська область, Одеса, Фонтанська дорога, 11",70,2018-12-17,ТД/01/26,Банківські послуги,Інші витрати,134703,Центральний офіс,37120464,Україна,Комісія банку,26007002030506,state,14.00,"Київська філія АТ ""Місто банк""",26410346,юридична особа
Опозиційний Блок,"Харківська область, Борівський район, Борова",64,2018-12-14,211,Повернення платежів партії,Повернення,138414,Харківська обласна організація,41806019,Харківська область,повернення платежу (уточнення реквізітів),26002113221,state,2410.94,Божко Віталій Вікторович,,фізична особа
Опозиційний Блок,"Київ, вулиця Михайла Грушевського, 1Д",70,2018-12-14,CEO1MVGW2Y,Банківські послуги,Інші витрати,138389,Кременчуцька міська організація,39966510,Полтавська область,Комісія за виконання платежів,26008054635547,current,3.00,"ПАТ КБ ""Приватбанк""",14360570,юридична особа
Опозиційний Блок,"Полтавська область, Кременчук, Шкільний провулок, 10",79,2018-12-14,107,"Оренда будинків і приміщень та експлуатаційні витрати (прибирання, страхування орендованих будинків, охорона, сигналізація, ремонт, вивіз сміття, тощо)",Оренда нерухомості,138388,Кременчуцька міська організація,39966510,Полтавська область,Оренда приміщення за грудень 2018 р. без ПДВ,26008054635547,current,4500.00,"ПП ""Видавничий дім ""Думка""",40713683,юридична особа
Опозиційний Блок,"Київ, вулиця Михайла Грушевського, 1Д",70,2018-12-14,112,Банківські послуги,Інші витрати,138387,Кременчуцька міська організація,39966510,Полтавська область,Комісія PKO від зарплати за грудень,26008054635547,current,95.68,"ПАТ КБ ""Приватбанк""",14360570,юридична особа
Опозиційний Блок,"Київ, вулиця Михайла Грушевського, 1Д",70,2018-12-14,CEO1MVERBY,Банківські послуги,Інші витрати,138386,Кременчуцька міська організація,39966510,Полтавська область,Комісія за виконання платежів,26008054635547,current,3.00,"ПАТ КБ ""Приватбанк""",14360570,юридична особа
Опозиційний Блок,"Полтавська область, Кременчук, вулиця Небесної Сотні, 23/8",61,2018-12-14,111,Військовий збір,Податкові платежі,138385,Кременчуцька міська організація,39966510,Полтавська область,"Військовий збір 1,50% від зарплати за грудень 2018 р.",26008054635547,current,713.17,УДКСУ у м. Кременчуці Полтавської області,37965850,юридична особа
Опозиційний Блок,"Київ, вулиця Михайла Грушевського, 1Д",70,2018-12-14,CEO1MVER2Y,Банківські послуги,Інші витрати,138384,Кременчуцька міська організація,39966510,Полтавська область,Комісія за виконання платежів,26008054635547,current,3.00,"ПАТ КБ ""Приватбанк""",14360570,юридична особа
Опозиційний Блок,"Київ, вулиця Михайла Грушевського, 1Д",70,2018-12-14,CEO1MVEQYY,Банківські послуги,Інші витрати,138383,Кременчуцька міська організація,39966510,Полтавська область,Комісія за виконання платежів,26008054635547,current,3.00,"ПАТ КБ ""Приватбанк""",14360570,юридична особа
Опозиційний Блок,"Полтавська область, Кременчук, вулиця Троїцька, 76",62,2018-12-14,110,Сплата ЄСВ,Податкові платежі,138382,Кременчуцька міська організація,39966510,Полтавська область,ЄСВ 22% від зарплати за грудень 2018 р.,26008054635547,current,10459.77,"Кременчуцька об*єднана державна податкова інспекція""",39780421,юридична особа
Опозиційний Блок,"Полтавська область, Кременчук, вулиця Небесної Сотні, 23/8",63,2018-12-14,109,Податок на доходи,Податкові платежі,138381,Кременчуцька міська організація,39966510,Полтавська область,ПДФО 18% від зарплати за грудень 2018 р.,26008054635547,current,8557.99,УДКСУ у м. Кременчуці Полтавської області,37965850,юридична особа
Опозиційний Блок,"Київ, вулиця Михайла Грушевського, 1Д",70,2018-12-14,AR6/н,Банківські послуги,Інші витрати,138380,Кременчуцька міська організація,39966510,Полтавська область,Погашення заборгованості за розрахунково-касове обслуговування згідно угоди РКО б/н від 2018-03-16 р.,26008054635547,current,100.00,"ПАТ КБ ""Приватбанк""",14360570,юридична особа
Опозиційний Блок,"Полтавська область, Кременчук",84,2018-12-14,108,"Заробітна плата, премії","Заробітна плата, лікарняні, вагітності, відрядження, компенсації",138345,Кременчуцька міська організація,39966510,Полтавська область,Заробітна плата за грудень 2018 р.,26008054635547,current,11163.08,Протасов Максим Ігорович,,фізична особа
Опозиційний Блок,"Полтавська область, Кременчуцький район",84,2018-12-14,108,"Заробітна плата, премії","Заробітна плата, лікарняні, вагітності, відрядження, компенсації",138344,Кременчуцька міська організація,39966510,Полтавська область,Заробітна плата за грудень 2018 р.,26008054635547,current,14352.46,Пусан Євген Віталійович,,фізична особа
Опозиційний Блок,"Полтавська область, Кременчук",84,2018-12-14,108,"Заробітна плата, премії","Заробітна плата, лікарняні, вагітності, відрядження, компенсації",138343,Кременчуцька міська організація,39966510,Полтавська область,Заробітна плата за грудень 2018 р.,26008054635547,current,12757.70,Кушнірова Анна Олександрівна,,фізична особа
Опозиційний Блок,"Чернігівська область, Чернігів",61,2018-12-14,148,Військовий збір,Податкові платежі,138278,Чернігівська обласна організація,37418136,Чернігівська область,Військовий збір за грудень 2018р.,26006051417141,state,3586.74,УДКСУ у м. Чернігові,38054398,юридична особа
Опозиційний Блок,"Чернігівська область, Чернігів",63,2018-12-14,147,Податок на доходи,Податкові платежі,138277,Чернігівська обласна організація,37418136,Чернігівська область,ПДФО у грудні 2018р.,26006051417141,state,43041.16,УДКСУ у м. Чернігові,38054398,юридична особа
Опозиційний Блок,"Чернігівська область, Чернігів, вулиця Кирпоноса, 28",62,2018-12-14,146,Сплата ЄСВ,Податкові платежі,138276,Чернігівська обласна організація,37418136,Чернігівська область,Сплата єдиного внеску за грудень2018р.,26006051417141,state,1447.65,Чернігівська ОДПІ в м.Чернігові,39558413,юридична особа
Опозиційний Блок,"Чернігівська область, Чернігів, вулиця Кирпоноса, 28",62,2018-12-14,145,Сплата ЄСВ,Податкові платежі,138275,Чернігівська обласна організація,37418136,Чернігівська область,Сплата єдиного внеску за грудень2018р.,26006051417141,state,48818.85,Чернігівська ОДПІ в м.Чернігові,39558413,юридична особа
Опозиційний Блок,"Чернігівська область, Чернігів",79,2018-12-14,144,"Оренда будинків і приміщень та експлуатаційні витрати (прибирання, страхування орендованих будинків, охорона, сигналізація, ремонт, вивіз сміття, тощо)",Оренда нерухомості,138274,Чернігівська обласна організація,37418136,Чернігівська область,Суборендна плата за грудень 2018р.,26006051417141,state,11381.00,Чернігівська Міськспоживспілка,40268466,юридична особа
Опозиційний Блок,"Чернігівська область, Козелецький район, Козелець",84,2018-12-14,149,"Заробітна плата, премії","Заробітна плата, лікарняні, вагітності, відрядження, компенсації",138253,Чернігівська обласна організація,37418136,Чернігівська область,Заробітна плата,26006051417141,state,11645.69,Лисенко Володимир Прокопович,,фізична особа
Опозиційний Блок,"Чернігівська область, Чернігів",84,2018-12-14,149,"Заробітна плата, премії","Заробітна плата, лікарняні, вагітності, відрядження, компенсації",138252,Чернігівська обласна організація,37418136,Чернігівська область,Заробітна плата,26006051417141,state,18890.61,Рисак Василій Андрійович,,фізична особа
Опозиційний Блок,"Чернігівська область, Чернігів",84,2018-12-14,149,"Заробітна плата, премії","Заробітна плата, лікарняні, вагітності, відрядження, компенсації",138251,Чернігівська обласна організація,37418136,Чернігівська область,Заробітна плата,26006051417141,state,18950.50,Коробка Іван Іванович,,фізична особа
Опозиційний Блок,"Чернігівська область, Чернігів",84,2018-12-14,149,"Заробітна плата, премії","Заробітна плата, лікарняні, вагітності, відрядження, компенсації",138250,Чернігівська обласна організація,37418136,Чернігівська область,Заробітна плата,26006051417141,state,13351.41,Кудрик Микола Васильович,,фізична особа
Опозиційний Блок,"Чернігівська область, Чернігів",84,2018-12-14,149,"Заробітна плата, премії","Заробітна плата, лікарняні, вагітності, відрядження, компенсації",138249,Чернігівська обласна організація,37418136,Чернігівська область,Заробітна плата,26006051417141,state,21434.73,Мельник Анатолій Іванович,,фізична особа
Опозиційний Блок,"Чернігівська область, Чернігів",84,2018-12-14,149,"Заробітна плата, премії","Заробітна плата, лікарняні, вагітності, відрядження, компенсації",138248,Чернігівська обласна організація,37418136,Чернігівська область,Заробітна плата,26006051417141,state,13997.50,Давиденко Валерія Олександрівна,,фізична особа
Опозиційний Блок,"Чернігівська область, Чернігів",84,2018-12-14,149,"Заробітна плата, премії","Заробітна плата, лікарняні, вагітності, відрядження, компенсації",138247,Чернігівська обласна організація,37418136,Чернігівська область,Заробітна плата,26006051417141,state,18807.60,Чекалкіна Ірина Олександрівна,,фізична особа
Опозиційний Блок,"Чернігівська область, Чернігів",84,2018-12-14,149,"Заробітна плата, премії","Заробітна плата, лікарняні, вагітності, відрядження, компенсації",138246,Чернігівська обласна організація,37418136,Чернігівська область,Заробітна плата,26006051417141,state,16735.67,Кондратова Тетяна Володимирівна,,фізична особа
Опозиційний Блок,"Чернігівська область, Чернігів",84,2018-12-14,149,"Заробітна плата, премії","Заробітна плата, лікарняні, вагітності, відрядження, компенсації",138245,Чернігівська обласна організація,37418136,Чернігівська область,Заробітна плата,26006051417141,state,10759.31,Демʼяненко Олексій Олексійович,,фізична особа
Опозиційний Блок,"Чернігівська область, Городнянський район, Городня",84,2018-12-14,149,"Заробітна плата, премії","Заробітна плата, лікарняні, вагітності, відрядження, компенсації",138244,Чернігівська обласна організація,37418136,Чернігівська область,Заробітна плата,26006051417141,state,13351.41,Хомазюк Андрій Анатолійович,,фізична особа
Опозиційний Блок,"Чернігівська область, Чернігів",84,2018-12-14,149,"Заробітна плата, премії","Заробітна плата, лікарняні, вагітності, відрядження, компенсації",138243,Чернігівська обласна організація,37418136,Чернігівська область,Заробітна плата,26006051417141,state,7525.30,Шеремет Олег Семенович,,фізична особа
Опозиційний Блок,"Чернігівська область, Ніжин",84,2018-12-14,149,"Заробітна плата, премії","Заробітна плата, лікарняні, вагітності, відрядження, компенсації",138242,Чернігівська обласна організація,37418136,Чернігівська область,Заробітна плата,26006051417141,state,13856.82,Деркач Андрій Петрович,,фізична особа
Опозиційний Блок,"Чернігівська область, Прилуки",84,2018-12-14,149,"Заробітна плата, премії","Заробітна плата, лікарняні, вагітності, відрядження, компенсації",138241,Чернігівська обласна організація,37418136,Чернігівська область,Заробітна плата,26006051417141,state,13182.94,Бірюзова Світлана Петрівна,,фізична особа
Опозиційний Блок,"Київ, вулиця Михайла Грушевського, 1Д",70,2018-12-14,TZ004B98J1,Банківські послуги,Інші витрати,138186,Чернігівська обласна організація,37418136,Чернігівська область,Комісія за обслуговування рахунку,26003051415812,current,481.22,"ПАТ КБ ""Приватбанк""",14360570,юридична особа
Опозиційний Блок,"Київ, вулиця Михайла Грушевського, 1Д",70,2018-12-14,CEO1MSSD7Y,Банківські послуги,Інші витрати,138185,Чернігівська обласна організація,37418136,Чернігівська область,Комісія за обслуговування рахунку,26003051415812,current,3.00,"ПАТ КБ ""Приватбанк""",14360570,юридична особа
Опозиційний Блок,"Київ, вулиця Михайла Грушевського, 1Д",70,2018-12-14,CEO1MSSCYY,Банківські послуги,Інші витрати,138184,Чернігівська обласна організація,37418136,Чернігівська область,Комісія за обслуговування рахунку,26003051415812,current,3.00,"ПАТ КБ ""Приватбанк""",14360570,юридична особа
Опозиційний Блок,"Київ, вулиця Михайла Грушевського, 1Д",70,2018-12-14,CEO1MSSCTY,Банківські послуги,Інші витрати,138183,Чернігівська обласна організація,37418136,Чернігівська область,Комісія за обслуговування рахунку,26003051415812,current,3.00,"ПАТ КБ ""Приватбанк""",14360570,юридична особа
Опозиційний Блок,"Київ, вулиця Михайла Грушевського, 1Д",70,2018-12-14,CEO1MSSCLY,Банківські послуги,Інші витрати,138182,Чернігівська обласна організація,37418136,Чернігівська область,Комісія за обслуговування рахунку,26003051415812,current,3.00,"ПАТ КБ ""Приватбанк""",14360570,юридична особа
Опозиційний Блок,"Черкаська область, Черкаси, бульвар Шевченка, 180",79,2018-12-14,106,"Оренда будинків і приміщень та експлуатаційні витрати (прибирання, страхування орендованих будинків, охорона, сигналізація, ремонт, вивіз сміття, тощо)",Оренда нерухомості,138148,Черкаська обласна організація,39880926,Черкаська область,оренда офісного приміщення 11/2018,26002301144523,current,11913.00,"ТОВ ""Аптека 2000""",30705440,юридична особа
Опозиційний Блок,"Черкаська область, Черкаси, вулиця Хрещатик, 190",74,2018-12-14,107,"Придбання канцтоварів, паперу, інших предметів і матеріалів, а також госп товари",Придбання канцтоварів та госп. товарів,138147,Черкаська обласна організація,39880926,Черкаська область,канцтовари,26002301144523,current,4140.02,"ПП ""Магазин Мега Стайл""",31423748,юридична особа
Опозиційний Блок,"Черкаська область, Черкаси, вулиця Хрещатик, 235",62,2018-12-14,103,Сплата ЄСВ,Податкові платежі,138146,Черкаська обласна організація,39880926,Черкаська область,ЄСВ на зарплату за грудень 2018,26002301144523,current,29867.84,ДПІ у м. Черкаси,38715755,юридична особа
Опозиційний Блок,"Київ, вулиця Госпітальна, 12Г",70,2018-12-14,102,Банківські послуги,Інші витрати,138145,Черкаська обласна організація,39880926,Черкаська область,погаш нарах комісії за перерах на картки,26002301144523,current,276.92,"АТ ""Ощадбанк""",00032129,юридична особа
Опозиційний Блок,"Черкаська область, Черкаси, вулиця Байди Вишневецького, 36",63,2018-12-14,104,Податок на доходи,Податкові платежі,138144,Черкаська обласна організація,39880926,Черкаська область,ПДФО за грудень 2018,26002301144523,current,26928.00,УДКСУ у м. Черкасах,38031150,юридична особа
Опозиційний Блок,"Черкаська область, Черкаси, вулиця Байди Вишневецького, 36",61,2018-12-14,105,Військовий збір,Податкові платежі,138143,Черкаська обласна організація,39880926,Черкаська область,військовий збір на зарплату за грудень 2018,26002301144523,current,2244.00,УДКСУ у м. Черкасах,38031150,юридична особа
Опозиційний Блок,"Київ, вулиця Госпітальна, 12Г",70,2018-12-14,МБ8491774,Банківські послуги,Інші витрати,138142,Черкаська обласна організація,39880926,Черкаська область,погаш нарах комісії за чек,26002301144523,current,858.13,"АТ ""Ощадбанк""",00032129,юридична особа
Опозиційний Блок,"Черкаська область, Черкаси",84,2018-12-14,МБ8491774,"Заробітна плата, премії","Заробітна плата, лікарняні, вагітності, відрядження, компенсації",138102,Черкаська обласна організація,39880926,Черкаська область,заробітна плата за грудень 2018,26002301144523,current,4025.00,Рябокінь Сергій Сергійович,,фізична особа
Опозиційний Блок,"Черкаська область, Черкаси",84,2018-12-14,МБ8491774_1,"Заробітна плата, премії","Заробітна плата, лікарняні, вагітності, відрядження, компенсації",138101,Черкаська обласна організація,39880926,Черкаська область,заробітна плата за грудень 2018,26002301144523,current,4025.00,Терещенко Максим Сергійович,,фізична особа
Опозиційний Блок,Київ,84,2018-12-14,МБ8491774_1,"Заробітна плата, премії","Заробітна плата, лікарняні, вагітності, відрядження, компенсації",138100,Черкаська обласна організація,39880926,Черкаська область,заробітна плата за грудень 2018,26002301144523,current,4025.00,Селезень Віра Володимирівна,,фізична особа
Опозиційний Блок,"Черкаська область, Черкаси",84,2018-12-14,МБ8491774,"Заробітна плата, премії","Заробітна плата, лікарняні, вагітності, відрядження, компенсації",138099,Черкаська обласна організація,39880926,Черкаська область,заробітна плата за грудень 2018,26002301144523,current,2415.00,Марчуков Юрій Геннадійович,,фізична особа
Опозиційний Блок,"Черкаська область, Черкаси",84,2018-12-14,МБ8491774,"Заробітна плата, премії","Заробітна плата, лікарняні, вагітності, відрядження, компенсації",138098,Черкаська обласна організація,39880926,Черкаська область,заробітна плата за грудень 2018,26002301144523,current,2415.00,Лінк Олена Олександрівна,,фізична особа
Опозиційний Блок,"Черкаська область, Черкаси",84,2018-12-14,МБ8491774_1,"Заробітна плата, премії","Заробітна плата, лікарняні, вагітності, відрядження, компенсації",138097,Черкаська обласна організація,39880926,Черкаська область,заробітна плата за грудень 2018,26002301144523,current,4025.00,Пархоменко Любов Василівна,,фізична особа
Опозиційний Блок,"Черкаська область, Черкаси",84,2018-12-14,МБ8491774_1,"Заробітна плата, премії","Заробітна плата, лікарняні, вагітності, відрядження, компенсації",138096,Черкаська обласна організація,39880926,Черкаська область,заробітна плата за грудень 2018,26002301144523,current,4025.00,Пономарьов Юрій Олександрович,,фізична особа
Опозиційний Блок,"Черкаська область, Городищенський район, Городище",84,2018-12-14,МБ8491774_1,"Заробітна плата, премії","Заробітна плата, лікарняні, вагітності, відрядження, компенсації",138095,Черкаська обласна організація,39880926,Черкаська область,заробітна плата за грудень 2018,26002301144523,current,4025.00,Галич Галина Василівна,,фізична особа
Опозиційний Блок,"Черкаська область, Черкаси",84,2018-12-14,МБ8491774_1,"Заробітна плата, премії","Заробітна плата, лікарняні, вагітності, відрядження, компенсації",138094,Черкаська обласна організація,39880926,Черкаська область,заробітна плата за грудень 2018,26002301144523,current,5232.50,Ребенко Андрій Анатолійович,,фізична особа
Опозиційний Блок,"Черкаська область, Черкаси",84,2018-12-14,МБ8491774_1,"Заробітна плата, премії","Заробітна плата, лікарняні, вагітності, відрядження, компенсації",138093,Черкаська обласна організація,39880926,Черкаська область,заробітна плата за грудень 2018,26002301144523,current,7486.50,Горохова Людмила Володимирівна,,фізична особа
Опозиційний Блок,"Черкаська область, Канів",84,2018-12-14,БПК,"Заробітна плата, премії","Заробітна плата, лікарняні, вагітності, відрядження, компенсації",138092,Черкаська обласна організація,39880926,Черкаська область,заробітна плата за грудень 2018,26002301144523,current,6440.00,Калніболоцький Олег Анатолійович,,фізична особа
Опозиційний Блок,"Черкаська область, Черкаси",84,2018-12-14,БПК,"Заробітна плата, премії","Заробітна плата, лікарняні, вагітності, відрядження, компенсації",138091,Черкаська обласна організація,39880926,Черкаська область,заробітна плата за грудень 2018,26002301144523,current,6440.00,Яловая Ніна Миколаївна,,фізична особа
Опозиційний Блок,"Черкаська область, Черкаси",84,2018-12-14,БПК,"Заробітна плата, премії","Заробітна плата, лікарняні, вагітності, відрядження, компенсації",138090,Черкаська обласна організація,39880926,Черкаська область,заробітна плата за грудень 2018,26002301144523,current,5635.00,Сорока Лариса Юріївна,,фізична особа
Опозиційний Блок,"Черкаська область, Черкаси",84,2018-12-14,БПК,"Заробітна плата, премії","Заробітна плата, лікарняні, вагітності, відрядження, компенсації",138089,Черкаська обласна організація,39880926,Черкаська область,заробітна плата за грудень 2018,26002301144523,current,4508.00,Татаринов Олександр Сергійович,,фізична особа
Опозиційний Блок,"Черкаська область, Черкаси",84,2018-12-14,БПК,"Заробітна плата, премії","Заробітна плата, лікарняні, вагітності, відрядження, компенсації",138088,Черкаська обласна організація,39880926,Черкаська область,заробітна плата за грудень 2018,26002301144523,current,11592.00,Поступак Світлана Іванівна,,фізична особа
Опозиційний Блок,"Черкаська область, Черкаси",84,2018-12-14,МБ8491774,"Заробітна плата, премії","Заробітна плата, лікарняні, вагітності, відрядження, компенсації",138087,Черкаська обласна організація,39880926,Черкаська область,заробітна плата за грудень 2018,26002301144523,current,3220.00,Рябокінь Сергій Сергійович,,фізична особа
Опозиційний Блок,"Черкаська область, Черкаси",84,2018-12-14,МБ8491774,"Заробітна плата, премії","Заробітна плата, лікарняні, вагітності, відрядження, компенсації",138086,Черкаська обласна організація,39880926,Черкаська область,заробітна плата за грудень 2018,26002301144523,current,4025.00,Терещенко Максим Сергійович,,фізична особа
Опозиційний Блок,Київ,84,2018-12-14,МБ8491774,"Заробітна плата, премії","Заробітна плата, лікарняні, вагітності, відрядження, компенсації",138085,Черкаська обласна організація,39880926,Черкаська область,заробітна плата за грудень 2018,26002301144523,current,4025.00,Селезень Віра Володимирівна,,фізична особа
Опозиційний Блок,"Черкаська область, Черкаси",84,2018-12-14,МБ8491774,"Заробітна плата, премії","Заробітна плата, лікарняні, вагітності, відрядження, компенсації",138084,Черкаська обласна організація,39880926,Черкаська область,заробітна плата за грудень 2018,26002301144523,current,4025.00,Марчуков Юрій Геннадійович,,фізична особа
Опозиційний Блок,"Черкаська область, Черкаси",84,2018-12-14,МБ8491774,"Заробітна плата, премії","Заробітна плата, лікарняні, вагітності, відрядження, компенсації",138083,Черкаська обласна організація,39880926,Черкаська область,заробітна плата за грудень 2018,26002301144523,current,4025.00,Лінк Олена Олександрівна,,фізична особа
Опозиційний Блок,"Черкаська область, Черкаси",84,2018-12-14,МБ8491774,"Заробітна плата, премії","Заробітна плата, лікарняні, вагітності, відрядження, компенсації",138082,Черкаська обласна організація,39880926,Черкаська область,заробітна плата за грудень 2018,26002301144523,current,4025.00,Пархоменко Любов Василівна,,фізична особа
Опозиційний Блок,"Черкаська область, Черкаси",84,2018-12-14,МБ8491774,"Заробітна плата, премії","Заробітна плата, лікарняні, вагітності, відрядження, компенсації",138081,Черкаська обласна організація,39880926,Черкаська область,заробітна плата за грудень 2018,26002301144523,current,4025.00,Пономарьов Юрій Олександрович,,фізична особа
Опозиційний Блок,"Черкаська область, Городищенський район, Городище",84,2018-12-14,МБ8491774,"Заробітна плата, премії","Заробітна плата, лікарняні, вагітності, відрядження, компенсації",138080,Черкаська обласна організація,39880926,Черкаська область,заробітна плата за грудень 2018,26002301144523,current,4025.00,Галич Галина Василівна,,фізична особа
Опозиційний Блок,"Черкаська область, Черкаси",84,2018-12-14,МБ8491774,"Заробітна плата, премії","Заробітна плата, лікарняні, вагітності, відрядження, компенсації",138079,Черкаська обласна організація,39880926,Черкаська область,заробітна плата за грудень 2018,26002301144523,current,5232.50,Ребенко Андрій Анатолійович,,фізична особа
Опозиційний Блок,"Черкаська область, Черкаси",84,2018-12-14,МБ8491774,"Заробітна плата, премії","Заробітна плата, лікарняні, вагітності, відрядження, компенсації",138078,Черкаська обласна організація,39880926,Черкаська область,заробітна плата за грудень 2018,26002301144523,current,7486.50,Горохова Людмила Володимирівна,,фізична особа
Опозиційний Блок,"Київ, вулиця Михайла Грушевського, 1Д",70,2018-12-14,TZ004B99E2,Банківські послуги,Інші витрати,138014,Хмельницька обласна організація,39698166,Хмельницька область,Оплата комiсiї за касове обслуговування по ПП ОПОЗИЦIЙНИЙ БЛОК РО.,26009052304624,state,216.18,"ПАТ КБ ""Приватбанк""",14360570,юридична особа
Опозиційний Блок,"Хмельницька область, Хмельницький, вулиця Проскурівська, 56",63,2018-12-14,159,Податок на доходи,Податкові платежі,138013,Хмельницька обласна організація,39698166,Хмельницька область,Продаток на доходи фізичних осіб за грудень 2018 р.,26009052304624,state,19335.29,УДКСУ у м. Хмельницькому,38045529,юридична особа
Опозиційний Блок,"Київ, вулиця Михайла Грушевського, 1Д",70,2018-12-14,CEO1MSR5YY,Банківські послуги,Інші витрати,138012,Хмельницька обласна організація,39698166,Хмельницька область,Комiсiя за виконання платежiв в нацiональнiй валютi,26009052304624,state,3.00,"ПАТ КБ ""Приватбанк""",14360570,юридична особа
Опозиційний Блок,"Хмельницька область, Хмельницький, вулиця Героїв Майдану, 12",62,2018-12-14,158,Сплата ЄСВ,Податкові платежі,138011,Хмельницька обласна організація,39698166,Хмельницька область,Єдиний соціальний внесок за грудень 2018 р.,26009052304624,state,23632.04,ДПІ у м. Хмельницькому,39564228,юридична особа
Опозиційний Блок,"Київ, вулиця Михайла Грушевського, 1Д",70,2018-12-14,CEO1MSR61Y,Банківські послуги,Інші витрати,138010,Хмельницька обласна організація,39698166,Хмельницька область,Комiсiя за виконання платежiв в нацiональнiй валютi,26009052304624,state,3.00,"ПАТ КБ ""Приватбанк""",14360570,юридична особа
Опозиційний Блок,"Хмельницька область, Хмельницький, вулиця Проскурівська, 56",61,2018-12-14,160,Військовий збір,Податкові платежі,138009,Хмельницька обласна організація,39698166,Хмельницька область,Військовий збір за грудень 2018 р.,26009052304624,state,1611.27,УДКСУ у м. Хмельницькому,38045529,юридична особа
Опозиційний Блок,"Київ, вулиця Михайла Грушевського, 1Д",70,2018-12-14,CEO1MSR63Y,Банківські послуги,Інші витрати,138008,Хмельницька обласна організація,39698166,Хмельницька область,Комiсiя за виконання платежiв в нацiональнiй валютi,26009052304624,state,3.00,"ПАТ КБ ""Приватбанк""",14360570,юридична особа
Опозиційний Блок,"Хмельницька область, Хмельницький",84,2018-12-14,161,"Заробітна плата, премії","Заробітна плата, лікарняні, вагітності, відрядження, компенсації",137953,Хмельницька обласна організація,39698166,Хмельницька область,Заробітна плата,26009052304624,state,8633.62,Косюк Роман Миколайович,,фізична особа
Опозиційний Блок,"Хмельницька область, Хмельницький",84,2018-12-14,161,"Заробітна плата, премії","Заробітна плата, лікарняні, вагітності, відрядження, компенсації",137952,Хмельницька обласна організація,39698166,Хмельницька область,Заробітна плата,26009052304624,state,16060.95,Гаман Ольга Миколаївна,,фізична особа
Опозиційний Блок,"Хмельницька область, Хмельницький",84,2018-12-14,161,"Заробітна плата, премії","Заробітна плата, лікарняні, вагітності, відрядження, компенсації",137951,Хмельницька обласна організація,39698166,Хмельницька область,Заробітна плата,26009052304624,state,10631.49,Старенька Аліна Сергіївна,,фізична особа
Опозиційний Блок,"Хмельницька область, Старокостянтинів",84,2018-12-14,161,"Заробітна плата, премії","Заробітна плата, лікарняні, вагітності, відрядження, компенсації",137950,Хмельницька обласна організація,39698166,Хмельницька область,Заробітна плата,26009052304624,state,13820.88,Гуменюк Світлана Володимирівна,,фізична особа
Опозиційний Блок,"Хмельницька область, Хмельницький",84,2018-12-14,161,"Заробітна плата, премії","Заробітна плата, лікарняні, вагітності, відрядження, компенсації",137949,Хмельницька обласна організація,39698166,Хмельницька область,Заробітна плата,26009052304624,state,5315.75,Мадунова Анна Олегівна,,фізична особа
Опозиційний Блок,"Хмельницька область, Старокостянтинів",84,2018-12-14,161,"Заробітна плата, премії","Заробітна плата, лікарняні, вагітності, відрядження, компенсації",137948,Хмельницька обласна організація,39698166,Хмельницька область,Заробітна плата,26009052304624,state,5315.75,Нараєвський Олексій Юрійович,,фізична особа
Опозиційний Блок,"Хмельницька область, Хмельницький",84,2018-12-14,161,"Заробітна плата, премії","Заробітна плата, лікарняні, вагітності, відрядження, компенсації",137947,Хмельницька обласна організація,39698166,Хмельницька область,Заробітна плата,26009052304624,state,5315.75,Войтюк Михайло Дмитрович,,фізична особа
Опозиційний Блок,"Хмельницька область, Старокостянтинів",84,2018-12-14,161,"Заробітна плата, премії","Заробітна плата, лікарняні, вагітності, відрядження, компенсації",137946,Хмельницька обласна організація,39698166,Хмельницька область,Заробітна плата,26009052304624,state,4366.11,Войтко Юрій Віталійович,,фізична особа
Опозиційний Блок,"Хмельницька область, Старокостянтинів",84,2018-12-14,161,"Заробітна плата, премії","Заробітна плата, лікарняні, вагітності, відрядження, компенсації",137945,Хмельницька обласна організація,39698166,Хмельницька область,Заробітна плата,26009052304624,state,17011.49,Федик Валерій Анатолійович,,фізична особа
Опозиційний Блок,"Харківська область, Лозова, вулиця Соборна, 2",79,2018-12-14,205,"Оренда будинків і приміщень та експлуатаційні витрати (прибирання, страхування орендованих будинків, охорона, сигналізація, ремонт, вивіз сміття, тощо)",Оренда нерухомості,137560,Харківська обласна організація,41806019,Харківська область,оренда приміщення грудень 2018р,26002113221,state,1632.00,"""ЛОЗІВСЬКИЙ СПОРТИВНО-ТЕХНІЧНИЙ КЛУБ ТОВАРИСТВА СПРИЯННЯ ОБОРОНІ УКРАЇНИ""",26150524,юридична особа
Опозиційний Блок,"Харківська область, Нововодолазький район, Нова Водолага, вулиця Кооперативна, 1",79,2018-12-14,201,"Оренда будинків і приміщень та експлуатаційні витрати (прибирання, страхування орендованих будинків, охорона, сигналізація, ремонт, вивіз сміття, тощо)",Оренда нерухомості,137559,Харківська обласна організація,41806019,Харківська область,оренда приміщення грудень 2018р,26002113221,state,2700.00,Нововодолазьке споживче товариство,30568753,юридична особа
Опозиційний Блок,"Харківська область, Кегичівський район, Кегичівка",79,2018-12-14,209,"Оренда будинків і приміщень та експлуатаційні витрати (прибирання, страхування орендованих будинків, охорона, сигналізація, ремонт, вивіз сміття, тощо)",Оренда нерухомості,137558,Харківська обласна організація,41806019,Харківська область,оренда приміщення грудень 2018р,26002113221,state,2500.00,КЕГИЧІВСЬКА РАЙОННА СПІЛКА СПОЖИВЧИХ ТОВАРИСТВ,30767842,юридична особа
Опозиційний Блок,"Харківська область, Зачепилівський район, Зачепилівка, вул. Центральна",79,2018-12-14,203,"Оренда будинків і приміщень та експлуатаційні витрати (прибирання, страхування орендованих будинків, охорона, сигналізація, ремонт, вивіз сміття, тощо)",Оренда нерухомості,137557,Харківська обласна організація,41806019,Харківська область,оренда приміщення грудень 2018р,26002113221,state,2000.00,"ТОВ ""ЮПІТЕР-2012""",38579799,юридична особа
Опозиційний Блок,"Харківська область, Харків, вулиця Квітки-Основ'яненка, 7",79,2018-12-14,204,"Оренда будинків і приміщень та експлуатаційні витрати (прибирання, страхування орендованих будинків, охорона, сигналізація, ремонт, вивіз сміття, тощо)",Оренда нерухомості,137556,Харківська обласна організація,41806019,Харківська область,оренда приміщення грудень 2018р,26002113221,state,35000.00,"ТОВ ""Веберз""",34862373,юридична особа
Опозиційний Блок,"Харківська область, Харків, вулиця Римарська, 25, 42",48,2018-12-14,202,Публікування матеріалів у мережі Інтернет,Реклама в інтернеті,137555,Харківська обласна організація,41806019,Харківська область,оплата розміщення інформації на порталі новин грудень 2018р.,26002113221,state,2000.00,"ТОВ ""ЕФЕКТИВНИЙ РОЗУМ""",39607093,юридична особа
Опозиційний Блок,"Харківська область, Харків, вулиця Полтавська, 80",79,2018-12-14,195,"Оренда будинків і приміщень та експлуатаційні витрати (прибирання, страхування орендованих будинків, охорона, сигналізація, ремонт, вивіз сміття, тощо)",Оренда нерухомості,137554,Харківська обласна організація,41806019,Харківська область,оренда приміщення грудень 2018р,26002113221,state,1800.00,"ТОВ ""ПОЛТАВСЬКИЙ""",21186664,юридична особа
Опозиційний Блок,"Харківська область, Люботин, вулиця Джерелянська, 2",79,2018-12-14,208,"Оренда будинків і приміщень та експлуатаційні витрати (прибирання, страхування орендованих будинків, охорона, сигналізація, ремонт, вивіз сміття, тощо)",Оренда нерухомості,137553,Харківська обласна організація,41806019,Харківська область,оренда приміщення грудень 2018р,26002113221,state,1700.00,"ТОВ ""Валентин""",25609363,юридична особа
Опозиційний Блок,"Харківська область, Сахновщинський район, Сахновщина, вулиця Чабанівського",79,2018-12-14,205,"Оренда будинків і приміщень та експлуатаційні витрати (прибирання, страхування орендованих будинків, охорона, сигналізація, ремонт, вивіз сміття, тощо)",Оренда нерухомості,137552,Харківська обласна організація,41806019,Харківська область,оренда приміщення грудень 2018р,26002113221,state,1500.00,"ПП ""Ритм""",22626415,юридична особа
Опозиційний Блок,"Харківська область, Харків, вулиця Алчевських, 44",63,2018-12-14,199,Податок на доходи,Податкові платежі,137551,Харківська обласна організація,41806019,Харківська область,ПДФО 18% з оренди нежитлового приміщення за грудень 2018р. Татаренко С.О. 2919021450,26002113221,state,329.40,УДКСУ у Київському районі м. Харків,37999675,юридична особа
Опозиційний Блок,"Харківська область, Харків, вулиця Алчевських, 44",63,2018-12-14,207,Податок на доходи,Податкові платежі,137550,Харківська обласна організація,41806019,Харківська область,ПДФО 18% з оренди приміщення та ком.послуги за грудень 2018р. Товстяк М.О. 1985317955,26002113221,state,192.83,УДКСУ у Київському районі м. Харків,37999675,юридична особа
Опозиційний Блок,"Харківська область, Харків, вулиця Алчевських, 30",70,2018-12-14,RCO2002_1086,Банківські послуги,Інші витрати,137549,Харківська обласна організація,41806019,Харківська область,списання коштів за банківське обслуговування згідно договору 8984,26002113221,state,42.50,"ПАТ ""Мегабанк""",09804119,юридична особа
Опозиційний Блок,"Харківська область, Куп'янськ",79,2018-12-14,197,"Оренда будинків і приміщень та експлуатаційні витрати (прибирання, страхування орендованих будинків, охорона, сигналізація, ремонт, вивіз сміття, тощо)",Оренда нерухомості,137399,Харківська обласна організація,41806019,Харківська область,оренда приміщення грудень 2018р,26002113221,state,5000.00,Тарасенко Олександр Іванович,,фізична особа
Опозиційний Блок,"Харківська обл., Харків, просп. Гагаріна, буд. 169Б, 28",79,2018-12-14,196,"Оренда будинків і приміщень та експлуатаційні витрати (прибирання, страхування орендованих будинків, охорона, сигналізація, ремонт, вивіз сміття, тощо)",Оренда нерухомості,137398,Харківська обласна організація,41806019,Харківська область,оренда приміщення грудень 2018р,26002113221,state,3600.00,Манукян Арпіне Араіківна,3279004761,фізична особа
Опозиційний Блок,"Харківська область, Близнюківський район",79,2018-12-14,210,"Оренда будинків і приміщень та експлуатаційні витрати (прибирання, страхування орендованих будинків, охорона, сигналізація, ремонт, вивіз сміття, тощо)",Оренда нерухомості,137397,Харківська обласна організація,41806019,Харківська область,оренда приміщення грудень 2018р,26002113221,state,2500.00,Коняєв Володимир Іванович,,фізична особа
Опозиційний Блок,"Харківська область, Борівський район, Борова",79,2018-12-14,211,"Оренда будинків і приміщень та експлуатаційні витрати (прибирання, страхування орендованих будинків, охорона, сигналізація, ремонт, вивіз сміття, тощо)",Оренда нерухомості,137396,Харківська обласна організація,41806019,Харківська область,оренда приміщення грудень 2018р,26002113221,state,2410.94,Божко Віталій Вікторович,,фізична особа
Опозиційний Блок,"Харківська область, Балаклійський район, Балаклія",79,2018-12-14,198,"Оренда будинків і приміщень та експлуатаційні витрати (прибирання, страхування орендованих будинків, охорона, сигналізація, ремонт, вивіз сміття, тощо)",Оренда нерухомості,137395,Харківська обласна організація,41806019,Харківська область,оренда приміщення грудень 2018р,26002113221,state,1500.60,Татаренко Сергій Олександрович,,фізична особа
Опозиційний Блок,"Харківська область, Харків",79,2018-12-14,206,"Оренда будинків і приміщень та експлуатаційні витрати (прибирання, страхування орендованих будинків, охорона, сигналізація, ремонт, вивіз сміття, тощо)",Оренда нерухомості,137394,Харківська обласна організація,41806019,Харківська область,оренда приміщення грудень 2018р,26002113221,state,878.47,Товстяк Микола Олексійович,,фізична особа
Опозиційний Блок,"Харківська область, Харків, майдан Свободи, 5",49,2018-12-14,296,Публікування матеріалів у друкованих ЗМІ,Реклама в друкованих ЗМІ,137364,Харківська обласна організація,41806019,Харківська область,оплата за надання інформаційних ослуг,2600813221,current,3780.00,"РГ ""Слобідський край""",21188137,юридична особа
Опозиційний Блок,"Харківська область, Первомайський",49,2018-12-14,295,Публікування матеріалів у друкованих ЗМІ,Реклама в друкованих ЗМІ,137363,Харківська обласна організація,41806019,Харківська область,оплата за розміщення інформації на шпальтах газети,2600813221,current,1853.10,"ТОВ ""Знамя труда масс-медиа""",02476497,юридична особа
Опозиційний Блок,"Харківська область, Харків, вулиця Алчевських, 30",70,2018-12-14,RCO2002_1046,Банківські послуги,Інші витрати,137362,Харківська обласна організація,41806019,Харківська область,списання коштів за банківське обслуговування згідно договору 8984,2600813221,current,5.00,"ПАТ ""Мегабанк""",09804119,юридична особа
Опозиційний Блок,"Тернопільська область, Тернопіль, вулиця Анатолія Живова, 11",79,2018-12-14,76,"Оренда будинків і приміщень та експлуатаційні витрати (прибирання, страхування орендованих будинків, охорона, сигналізація, ремонт, вивіз сміття, тощо)",Оренда нерухомості,137285,Тернопільська обласна організація,42106745,Тернопільська область,Оренда приміщення,26000055121834,state,4950.00,"ТОВ ""ЕСТЕРКОМ""",40467712,юридична особа
Опозиційний Блок,"Київ, вулиця Михайла Грушевського, 1Д",70,2018-12-14,CE01MS58BA,Банківські послуги,Інші витрати,137284,Тернопільська обласна організація,42106745,Тернопільська область,Комісія банку,26000055121834,state,18.84,"ПАТ КБ ""Приватбанк""",14360570,юридична особа
Опозиційний Блок,"Київ, вулиця Михайла Грушевського, 1Д",70,2018-12-14,CE01MS58AA,Банківські послуги,Інші витрати,137283,Тернопільська обласна організація,42106745,Тернопільська область,Комісія банку,26000055121834,state,46.37,"ПАТ КБ ""Приватбанк""",14360570,юридична особа
Опозиційний Блок,"Київ, вулиця Михайла Грушевського, 1Д",70,2018-12-14,CE01MS4DTY,Банківські послуги,Інші витрати,137282,Тернопільська обласна організація,42106745,Тернопільська область,Комісія банку,26000055121834,state,3.00,"ПАТ КБ ""Приватбанк""",14360570,юридична особа
Опозиційний Блок,"Київ, вулиця Михайла Грушевського, 1Д",70,2018-12-14,CE01MS4DSY,Банківські послуги,Інші витрати,137281,Тернопільська обласна організація,42106745,Тернопільська область,Комісія банку,26000055121834,state,3.00,"ПАТ КБ ""Приватбанк""",14360570,юридична особа
Опозиційний Блок,"Тернопільська область, Тернопіль, вулиця Білецька, 1",62,2018-12-14,71,Сплата ЄСВ,Податкові платежі,137280,Тернопільська обласна організація,42106745,Тернопільська область,Єдиний соціальний внесок з ФОП - 22%,26000055121834,state,5940.00,Тернопільська ОДПІ ГУ ДФС в Тернопільській області,39502025,юридична особа
Опозиційний Блок,"Київ, вулиця Михайла Грушевського, 1Д",70,2018-12-14,CE01MS4DRY,Банківські послуги,Інші витрати,137279,Тернопільська обласна організація,42106745,Тернопільська область,Комісія банку,26000055121834,state,3.00,"ПАТ КБ ""Приватбанк""",14360570,юридична особа
Опозиційний Блок,"Тернопільська область, Тернопіль, вулиця Листопадова, 3",61,2018-12-14,73,Військовий збір,Податкові платежі,137278,Тернопільська обласна організація,42106745,Тернопільська область,"Військовий збір 1,5% з заробітної плати",26000055121834,state,405.00,УДКСУ у м. Тернопіль,37977726,юридична особа
Опозиційний Блок,"Тернопільська область, Тернопіль, вулиця Листопадова, 3",63,2018-12-14,72,Податок на доходи,Податкові платежі,137277,Тернопільська обласна організація,42106745,Тернопільська область,ПДФО 18% з заробітної плати,26000055121834,state,4860.00,УДКСУ у м. Тернопіль,37977726,юридична особа
Опозиційний Блок,"Тернопільська область, Збаразький район, Збараж",76,2018-12-14,77,Послуги зв’язку,Послуги зв’язку,137236,Тернопільська обласна організація,42106745,Тернопільська область,Послуги доступу до мережі інтернет,26000055121834,state,100.00,Суконнік Микола Валерійович,,фізична особа
Опозиційний Блок,"Тернопільська область, Збаразький район, Збараж",84,2018-12-14,75,"Заробітна плата, премії","Заробітна плата, лікарняні, вагітності, відрядження, компенсації",137235,Тернопільська обласна організація,42106745,Тернопільська область,Заробітна плата,26000055121834,state,6278.97,Башкатова Людмила Петрівна,,фізична особа
Опозиційний Блок,"Тернопільська область, Збаразький район, Збараж",84,2018-12-14,74,"Заробітна плата, премії","Заробітна плата, лікарняні, вагітності, відрядження, компенсації",137234,Тернопільська обласна організація,42106745,Тернопільська область,Заробітна плата,26000055121834,state,15456.03,Соснова Ірина Степанівна,,фізична особа
Опозиційний Блок,"Сумська область, Суми, вулиця Горького, 32",70,2018-12-14,2313818344,Банківські послуги,Інші витрати,137221,Сумська обласна організація,39673391,Сумська область,Комісія за обслуговування рахунку,26001300953074,current,1428.68,"Сумська обласна філія ""Ощадбанк""",09337356,юридична особа
Опозиційний Блок,"Сумська область, Суми, Покровська площа, 2",63,2018-12-14,63,Податок на доходи,Податкові платежі,137220,Сумська обласна організація,39673391,Сумська область,Податок з доходів фізичних осіб,26001300953074,current,31945.66,УДКСУ у м. Суми,37970593,юридична особа
Опозиційний Блок,"Сумська область, Суми, Покровська площа, 2",61,2018-12-14,64,Військовий збір,Податкові платежі,137219,Сумська обласна організація,39673391,Сумська область,Військовий збір,26001300953074,current,2662.14,УДКСУ у м. Суми,37970593,юридична особа
Опозиційний Блок,"Сумська область, Суми, Покровська площа, 2",62,2018-12-14,62,Сплата ЄСВ,Податкові платежі,137218,Сумська обласна організація,39673391,Сумська область,Єдиний соціальний внесок,26001300953074,current,39044.70,ДПІ у м. Сумах,39563287,юридична особа
Опозиційний Блок,"Сумська область, Сумський район, Суми",74,2018-12-14,65,"Придбання канцтоварів, паперу, інших предметів і матеріалів, а також госп товари",Придбання канцтоварів та госп. товарів,137195,Сумська обласна організація,39673391,Сумська область,Канц. товари,26001300953074,current,5200.00,Земляков Дмитро Володимирович,,фізична особа
Опозиційний Блок,"Сумська область, Сумський район, Суми",84,2018-12-14,65,"Заробітна плата, премії","Заробітна плата, лікарняні, вагітності, відрядження, компенсації",137194,Сумська обласна організація,39673391,Сумська область,Заробітна плата,26001300953074,current,8965.69,Ткачова Анастасія Ігорівна,,фізична особа
Опозиційний Блок,"Сумська область, Сумський район, Суми",84,2018-12-14,65,"Заробітна плата, премії","Заробітна плата, лікарняні, вагітності, відрядження, компенсації",137193,Сумська обласна організація,39673391,Сумська область,Заробітна плата,26001300953074,current,15219.65,Петренко Роман Станіславович,,фізична особа
Опозиційний Блок,"Сумська область, Сумський район, Суми",84,2018-12-14,65,"Заробітна плата, премії","Заробітна плата, лікарняні, вагітності, відрядження, компенсації",137192,Сумська обласна організація,39673391,Сумська область,Заробітна плата,26001300953074,current,12270.94,Перепека Євгенія Ігорівна,,фізична особа
Опозиційний Блок,"Сумська область, Сумський район, Суми",84,2018-12-14,65,"Заробітна плата, премії","Заробітна плата, лікарняні, вагітності, відрядження, компенсації",137191,Сумська обласна організація,39673391,Сумська область,Заробітна плата,26001300953074,current,15657.25,Зібарєв Дмитро Олександрович,,фізична особа
Опозиційний Блок,"Сумська область, Сумський район, Суми",84,2018-12-14,65,"Заробітна плата, премії","Заробітна плата, лікарняні, вагітності, відрядження, компенсації",137190,Сумська обласна організація,39673391,Сумська область,Заробітна плата,26001300953074,current,15219.65,Ємельяненко Ольга Леонідівна,,фізична особа
Опозиційний Блок,"Сумська область, Шосткинський район",84,2018-12-14,65,"Заробітна плата, премії","Заробітна плата, лікарняні, вагітності, відрядження, компенсації",137189,Сумська обласна організація,39673391,Сумська область,Заробітна плата,26001300953074,current,10763.49,Дудко Геннадій Петрович,,фізична особа
Опозиційний Блок,"Сумська область, Сумський район, Суми",84,2018-12-14,65,"Заробітна плата, премії","Заробітна плата, лікарняні, вагітності, відрядження, компенсації",137188,Сумська обласна організація,39673391,Сумська область,Заробітна плата,26001300953074,current,9868.98,Дворник Олена Василівна,,фізична особа
Опозиційний Блок,"Сумська область, Сумський район, Суми",84,2018-12-14,65,"Заробітна плата, премії","Заробітна плата, лікарняні, вагітності, відрядження, компенсації",137187,Сумська обласна організація,39673391,Сумська область,Заробітна плата,26001300953074,current,22551.75,Войтенко Ольга Федорівна,,фізична особа
Опозиційний Блок,"Сумська область, Шостка",84,2018-12-14,65,"Заробітна плата, премії","Заробітна плата, лікарняні, вагітності, відрядження, компенсації",137186,Сумська обласна організація,39673391,Сумська область,Заробітна плата,26001300953074,current,10763.49,Безкоровайна Тетяна Олександрівна,,фізична особа
Опозиційний Блок,Сумська область,84,2018-12-14,65,"Заробітна плата, премії","Заробітна плата, лікарняні, вагітності, відрядження, компенсації",137185,Сумська обласна організація,39673391,Сумська область,Заробітна плата,26001300953074,current,10763.49,Хатько Сергій Олександрович,,фізична особа
Опозиційний Блок,"Сумська область, Сумський район, Суми",84,2018-12-14,65,"Заробітна плата, премії","Заробітна плата, лікарняні, вагітності, відрядження, компенсації",137184,Сумська обласна організація,39673391,Сумська область,Заробітна плата,26001300953074,current,10823.71,Ткачов Костянтин Миколайович,,фізична особа
Опозиційний Блок,"Київ, вулиця Єреванська, 1",70,2018-12-14,TR.6268120.14376310,Банківські послуги,Інші витрати,137117,Рівненська обласна організація,39661171,Рівненська область,плата за розрахункове обслуговування,26009924434216,state,0.80,"АБ ""Укргазбанк""",23697280,юридична особа
Опозиційний Блок,"Київ, вулиця Єреванська, 1",70,2018-12-14,TR.6268120.242050445,Банківські послуги,Інші витрати,137116,Рівненська обласна організація,39661171,Рівненська область,плата за розрахункове обслуговування,26009924434216,state,0.80,"АБ ""Укргазбанк""",23697280,юридична особа
Опозиційний Блок,"Київ, вулиця Єреванська, 1",70,2018-12-14,TR.6268120.171194502,Банківські послуги,Інші витрати,137115,Рівненська обласна організація,39661171,Рівненська область,плата за розрахункове обслуговування,26009924434216,state,0.80,"АБ ""Укргазбанк""",23697280,юридична особа
Опозиційний Блок,"Київ, вулиця Єреванська, 1",70,2018-12-14,TR.6268120.694990727,Банківські послуги,Інші витрати,137114,Рівненська обласна організація,39661171,Рівненська область,плата за розрахункове обслуговування,26009924434216,state,0.80,"АБ ""Укргазбанк""",23697280,юридична особа
Опозиційний Блок,"Київ, вулиця Єреванська, 1",70,2018-12-14,204,Банківські послуги,Інші витрати,137113,Рівненська обласна організація,39661171,Рівненська область,Комісія банку,26009924434216,state,188.68,"АБ ""Укргазбанк""",23697280,юридична особа
Опозиційний Блок,"Рівненська область, Рівне, вулиця Яворницького, 34",61,2018-12-14,202,Військовий збір,Податкові платежі,137112,Рівненська обласна організація,39661171,Рівненська область,"в/с 1,5% з/пл, преміі 12/18.",26009924434216,state,703.16,ГУ ДКСУ у Рівненській області,38012714,юридична особа
Опозиційний Блок,"Рівненська область, Рівне, вулиця Яворницького, 34",63,2018-12-14,201,Податок на доходи,Податкові платежі,137111,Рівненська обласна організація,39661171,Рівненська область,"ПДФО 18% з/пл, преміі 12/18.",26009924434216,state,8437.93,ГУ ДКСУ у Рівненській області,38012714,юридична особа
Опозиційний Блок,"Рівненська область, Рівне, вулиця Відінська, 8",62,2018-12-14,200,Сплата ЄСВ,Податкові платежі,137110,Рівненська обласна організація,39661171,Рівненська область,"ЄСВ 22% з/пл, преміі 12/18.",26009924434216,state,10313.03,ДПІ у м. Рівне ГУ ДФС в Рівненській області,39550744,юридична особа
Опозиційний Блок,"Рівненська область, Рівне, вулиця Гагаріна, 39",74,2018-12-14,199,"Придбання канцтоварів, паперу, інших предметів і матеріалів, а також госп товари",Придбання канцтоварів та госп. товарів,137109,Рівненська обласна організація,39661171,Рівненська область,оплата за канцелярські приладдя,26009924434216,state,1945.90,"ТОВ ""ПАРІ ТЕТ РІВНЕ""",38371005,юридична особа
Опозиційний Блок,"Рівненська область, Рівне",84,2018-12-14,203,"Заробітна плата, премії","Заробітна плата, лікарняні, вагітності, відрядження, компенсації",137074,Рівненська обласна організація,39661171,Рівненська область,"заробітна плата, премія та компенсація за грудень 2018 р.",26009924434216,state,7905.50,Мельник Юлія Володимирівна,,фізична особа
Опозиційний Блок,"Рівненська область, Рівне",84,2018-12-14,203,"Заробітна плата, премії","Заробітна плата, лікарняні, вагітності, відрядження, компенсації",137073,Рівненська обласна організація,39661171,Рівненська область,заробітна плата та премія за грудень 2018 р.,26009924434216,state,6118.00,Гриценюк Емілія Павлівна,,фізична особа
Опозиційний Блок,"Рівненська область, Рівне",84,2018-12-14,203,"Заробітна плата, премії","Заробітна плата, лікарняні, вагітності, відрядження, компенсації",137072,Рівненська обласна організація,39661171,Рівненська область,заробітна плата та премія за грудень 2018 р.,26009924434216,state,6762.00,Мельникова Людмила Олександрівна,,фізична особа
Опозиційний Блок,"Рівненська область, Рівне",84,2018-12-14,203,"Заробітна плата, премії","Заробітна плата, лікарняні, вагітності, відрядження, компенсації",137071,Рівненська обласна організація,39661171,Рівненська область,"заробітна плата, премія та компенсація за грудень 2018 р.",26009924434216,state,7934.81,Демчук Наталія Леонідівна,,фізична особа
Опозиційний Блок,"Рівненська область, Гощанський район, Гоща",84,2018-12-14,203,"Заробітна плата, премії","Заробітна плата, лікарняні, вагітності, відрядження, компенсації",137070,Рівненська обласна організація,39661171,Рівненська область,заробітна плата та премія за грудень 2018 р.,26009924434216,state,9016.00,Чумак Мирослав Володимирович,,фізична особа
Опозиційний Блок,"Полтавська область, Полтава",79,2018-12-14,319,"Оренда будинків і приміщень та експлуатаційні витрати (прибирання, страхування орендованих будинків, охорона, сигналізація, ремонт, вивіз сміття, тощо)",Оренда нерухомості,137009,Полтавська обласна організація,39763762,Полтавська область,Оплата за оренду приміщення за грудень згідно рахунку-фактури № 14-12 від 2018-12-14 р.,26001054642429,state,7000.00,Ставицький Станіслав Олександрович,,фізична особа
